Workbook

Sheet Info
C2: Extraction de familles sélectionnées dans les états nominatifs de la population
B4: Les données proviennent des Archives départementales. Pour le Freney seules sont disponibles les années 1896, 1901 et 1906.
B5: Nous avons eu aussi la chance de trouver beaucoup d'autres données à la Mairie du Freney, grâce à Jean-Patrick. Il s'agit des années 1836 à 1926, avec quelques lacunes.
B6: Les photos sont disponibles.
B7: Marie-Dominique Lecoquiere a beaucoup travaillé sur ces tables, mais tout n'apparaitra pas dans son livre.
B8: Aussi afin d'aider les personnes qui voudraient aller plus loin dans leur recherche, un outil a été développé ici, qui permet de faire des extractions de certaines familles sélectionnées.
B9: Nous n'avons travaillé que pour les quatre hameaux de Puy le Bas, Puy le Haut, Le Passet et le Périer.
B10: Pour ceux qui voudraient aller ailleurs il faudra piocher dans les photos.
A12: Les états nominatifs des personnes recensées
B14: Ces états évoluent ce qui est un signe de tentative d'amélioration.
B16: Les données absentes
C17: En principe un recensement a lieu tous les 5 ans.
C18: Nous n'avons pas les données des années 1851, 1856, 1911, 1916.
C19: De plus les listes des années 1836, 1841 et 1861 sont inutilisables pour nous car on ne sait pas dans quel hameau se trouve chaque habitant.
C20: Il nous reste donc les années 1846, 1866, 1872; 1876, 1881, 1886, 1891, 1896, 1901, 1906, 1921 et 1926.
B22: Les numéros des maisons, ménages et individus
C23: Ces données sont très fluctuantes.
C24: Quelquefois il n'y a qu'un seul numéro, apparemment celui du ménage,
C25: Quelquefois il y a deux nombres identiques comme si chaque ménage avait sa propre maison,
C26: Quelquefois les listes de numéros sont cumulées (on continue en passant au hameau suivant), ou bien on reprend à 1,
C27: La numérotation des individus est quelquefois clairement indiquée en cumulé ou reprise à 1 à chaque nouveau hameau,
C28: En l'absence de numérotation spécifique des individus, les lignes sont souvent numérotées, il faut alors repérer la page,
C29: En l'absence de numérotation des lignes ou des pages, on compte.
C30: Pour les années 1921 et 1926 les n° des maisons sont remplacés apparemment par le n° de la parcelle. Cela ne marche pas toujours.
A32: Les deux feuilles de ce fichier utiles pour le lecteur
B34: Seules deux feuilles sont utiles :
B35: 1 | C35: La feuille Liste, où on retrouve ce qui a été extrait des documents originaux,
B36: 2 | C36: La feuille Extr, qui permet d'extraire suivant une sélection.
B38: Il n'est pas utile de regarder la feuille ndl. Ce sont des numéros de ligne en cascade utilisés par les macro-instructions.
A40: Qu'est-ce qu'on peut extraire ?
B42: Le dispositif extrait une ou plusieurs familles qui correspondent à des choix préliminaires.
B43: Le tableau de bord, les commandes de la feuille Extr sont localisées dans le champ B5:C23
B44: En colonne B on trouve toutes les recherches possibles d'un individu quelconque.
B45: En colonne C on trouve toutes les recherches parmi les chefs de famille.
B46: La recherche peut porter sur l'ensemble des quatres hameaux. Voir les lignes 5 à 7,
B47: ou bien sur un hameau particulier :
C48: Voir les lignes 9 à 11 pour le hameau de Puy le Bas,
C49: les lignes 13 à 15 pour Puy le Haut,
C50: les lignes 17 à 19 pour Le Passet,
C51: et les lignes 21 à 23 pour Le Perrier.
B53: On dispose donc de 10 listes déroulantes qui apparaissent en cliquant sur le bouton.
B54: Dans la fenêtre on lit une vingtaine de noms.
B55: On peut utiliser l'ascenseur pour voir la suite de la liste.
B56: Il suffit de cliquer sur le nom choisi pour afficher la ou les familles correspondantes.
B57: En résumé, deux clics - 1 - le choix de la liste - 2 - le choix de la personne
A59: Noms et prénoms uniformisés
B61: On trouve par exemple dans les listes des Dusser et des Dussert
B62: Afin d'améliorer l'efficacité de la recherche les noms Dusser sont transformés en Dussert
B63: Il y en a d'autres dans ce cas, par exemple Girolet et Girollet ; Odoux et Oddoux ; Arnodet et Arnaudet ; Piera et Pierra ; Pelorce et Pellorce ...
A65: Commentaires
B67: Afin de préciser le contenu d'une colonne, des commentaires ont été ajoutés dans le titre.
B68: La cellule est sur fond jaune clair. On lit le commentaire en déplaçant la souris sur la cellule sans cliquer | P68: Com
A70: Pour Jean Poulet
B72: Ces lignes à partir de la 70 n'apparaitront pas sur la version définitive.
B73: Avant d'entreprendre ce travail j'ai du faire des vérifications.
B75: La feuille 1861
C76: Les listes de l'année 1861 (comme celles d'ailleurs des années 1836 et 1841) sont données sans indication des hameaux.
C77: J'ai fait une grosse bêtise dans les données précédentes en croyant que je pouvais localier les données relatives à chaque hameau,
D78: car pour 1861 il y a des données récapitulatives.
C79: Le principe était de me baser sur le nombre de ménages ou le nombre d'individu connu dans chaque hameau.
C80: Mais il y a trop d'incohérences. Il faut abandonner cette interpolation hasardeuse.
C81: La feuille 1861 disparaitra.
B83: La feuille Liste
C84: Cette feuille est en principe celle de la liste de toutes les données qui ont été exploitées. Mais il y aussi d'autres choses.
C85: Dans le champ AB2:CK32 on a les récapitulatifs trouvés soit dans les premières, soit dans les dernières pages des données d'une année.
C86: Les veufs et veuves sont bien connus jusqu'à 1876.
C87: Je crois que j'enlèverai aussi ces données
B89: Les personnes portant le nom PELLORCE Marie
C90: Afin de dimensionner correctement les tableaux (cachés) des données intermédiaires j'avais besoin de connaître la taille maxi des listes.
C91: Donc manuellement j'ai trouvé que le nom PELLORCE Marie représente le maximum.
C92: Ce nom se trouve dans 45 familles, dont la taille maxi est de 9 individus. La liste complète de toutes ces familles fait apparaître 201 noms.
C93: Une fois la macro au point j'ai pu vérifier que l'extraction automatique n'a rien oublié. (Ce n'est pas la macro qui oublie, c'est le concepteur qui a fait une erreur).
B95: Les dénombrements
C96: Je préfère appeler Statistiques ce que tu nommes Dénombrement.
C97: Le type de statisques présentées est très fluctuant d'une année à l'autre.
C98: Je n'en parle pas ici. Cela sera évoqué dans la présentation générale préliminaire au même titre que toutes les autres infos trouvées au Freney.

Sheet 1861
C2: Le recensement de 1861, tentative d'affectation des ménages aux hameaux
C3: En 1861, le tableau récapitulatif existe, mais il n'y a aucun nom de hameau dans la liste
B5: Tableau récapitulatif | F5: Cumul | I5: Ménages de la Liste des personnes recensées
B6: Hameau | C6: Ma | D6: Mé | E6: Ind | F6: Mé | G6: Ind | I6: Phot | J6: Page | K6: Lig | L6: n° Mé | M6: nb I | N6: C Ind | P6: Hameau reconstitué
B7: Le Bas Freney | C7: 52 | D7: 55 | E7: 195 | F7: =D7 -> 55 | G7: =E7 -> 195 | I7: 01 | J7: 1
B8: Les Chazeaux | C8: 11 | D8: 7 | E8: 23 | F8: =F7+D8 -> 62 | G8: =G7+E8 -> 218 | I8: 02 | J8: 2 | K8: 1 | L8: 1 | M8: =IF(K9<K8,K9-K8+30,K9-K8) -> 10 | N8: =M8 -> 10 | P8: Freney | S8: Le découpage des ménages est délicat
B9: Sous la Broue | C9: 5 | D9: 5 | E9: 18 | F9: =F8+D9 -> 67 | G9: =G8+E9 -> 236 | K9: 11 | L9: 2 | M9: 1 | N9: =N8+M9 -> 11 | S9: Il y a des personnes seules quelquefois groupées
B10: Sous l'Eglise | C10: 2 | D10: 1 | E10: 3 | F10: 68 | G10: 239 | K10: 12 | L10: 3 | M10: 1 | N10: =N9+M10 -> 12 | S10: Il y a des mendiants ?
B11: La Grange | C11: 7 | D11: 7 | E11: 28 | F11: 75 | G11: 267 | K11: 13 | L11: 4 | M11: 6 | N11: 18
B12: L'Eglise | C12: 2 | D12: 1 | E12: 3 | F12: 76 | G12: 270 | I12: 03 | J12: 2 | K12: 19 | L12: 5 | M12: 2 | N12: 20 | S12: Il n'est pas possible de reformer la structure du recensement de l'année 1861
B13: La Combe | C13: 15 | D13: 12 | E13: 39 | F13: =F12+D13 -> 88 | G13: =G12+E13 -> 309 | K13: 21 | L13: 6 | M13: 3 | N13: 23 | S13: Il faut retirer les infos du Passet et du Périer de 1861
B14: Le Passet | C14: 7 | D14: 4 | E14: 15 | F14: 92 | G14: 324 | K14: 24 | L14: 7 | M14: 3 | N14: 26
B15: Le Périer | C15: 21 | D15: 16 | E15: 63 | F15: 108 | G15: 387 | K15: 27 | L15: 8 | M15: 4 | N15: 30
B16: Puy le Bas | C16: 47 | D16: 42 | E16: 154 | F16: 150 | G16: 541 | I16: 04 | J16: 3 | K16: 1 | L16: 9 | M16: 3 | N16: 33
B17: Puy le Haut | C17: 32 | D17: 24 | E17: 85 | F17: 174 | G17: 626 | K17: 4 | L17: 10 | M17: 1 | N17: 34
B18: Total calculé | C18: 201 | D18: 174 | E18: 626 | K18: 5 | L18: 11 | M18: 4 | N18: 38
B19: Total annoncé à la fin | C19: 201 | D19: 174 | E19: 626 | K19: 9 | L19: 12 | M19: 2 | N19: 40
K20: 11 | L20: 13 | M20: 4 | N20: 44
K21: 15 | L21: 14 | M21: 3 | N21: 47
B22: Vérif individus | C22: 20 pages entières + 26 | I22: 05 | J22: 3 | K22: 18 | L22: 15 | M22: 7 | N22: 54
C23: =30*20+26 -> 626 | K23: 25 | L23: 16 | M23: 2 | N23: 56
K24: 27 | L24: 17 | M24: 1 | N24: 57
K25: 28 | L25: 18 | M25: 1 | N25: 58
K26: 29 | L26: 19 | M26: 1 | N26: 59
K27: 30 | L27: 20 | M27: 1 | N27: 60
I28: 06 | J28: 4 | K28: 1 | L28: 21 | M28: 2 | N28: 62
K29: 3 | L29: 22 | M29: 2 | N29: 64
K30: 5 | L30: 23 | M30: 6 | N30: 70
K31: 11 | L31: 24 | M31: 1 | N31: 71
K32: 12 | L32: 25 | M32: 2 | N32: 73
K33: 14 | L33: 26 | M33: 2 | N33: 75
K34: 16 | L34: 27 | M34: 6 | N34: 81
I35: 07 | J35: 4 | K35: 22 | L35: 28 | M35: 2 | N35: 83
K36: 24 | L36: 29 | M36: 7 | N36: 90
I37: 08 | J37: 5 | K37: 1 | L37: 30 | M37: 4 | N37: 94
K38: 5 | L38: 31 | M38: 1 | N38: 95
K39: 6 | L39: 32 | M39: 3 | N39: 98
K40: 9 | L40: 33 | M40: 4 | N40: 102
K41: 13 | L41: 34 | M41: 3 | N41: 105
I42: 09 | J42: 5 | K42: 16 | L42: 35 | M42: 6 | N42: 111
K43: 22 | L43: 36 | M43: 7 | N43: 118
K44: 29 | L44: 37 | M44: 2 | N44: 120
I45: 10 | J45: 6 | K45: 1 | L45: 38 | M45: 5 | N45: 125
K46: 6 | L46: 39 | M46: 1 | N46: 126
K47: 7 | L47: 40 | M47: 1 | N47: 127
K48: 8 | L48: 41 | M48: 3 | N48: 130
K49: 11 | L49: 42 | M49: 5 | N49: 135
I50: 11 | J50: 6 | K50: 16 | L50: 43 | M50: 4 | N50: 139
K51: 20 | L51: 44 | M51: 6 | N51: 145
K52: 26 | L52: 45 | M52: 2 | N52: 147
K53: 28 | L53: 46 | M53: 3 | N53: 150
I54: 12 | J54: 7 | K54: 1 | L54: 47 | M54: 5 | N54: 155
K55: 6 | L55: 48 | M55: 1 | N55: 156
K56: 7 | L56: 49 | M56: 3 | N56: 159
K57: 10 | L57: 50 | M57: 3 | N57: 162
K58: 13 | L58: 51 | M58: 5 | N58: 167
I59: 13 | J59: 7 | K59: 18 | L59: 52 | M59: 5 | N59: 172
K60: 23 | L60: 53 | M60: 3 | N60: 175
K61: 26 | L61: 54 | M61: 2 | N61: 177
K62: 28 | L62: 55 | M62: 5 | N62: 182
I63: 14 | J63: 8 | K63: 3 | L63: 56 | M63: 5 | N63: 187
K64: 8 | L64: 57 | M64: 8 | N64: 195
I65: 15 | J65: 8 | K65: 16 | L65: 58 | M65: 5 | N65: 200 | P65: Chazeaux
K66: 21 | L66: 59 | M66: 9 | N66: 209
K67: 30 | L67: 60 | M67: 4 | N67: 213
I68: 16 | J68: 9 | K68: 4 | L68: 61 | M68: 6 | N68: 219 | O68: 218
K69: 10 | L69: 62 | M69: 6 | N69: 225 | P69: Sous la Broue
K70: 16 | L70: 63 | M70: 2 | N70: 227
I71: 17 | J71: 9 | K71: 18 | L71: 64 | M71: 2 | N71: 229
K72: 20 | L72: 65 | M72: 6 | N72: 235 | O72: 236
K73: 26 | L73: 66 | M73: 5 | N73: 240 | O73: 239 | P73: Sous l'Eglise
I74: 18 | J74: 10 | K74: 1 | L74: 67 | M74: =IF(K75<K74,K75-K74+30,K75-K74) -> 3 | N74: =N73+M74 -> 243 | P74: La Grange
K75: 4 | L75: 68 | M75: 6 | N75: 249
K76: 10 | L76: 69 | M76: 1 | N76: 250
K77: 11 | L77: 70 | M77: 4 | N77: 254
K78: 15 | L78: 71 | M78: 3 | N78: 257
I79: 19 | J79: 10 | K79: 18 | L79: 72 | M79: 2 | N79: 259
K80: 20 | L80: 73 | M80: 3 | N80: 262
K81: 23 | L81: 74 | M81: 7 | N81: 269 | O81: 267
K82: 30 | L82: 75 | M82: 8 | N82: 277 | O82: 270 | P82: L'Eglise
I83: 20 | J83: 11 | K83: 8 | L83: 76 | M83: 7 | N83: 284 | P83: La Combe
K84: 15 | L84: 77 | M84: 2 | N84: 286
I85: 21 | J85: 11 | K85: 17 | L85: 78 | M85: 3 | N85: 289
K86: 20 | L86: 79 | M86: 5 | N86: 294
K87: 25 | L87: 80 | M87: 1 | N87: 295
K88: 26 | L88: 81 | M88: 5 | N88: 300
I89: 22 | J89: 12 | K89: 1 | L89: 82 | M89: 5 | N89: 305
K90: 6 | L90: 83 | M90: 3 | N90: 308
K91: 9 | L91: 84 | M91: 2 | N91: 310 | O91: 309
K92: 11 | L92: 85 | M92: 4 | N92: 314 | P92: Le Passet
K93: 15 | L93: 86 | M93: 3 | N93: 317
I94: 23 | J94: 12 | K94: 18 | L94: 87 | M94: 2 | N94: 319
K95: 20 | L95: 88 | M95: 5 | N95: 324
K96: 25 | L96: 89 | M96: 5 | N96: 329 | P96: Le Périer
K97: 30 | L97: 90 | M97: 1 | N97: 330
I98: 24 | J98: 13 | K98: 1 | L98: 91 | M98: 6 | N98: 336
K99: 7 | L99: 92 | M99: 3 | N99: 339
K100: 10 | L100: 93 | M100: 3 | N100: 342
K101: 13 | L101: 94 | M101: 2 | N101: 344
K102: 15 | L102: 95 | M102: 3 | N102: 347
I103: 25 | J103: 13 | K103: 18 | L103: 96 | M103: 2 | N103: 349
G104: Pris précédemment pour Le Perier | K104: 20 | L104: 97 | M104: 4 | N104: 353
K105: 24 | L105: 98 | M105: 3 | N105: 356
K106: 27 | L106: 99 | M106: 3 | N106: 359
K107: 30 | L107: 100 | M107: 3 | N107: 362
I108: 26 | J108: 14 | K108: 3 | L108: 101 | M108: 1 | N108: 363
K109: 4 | L109: 102 | M109: 1 | N109: 364
K110: 5 | L110: 103 | M110: 6 | N110: 370
E111: 420-353 | K111: 11 | L111: 104 | M111: 1 | N111: 371 | R111: Pris pour Le Périer dans les tableaux précédents
E112: =420-353 -> 67 | K112: 12 | L112: 105 | M112: 2 | N112: 373 | R112: Photo-Lig
K113: 14 | L113: 106 | M113: 2 | N113: 375 | R113: 25-20 | S113: 907, 20 | T113: FLEUR André
K114: 16 | L114: 107 | M114: 4 | N114: 379 | S114: 907,21 | T114: SARRET Françoise
I115: 27 | J115: 14 | K115: 20 | L115: 108 | M115: 2 | N115: 381 | S115: 907, 22 | T115: FLEUR Claude
K116: 22 | L116: 109 | M116: 4 | N116: 385 | O116: 387 | S116: 907, 23 | T116: FLEUR Pierre
K117: 26 | L117: 110 | M117: 5 | N117: 390 | P117: Puy le Bas | S117: 907, 24 | T117: DUSSERT Séraphin
I118: 28 | J118: 15 | K118: 1 | L118: 111 | M118: 1 | N118: 391 | S118: 907, 25 | T118: REYMOND Louise
K119: 2 | L119: 112 | M119: 6 | N119: 397 | S119: 907, 26 | T119: DUSSERT Séraphin
K120: 8 | L120: 113 | M120: 3 | N120: 400 | S120: 907, 27 | T120: ARNODET André
K121: 11 | L121: 114 | M121: 2 | N121: 402 | S121: 907, 28 | T121: CAIX Jeanne Marie
K122: 13 | L122: 115 | M122: 1 | N122: 403 | S122: 907, 29 | T122: ARNODET Eugène
K123: 14 | L123: 116 | M123: 3 | N123: 406 | S123: 907, 30 | T123: ARNODET Rémi
I124: 29 | J124: 15 | K124: 17 | L124: 117 | M124: 5 | N124: 411 | R124: 26-01 | S124: 908, 01 | T124: ARNODET Olympe
B125: Indication Puy le Haut dans la marge | K125: 22 | L125: 118 | M125: 9 | N125: 420 | S125: 908, 02 | T125: ARNODET Achille
I126: 30 | J126: 16 | K126: 1 | L126: 119 | M126: 2 | N126: 422 | S126: 908, 03 | T126: DUSSERT Anne
K127: 3 | L127: 120 | M127: 4 | N127: 426 | S127: 908, 04 | T127: ODDOUX Françoise
K128: 7 | L128: 121 | M128: 8 | N128: 434 | S128: 908, 05 | T128: DUPRE Simon
K129: 15 | L129: 122 | M129: 6 | N129: 440 | S129: 908, 06 | T129: FLEUR Jeanne
I130: 31 | J130: 16 | K130: 21 | L130: 123 | M130: 4 | N130: 444 | S130: 908, 07 | T130: DUPRE Marie
K131: 25 | L131: 124 | M131: 2 | N131: 446 | S131: 908, 08 | T131: DUPRE Philomène
K132: 27 | L132: 125 | M132: 3 | N132: 449 | S132: 908, 09 | T132: DUPRE Emilie
K133: 30 | L133: 126 | M133: 1 | N133: 450 | S133: 908, 10 | T133: DUPRE Joseph
I134: 32 | J134: 17 | K134: 1 | L134: 127 | M134: 2 | N134: 452 | S134: 908, 11 | T134: PELLORCE Marie
K135: 3 | L135: 128 | M135: 1 | N135: 453 | S135: 908, 12 | T135: PIERRA Esprit
K136: 4 | L136: 129 | M136: 4 | N136: 457 | S136: 908, 13 | T136: ESCALIER Marie-Louise
K137: 8 | L137: 130 | M137: 7 | N137: 464 | S137: 908, 14 | T137: FLEUR Etienne
K138: 15 | L138: 131 | M138: =IF(K139<K138,K139-K138+30,K139-K138) -> 6 | N138: =N137+M138 -> 470 | S138: 908, 15 | T138: FLEUR Marie
I139: 33 | J139: 17 | K139: 21 | L139: 132 | M139: 1 | N139: 471 | R139: 26-16 | S139: 909, 16 | T139: PELLORCE Alexandre
K140: 22 | L140: 133 | M140: 1 | N140: 472 | S140: 909, 17 | T140: DUSSERT Victoire
K141: 23 | L141: 134 | M141: 2 | N141: 474 | S141: 909, 18 | T141: PELLORCE Alexandre
K142: 25 | L142: 135 | M142: 2 | N142: 476 | S142: 909, 19 | T142: PELLORCE Honorine
K143: 27 | L143: 136 | M143: 3 | N143: 479 | S143: 909, 20 | T143: FLEUR Marie
K144: 30 | L144: 137 | M144: 1 | N144: 480 | S144: 909, 21 | T144: FLEUR Vincent
I145: 34 | J145: 18 | K145: 1 | L145: 138 | M145: 8 | N145: 488 | S145: 909, 22 | T145: CAIX Hippolyte
K146: 9 | L146: 139 | M146: 5 | N146: 493 | S146: 909, 23 | T146: GIROLLET Marie
K147: 14 | L147: 140 | M147: 7 | N147: 500 | S147: 909, 24 | T147: GIROLLET Marie
I148: 35 | J148: 18 | K148: 21 | L148: 141 | M148: 1 | N148: 501 | S148: 909, 25 | T148: GIROLLET Carroline
K149: 22 | L149: 142 | M149: 5 | N149: 506 | S149: 909, 26 | T149: MERVAL Paul
K150: 27 | L150: 143 | M150: 2 | N150: 508 | S150: 909, 27 | T150: VILOTIER Rose
K151: 29 | L151: 144 | M151: 4 | N151: 512 | S151: 909, 28 | T151: MERVAL Rémi
I152: 36 | J152: 19 | K152: 3 | L152: 145 | M152: 2 | N152: 514 | S152: 909, 29 | T152: MERVAL Eugénie
K153: 5 | L153: 146 | M153: 7 | N153: 521 | S153: 909, 30 | T153: PELLORCE Alexandrine
K154: 12 | L154: 147 | M154: 8 | N154: 529 | R154: 28-1 | S154: 910, 01 | T154: DUSSERT André
I155: 37 | J155: 19 | K155: 20 | L155: 148 | M155: 2 | N155: 531 | S155: 910, 02 | T155: GIROLLET Jacques
K156: 22 | L156: 149 | M156: 7 | N156: 538 | S156: 910, 03 | T156: DUSSERT Françoise
K157: 29 | L157: 150 | M157: 2 | N157: 540 | O157: 541 | S157: 910, 04 | T157: GIROLLET Marie
I158: 38 | J158: 20 | K158: 1 | L158: 151 | M158: 7 | N158: 547 | P158: Puy le Haut | S158: 910, 05 | T158: GIROLLET Amélie
K159: 8 | L159: 152 | M159: 3 | N159: 550 | S159: 910, 06 | T159: GIROLLET Rosalie
K160: 11 | L160: 153 | M160: 1 | N160: 551 | S160: 910, 07 | T160: GIROLLET Honorine
K161: 12 | L161: 154 | M161: 3 | N161: 554 | S161: 910, 08 | T161: GIRARD Antoine
K162: 15 | L162: 155 | M162: 4 | N162: 558 | S162: 910, 09 | T162: FLEUR Marie-Jeanne
I163: 39 | J163: 20 | K163: 19 | L163: 156 | M163: 8 | N163: 566 | S163: 910, 10 | T163: GIRARD Marie
K164: 27 | L164: 157 | M164: 2 | N164: 568 | S164: 910, 11 | T164: PELLISSIER Julie
K165: 29 | L165: 158 | M165: 3 | N165: 571 | S165: 910, 12 | T165: PELLISSIER Alexandrine
I166: 40 | J166: 21 | K166: 2 | L166: 159 | M166: 3 | N166: 574 | S166: 910, 13 | T166: PELLORCE Jeanne-Marie
K167: 5 | L167: 160 | M167: 5 | N167: 579 | S167: 910, 14 | T167: PELLORCE Laurent
K168: 10 | L168: 161 | M168: 2 | N168: 581 | S168: 910, 15 | T168: SARRET Magdeleine
K169: 12 | L169: 162 | M169: 1 | N169: 582 | R169: 28-16 | S169: 911, 16 | T169: PELLORCE Laurent
K170: 13 | L170: 163 | M170: 3 | N170: 585 | S170: 911, 17 | T170: CAIX Joseph
K171: 16 | L171: 164 | M171: 2 | N171: 587 | S171: 911, 18 | T171: DUSSERT Françoise
I172: 41 | J172: 21 | K172: 18 | L172: 165 | M172: 3 | N172: 590 | S172: 911, 19 | T172: DUSSERT Catherine
K173: 21 | L173: 166 | M173: 2 | N173: 592 | S173: 911, 20 | T173: DUSSERT Joseph
K174: 23 | L174: 167 | M174: 3 | N174: 595 | S174: 911, 21 | T174: CAIX Joséphine
K175: 26 | L175: 168 | M175: 8 | N175: 603
I176: 42 | J176: 22 | K176: 4 | L176: 169 | M176: 2 | N176: 605
G177: Le Passet | K177: 6 | L177: 170 | M177: 5 | N177: 610 | R177: Pris pour Le Passet dans les tableaux précédents :
K178: 11 | L178: 171 | M178: 3 | N178: 613 | R178: Lig
K179: 14 | L179: 172 | M179: 5 | N179: 618 | R179: 6 | S179: a, | T179: REYMOND Hippolyte
I180: 43 | J180: 22 | K180: 19 | L180: 173 | M180: 4 | N180: 622 | R180: 7 | S180: a, | T180: BELLET Victorine
K181: 23 | L181: 174 | M181: 4 | N181: 626 | R181: 8 | S181: a, | T181: REYMOND Octavie
K182: 27 | L182: vide | R182: 9 | S182: a, | T182: REYMOND Marie
R183: 10 | S183: a, | T183: REYMOND Hippolyte
L184: Seul Puy le Haut est cohérent | R184: 11 | S184: b, | T184: REYMOND André
L185: entre ménages et individus | R185: 12 | S185: b, | T185: REYMOND Rose
R186: 13 | S186: b, | T186: REYMOND Jeanne-Marie
R187: 14 | S187: c, | T187: REYMOND Marie
R188: 15 | S188: c, | T188: PELLORCE Etienne
R189: 16 | S189: c, | T189: PELLORCE Vincent
R190: 17 | S190: c, | T190: REYMOND Marie
R191: 18 | S191: c, | T191: PELLORCE Théophile
R192: 19 | S192: d, | T192: ORVILOY Frédéric
R193: 20 | S193: d, | T193: COMBE Marie

Sheet Liste
B1: 2397 | J1: 642
B2: Ensemble des recensements | J2: Construction des tables de la feuille "ndl" | AK2: Les récapitulatifs
V3: e
V4: m | AC4: 1836 | AG4: 1841 | AK4: 1846 | AO4: 1861 | AS4: 1866 | AW4: 1872 | BA4: 1876 | BE4: 1881 | BJ4: 1886 | BN4: 1891 | BR4: 1896 | BW4: 1901 | CA4: 1906 | CE4: 1921 | CI4: 1926
B5: Ham | C5: Année | D5: Ma, Mé, Ind | E5: Nom, Prénom originaux | F5: Âge | G5: Qualité | H5: Profession | J5: ndl Fam | K5: ndl Orig | L5: Ham | M5: Nom, Prénom uniformisés | N5: 1 | O5: n° Fam 2 | P5: Plage Famille 3 et 4 | R5: Chef | S5: Double | AC5: nb Ma | AD5: nb Mé | AE5: nb ind | AG5: nb Ma | AH5: nb Mé | AI5: nb ind | AK5: nb Ma | AL5: nb Mé | AM5: nb ind | AO5: nb Ma | AP5: nb Mé | AQ5: nb ind | AS5: nb Ma | AT5: nb Mé | AU5: nb ind | AW5: nb Ma | AX5: nb Mé | AY5: nb ind | BA5: nb Ma | BB5: nb Mé | BC5: nb ind | BE5: nb Ma | BF5: nb Mé | BG5: ind 1 | BH5: ind 2 | BJ5: nb Ma | BK5: nb Mé | BL5: nb ind | BN5: nb Ma | BO5: nb Mé | BP5: nb ind | BR5: nb Ma | BS5: nb Mé | BT5: ind 1 | BU5: ind 2 | BW5: nb Ma | BX5: nb Mé | BY5: nb ind | CA5: nb Ma | CB5: nb Mé | CC5: nb ind | CE5: nb Ma | CF5: nb Mé | CG5: nb ind | CI5: nb Ma | CJ5: nb Mé | CK5: nb ind
B6: PleBas | C6: 1846 | D6: 1, 1, 378 | E6: RANQUE Blaize | F6: 29 | G6: M veuf | H6: Cultivateur | J6: 6 | K6: 6 | L6: B | M6: RANQUE Blaise | O6: 1 | P6: 6 | Q6: 6 | R6: x | V6: =IF(AND(INDIRECT(CONCATENATE(V$3,ROW()))="",INDIRECT(CONCATENATE(V$4,ROW()))=""),"v v",IF(INDIRECT(CONCATENATE(V$3,ROW()))="","v -",IF(INDIRECT(CONCATENATE(V$4,ROW()))="","- v",IF(INDIRECT(CONCATENATE(V$3,ROW()))=INDIRECT(CONCATENATE(V$4,ROW())),"=","<>")))) -> <> | AB6: Garçons | AE6: 203 | AI6: 196 | AM6: 193 | AQ6: 170 | AU6: 168 | AY6: 145 | BC6: 137
B7: PleBas | C7: 1846 | D7: 2, 2, 379 | E7: RANQUE André | F7: 36 | G7: M | H7: Cultivateur | J7: 7 | K7: 7 | L7: B | M7: RANQUE André | O7: 2 | P7: 7 | Q7: 9 | R7: x | V7: = | AB7: Hommes mariés | AE7: 93 | AI7: 98 | AM7: 105 | AQ7: 112 | AU7: 98 | AY7: 92 | BC7: 99
B8: PleBas | C8: 1846 | D8: 2, 2, 380 | E8: SARRET Catherine | F8: 34 | G8: Mme | J8: 10 | K8: 8 | L8: B | M8: SARRET Catherine | O8: 2 | P8: 7 | Q8: 9 | V8: = | AB8: Veufs | AE8: 15 | AI8: 12 | AM8: 25 | AQ8: 20 | AU8: 25 | AY8: 21 | BC8: 12
B9: PleBas | C9: 1846 | D9: 2, 2, 381 | E9: RANQUE Joseph | F9: 3 | G9: Fils | J9: 13 | K9: 9 | L9: B | M9: RANQUE Joseph | O9: 2 | P9: 7 | Q9: 9 | V9: = | AB9: Filles | AE9: 187 | AI9: 208 | AM9: 213 | AQ9: 177 | AU9: 160 | AY9: 152 | BC9: 123
B10: PleBas | C10: 1846 | D10: 3, 3, 382 | E10: REYMOND Joseph | F10: 39 | G10: M veuf | H10: Cultivateur | J10: 14 | K10: 10 | L10: B | M10: REYMOND Joseph | O10: 3 | P10: 10 | Q10: 12 | R10: x | V10: = | AB10: Femmes mariées | AE10: 92 | AI10: 99 | AM10: 104 | AQ10: 112 | AU10: 98 | AY10: 95 | BC10: 101
B11: PleBas | C11: 1846 | D11: 3, 3, 383 | E11: REYMOND Joseph | F11: 8 | G11: Fils | J11: 16 | K11: 11 | L11: B | M11: REYMOND Joseph | O11: 3 | P11: 10 | Q11: 12 | S11: x | V11: = | AB11: Veuves | AE11: 31 | AI11: 32 | AM11: 28 | AQ11: 35 | AU11: 37 | AY11: 34 | BC11: 29
B12: PleBas | C12: 1846 | D12: 3, 3, 384 | E12: REYMOND Marie | F12: 6 | G12: Fille | J12: 24 | K12: 12 | L12: B | M12: REYMOND Marie | O12: 3 | P12: 10 | Q12: 12 | V12: = | AB12: Total calculé | AE12: =SUM(AE6:AE11) -> 621 | AI12: =SUM(AI6:AI11) -> 645 | AM12: =SUM(AM6:AM11) -> 668 | AQ12: =SUM(AQ6:AQ11) -> 626 | AU12: =SUM(AU6:AU11) -> 586 | AY12: =SUM(AY6:AY11) -> 539 | BC12: =SUM(BC6:BC11) -> 501
B13: PleBas | C13: 1846 | D13: 4, 4, 385 | E13: ARNODET Magdelaine | F13: 48 | G13: Mme | H13: Ménagère | J13: 27 | K13: 13 | L13: B | M13: ARNAUDET Madeleine | O13: 4 | P13: 13 | Q13: 13 | R13: x | V13: <> | AB13: Total annoncé | AE13: 621 | AI13: 645 | AM13: 668 | AQ13: 626 | AU13: 586 | AY13: 539 | BC13: 501
B14: PleBas | C14: 1846 | D14: 5, 5, 386 | E14: ODDOUX Etienne | F14: 66 | G14: M | H14: Cultivateur | J14: 32 | K14: 14 | L14: B | M14: ODDOUX Etienne | O14: 5 | P14: 14 | Q14: 15 | R14: x | V14: =
B15: PleBas | C15: 1846 | D15: 5, 5, 387 | E15: DUPRE Catherine | F15: 64 | G15: Mme | J15: 34 | K15: 15 | L15: B | M15: DUPRE Catherine | O15: 5 | P15: 14 | Q15: 15 | V15: = | AB15: Le Bas Freney | AC15: Pas de localisation des habitants dans les listes | AG15: Pas de localisation des habitants dans les listes | AK15: 38 | AL15: 38 | AM15: 176 | AO15: 52 | AP15: 55 | AQ15: 195 | AS15: 57 | AT15: 52 | AU15: 202 | AW15: 42 | AX15: 51 | AY15: 183 | BA15: 39 | BB15: 49 | BC15: 183 | BE15: 42 | BF15: 48 | BG15: 198 | BH15: 188 | BJ15: 42 | BK15: 52 | BL15: 179 | BN15: 47 | BO15: 51 | BP15: 176 | BR15: 41 | BS15: 49 | BT15: 158 | BU15: 157 | BW15: 62 | BX15: 53 | BY15: 186 | CA15: 54 | CB15: 51 | CC15: 169 | CE15: 48 | CF15: 37 | CG15: 145 | CI15: 44 | CJ15: 38 | CK15: 137
B16: PleBas | C16: 1846 | D16: 6, 6, 388 | E16: RANQUE Joseph | F16: 41 | G16: M | H16: Charbonnier | J16: 41 | K16: 16 | L16: B | M16: RANQUE Joseph | O16: 6 | P16: 16 | Q16: 23 | R16: x | V16: = | AB16: Le Canton | BR16: 5 | BS16: 5 | BT16: 27 | BU16: 23
B17: PleBas | C17: 1846 | D17: 6, 6, 389 | E17: PELLORCE Jeanne | F17: 43 | G17: Mme | J17: 45 | K17: 17 | L17: B | M17: PELLORCE Jeanne | O17: 6 | P17: 16 | Q17: 23 | V17: = | AB17: Les Chazeaux | AK17: 7 | AL17: 7 | AM17: 34 | AO17: 11 | AP17: 7 | AQ17: 23 | AS17: 13 | AT17: 9 | AU17: 29 | AW17: 7 | AX17: 9 | AY17: 32 | BA17: 7 | BB17: 7 | BC17: 31 | BE17: 8 | BF17: 8 | BG17: 25 | BH17: 23 | BJ17: 6 | BK17: 6 | BL17: 21 | BN17: 8 | BO17: 8 | BP17: 31 | BR17: 6 | BS17: 6 | BT17: 27 | BU17: 26 | BW17: 12 | BX17: 9 | BY17: 28 | CA17: 12 | CB17: 5 | CC17: 22 | CE17: 8 | CF17: 7 | CG17: 16 | CI17: 8 | CJ17: 4 | CK17: 14
B18: PleBas | C18: 1846 | D18: 6, 6, 390 | E18: RANQUE Pierre | F18: 15 | G18: Fils | J18: 51 | K18: 18 | L18: B | M18: RANQUE Pierre | O18: 6 | P18: 16 | Q18: 23 | V18: = | AB18: L'Ecole | BW18: 1 | BX18: 1 | BY18: 2
B19: PleBas | C19: 1846 | D19: 6, 6, 391 | E19: RANQUE Hippolyte | F19: 13 | G19: Fils | J19: 55 | K19: 19 | L19: B | M19: RANQUE Hippolyte | O19: 6 | P19: 16 | Q19: 23 | V19: = | AB19: Sous la Broue | AK19: 7 | AL19: 7 | AM19: 30 | AO19: 5 | AP19: 5 | AQ19: 18 | AS19: 5 | AT19: 4 | AU19: 10 | AW19: 5 | AX19: 5 | AY19: 17 | BA19: 4 | BB19: 4 | BC19: 17 | BE19: 5 | BF19: 5 | BG19: 23 | BH19: 25 | BJ19: 5 | BK19: 5 | BL19: 23 | BN19: 5 | BO19: 4 | BP19: 18 | BR19: 4 | BS19: 4 | BT19: 16 | BU19: 17 | BW19: 6 | BX19: 3 | BY19: 10 | CA19: 5 | CB19: 4 | CC19: 16 | CE19: 4 | CF19: 4 | CG19: 18 | CI19: 3 | CJ19: 2 | CK19: 12
B20: PleBas | C20: 1846 | D20: 6, 6, 392 | E20: RANQUE Joseph | F20: 9 | G20: Fils | J20: 61 | K20: 20 | L20: B | M20: RANQUE Joseph | O20: 6 | P20: 16 | Q20: 23 | S20: x | V20: = | AB20: Sous l'Eglise | AO20: 2 | AP20: 1 | AQ20: 3 | BN20: 2 | BO20: 1 | BP20: 3 | BW20: 3 | BX20: 1 | BY20: 3 | CA20: 3 | CB20: 1 | CC20: 4 | CE20: 1 | CF20: 1 | CG20: 10 | CI20: 1 | CJ20: 1 | CK20: 6
B21: PleBas | C21: 1846 | D21: 6, 6, 393 | E21: RANQUE Eugène | F21: 3 | G21: Fils | J21: 65 | K21: 21 | L21: B | M21: RANQUE Eugène | O21: 6 | P21: 16 | Q21: 23 | V21: = | AB21: La Grange | AK21: 6 | AL21: 6 | AM21: 21 | AO21: 7 | AP21: 7 | AQ21: 28 | AS21: 7 | AT21: 7 | AU21: 24 | AW21: 7 | AX21: 7 | AY21: 30 | BA21: 5 | BB21: 5 | BC21: 13 | BE21: 6 | BF21: 6 | BG21: 22 | BH21: 21 | BJ21: 6 | BK21: 6 | BL21: 15 | BN21: 5 | BO21: 4 | BP21: 16 | BR21: 5 | BS21: 6 | BT21: 13 | BU21: 12 | BW21: 9 | BX21: 3 | BY21: 8 | CA21: 6 | CB21: 4 | CC21: 13 | CE21: 4 | CF21: 3 | CG21: 10 | CI21: 3 | CJ21: 3 | CK21: 8
B22: PleBas | C22: 1846 | D22: 6, 6, 394 | E22: RANQUE Marguerite | F22: 17 | G22: Fille | J22: 72 | K22: 22 | L22: B | M22: RANQUE Marguerite | O22: 6 | P22: 16 | Q22: 23 | V22: = | AB22: L'Eglise | AO22: 2 | AP22: 1 | AQ22: 3 | AS22: 2 | AT22: 1 | AU22: 3 | BN22: 1 | BO22: 1 | BP22: 2
B23: PleBas | C23: 1846 | D23: 6, 6, 395 | E23: RANQUE Marie | F23: 11 | G23: Fille | J23: 76 | K23: 23 | L23: B | M23: RANQUE Marie | O23: 6 | P23: 16 | Q23: 23 | V23: = | AB23: Le presbytère | AW23: 1 | AX23: 1 | AY23: 3
B24: PleBas | C24: 1846 | D24: 7, 7, 396 | E24: CAIX Louis | F24: 30 | G24: M | H24: Marchand | J24: 79 | K24: 24 | L24: B | M24: CAIX Louis | O24: 7 | P24: 24 | Q24: 26 | R24: x | V24: = | AB24: La Combe | AK24: 14 | AL24: 14 | AM24: 42 | AO24: 15 | AP24: 12 | AQ24: 39 | AS24: 15 | AT24: 12 | AU24: 40 | AW24: 10 | AX24: 10 | AY24: 22 | BA24: 9 | BB24: 9 | BC24: 20 | BE24: 6 | BF24: 6 | BG24: 13 | BH24: 12 | BJ24: 4 | BK24: 4 | BL24: 8 | BN24: 6 | BO24: 2 | BP24: 2 | BR24: 2 | BS24: 2 | BT24: 2 | BU24: 2 | BW24: 2 | BX24: 1 | BY24: 1 | CA24: 2
B25: PleBas | C25: 1846 | D25: 7, 7, 397 | E25: RIVOIRE Catherine | F25: 27 | G25: Mme | J25: 80 | K25: 25 | L25: B | M25: RIVOIRE Catherine | O25: 7 | P25: 24 | Q25: 26 | V25: = | AB25: Le Passet | AK25: 4 | AL25: 4 | AM25: 27 | AO25: 7 | AP25: 4 | AQ25: 15 | AS25: 7 | AT25: 3 | AU25: 9 | BA25: 2 | BB25: 2 | BC25: 4 | BN25: 2 | BO25: 1 | BP25: 3 | BR25: 2 | BS25: 2 | BT25: 8 | BU25: 8 | BW25: 3 | BX25: 1 | BY25: 2 | CA25: 3 | CB25: 1 | CC25: 2 | CE25: 1
B26: PleBas | C26: 1846 | D26: 7, 7, 398 | E26: CAIX Marie | F26: 2 | G26: Fille | J26: 83 | K26: 26 | L26: B | M26: CAIX Marie | O26: 7 | P26: 24 | Q26: 26 | V26: = | AB26: Le Périer | AK26: 14 | AL26: 14 | AM26: 50 | AO26: 21 | AP26: 16 | AQ26: 63 | AS26: 22 | AT26: 12 | AU26: 46 | AW26: 13 | AX26: 13 | AY26: 48 | BA26: 12 | BB26: 13 | BC26: 44 | BE26: 10 | BF26: 10 | BG26: 38 | BH26: 36 | BJ26: 12 | BK26: 12 | BL26: 36 | BN26: 10 | BO26: 7 | BP26: 26 | BR26: 6 | BS26: 6 | BT26: 22 | BU26: 19 | BW26: 15 | BX26: 8 | BY26: 30 | CA26: 12 | CB26: 4 | CC26: 17 | CE26: 7 | CF26: 5 | CG26: 25 | CI26: 7 | CJ26: 5 | CK26: 21
B27: PleBas | C27: 1846 | D27: 8, 8, 399 | E27: DUSSERT Louis | F27: 40 | G27: M | H27: Cultivateur | J27: 87 | K27: 27 | L27: B | M27: DUSSERT Louis | O27: 8 | P27: 27 | Q27: 31 | R27: x | V27: = | AB27: Puy le Bas | AK27: 43 | AL27: 43 | AM27: 167 | AO27: 47 | AP27: 42 | AQ27: 154 | AS27: 48 | AT27: 36 | AU27: 147 | AW27: 34 | AX27: 35 | AY27: 135 | BA27: 35 | BB27: 36 | BC27: 137 | BE27: 31 | BF27: 31 | BG27: 132 | BH27: 121 | BJ27: 34 | BK27: 35 | BL27: 128 | BN27: 26 | BO27: 26 | BP27: 105 | BR27: 27 | BS27: 29 | BT27: 94 | BU27: 86 | BW27: 43 | BX27: 23 | BY27: 85 | CA27: 33 | CB27: 23 | CC27: 78 | CE27: 28 | CF27: 17 | CG27: 65 | CI27: 19 | CJ27: 15 | CK27: 57
B28: PleBas | C28: 1846 | D28: 8, 8, 400 | E28: SARRET Françoise | F28: 23 | G28: Mme | J28: 89 | K28: 28 | L28: B | M28: SARRET Françoise | O28: 8 | P28: 27 | Q28: 31 | V28: = | AB28: Lachenal | BR28: 1 | BS28: 1 | BT28: 3 | BU28: 3 | BW28: 2 | BX28: 1 | BY28: 4 | CA28: 2
B29: PleBas | C29: 1846 | D29: 8, 8, 401 | E29: REYMOND Marie vve SARRET | F29: 58 | G29: Mère de Françoise | J29: 99 | K29: 29 | L29: B | M29: REYMOND Marie | O29: 8 | P29: 27 | Q29: 31 | V29: <> | AB29: Puy le Haut | AK29: 23 | AL29: 23 | AM29: 121 | AO29: 32 | AP29: 24 | AQ29: 85 | AS29: 32 | AT29: 21 | AU29: 76 | AW29: 20 | AX29: 20 | AY29: 66 | BA29: 16 | BB29: 16 | BC29: 51 | BE29: 18 | BF29: 18 | BG29: 58 | BH29: 52 | BJ29: 12 | BK29: 12 | BL29: 41 | BN29: 14 | BO29: 14 | BP29: 41 | BR29: 10 | BS29: 10 | BT29: 36 | BU29: 31 | BW29: 22 | BX29: 8 | BY29: 29 | CA29: 17 | CB29: 8 | CC29: 27 | CE29: 5 | CF29: 4 | CG29: 22 | CI29: 6 | CJ29: 4 | CK29: 17
B30: PleBas | C30: 1846 | D30: 8, 8, 402 | E30: DUSSERT Augustin | F30: 37 | G30: Frère de Louis | J30: 105 | K30: 30 | L30: B | M30: DUSSERT Augustin | O30: 8 | P30: 27 | Q30: 31 | V30: = | AB30: Total calculé | AK30: =SUM(AK15:AK29) -> 156 | AL30: =SUM(AL15:AL29) -> 156 | AM30: =SUM(AM15:AM29) -> 668 | AO30: =SUM(AO15:AO29) -> 201 | AP30: =SUM(AP15:AP29) -> 174 | AQ30: =SUM(AQ15:AQ29) -> 626 | AS30: =SUM(AS15:AS29) -> 208 | AT30: =SUM(AT15:AT29) -> 157 | AU30: =SUM(AU15:AU29) -> 586 | AW30: =SUM(AW15:AW29) -> 139 | AX30: =SUM(AX15:AX29) -> 151 | AY30: =SUM(AY15:AY29) -> 536 | BA30: =SUM(BA15:BA29) -> 129 | BB30: =SUM(BB15:BB29) -> 141 | BC30: =SUM(BC15:BC29) -> 500 | BE30: =SUM(BE15:BE29) -> 126 | BF30: =SUM(BF15:BF29) -> 132 | BG30: =SUM(BG15:BG29) -> 509 | BH30: =SUM(BH15:BH29) -> 478 | BJ30: =SUM(BJ15:BJ29) -> 121 | BK30: =SUM(BK15:BK29) -> 132 | BL30: =SUM(BL15:BL29) -> 451 | BN30: =SUM(BN15:BN29) -> 126 | BO30: =SUM(BO15:BO29) -> 119 | BP30: =SUM(BP15:BP29) -> 423 | BR30: =SUM(BR15:BR29) -> 109 | BS30: =SUM(BS15:BS29) -> 120 | BT30: =SUM(BT15:BT29) -> 406 | BU30: =SUM(BU15:BU29) -> 384 | BW30: =SUM(BW15:BW29) -> 180 | BX30: =SUM(BX15:BX29) -> 112 | BY30: =SUM(BY15:BY29) -> 388 | CA30: =SUM(CA15:CA29) -> 149 | CB30: =SUM(CB15:CB29) -> 101 | CC30: =SUM(CC15:CC29) -> 348 | CE30: =SUM(CE15:CE29) -> 106 | CF30: =SUM(CF15:CF29) -> 78 | CG30: =SUM(CG15:CG29) -> 311 | CI30: =SUM(CI15:CI29) -> 91 | CJ30: =SUM(CJ15:CJ29) -> 72 | CK30: =SUM(CK15:CK29) -> 272
B31: PleBas | C31: 1846 | D31: 8, 8, 403 | E31: DUSSERT Pierre | F31: 35 | G31: Frère de Louis | J31: 107 | K31: 31 | L31: B | M31: DUSSERT Pierre | O31: 8 | P31: 27 | Q31: 31 | V31: = | AB31: Total annoncé au début | BE31: 126 | BF31: 132 | BH31: 478 | BJ31: 135 | BK31: 133 | BL31: 438 | BN31: 126 | BO31: 109 | BP31: 394 | BR31: 133 | BS31: 120 | BU31: 384 | BW31: 180 | BX31: 113 | BY31: 373 | CA31: 149 | CB31: 101 | CC31: 329 | CE31: 107 | CF31: 77 | CG31: 284 | CI31: 91 | CJ31: 72 | CK31: 229
B32: PleBas | C32: 1846 | D32: 9, 9, 404 | E32: RIVOIRE Catherine | F32: 53 | G32: Mme | H32: Fileuse | J32: 112 | K32: 32 | L32: B | M32: RIVOIRE Catherine | O32: 9 | P32: 32 | Q32: 33 | R32: x | V32: = | AB32: Total annoncé à la fin | AK32: 156 | AL32: 156 | AM32: 668 | AO32: 201 | AP32: 174 | AQ32: 626 | AS32: 208 | AT32: 157 | AU32: 586 | BE32: 126 | BF32: 132 | BG32: 509 | BH32: 478 | BJ32: 121 | BK32: 132 | BL32: 451 | BN32: 126 | BO32: 119 | BP32: 423 | BR32: 109 | BS32: 120 | BT32: 406 | BU32: 384 | BW32: 180 | BX32: 112 | BY32: 388 | CA32: 149 | CB32: 101 | CC32: 348 | CE32: 107 | CF32: 78 | CG32: 311 | CI32: 91 | CJ32: 72 | CK32: 272
B33: PleBas | C33: 1846 | D33: 9, 9, 405 | E33: RIVOIRE Pierre | F33: 38 | G33: M | H33: Pégneur | J33: 118 | K33: 33 | L33: B | M33: RIVOIRE Pierre | O33: 9 | P33: 32 | Q33: 33 | V33: =
B34: PleBas | C34: 1846 | D34: 10, 10, 406 | E34: PELLORCE Jean-Louis | F34: 36 | G34: M | H34: Cultivateur | J34: 122 | K34: 34 | L34: B | M34: PELLORCE Jean-Louis | O34: 10 | P34: 34 | Q34: 40 | R34: x | V34: = | AO34: Le récapitulatif existe, mais il n'y a pas de localisation des hameaux dans la liste des personnes recensées
B35: PleBas | C35: 1846 | D35: 10, 10, 407 | E35: REYMOND Marie | F35: 32 | G35: Mme | J35: 126 | K35: 35 | L35: B | M35: REYMOND Marie | O35: 10 | P35: 34 | Q35: 40 | V35: =
B36: PleBas | C36: 1846 | D36: 10, 10, 408 | E36: PELLORCE Jean-Denis | F36: 5 | G36: Fils | J36: 131 | K36: 36 | L36: B | M36: PELLORCE Jean-Denis | O36: 10 | P36: 34 | Q36: 40 | V36: =
B37: PleBas | C37: 1846 | D37: 10, 10, 409 | E37: PELLORCE Marie | F37: 3 | G37: Fille | J37: 137 | K37: 37 | L37: B | M37: PELLORCE Marie | O37: 10 | P37: 34 | Q37: 40 | V37: =
B38: PleBas | C38: 1846 | D38: 10, 10, 410 | E38: PELLORCE Sidonnie | F38: 2 | G38: Fille | J38: 139 | K38: 38 | L38: B | M38: PELLORCE Sidonnie | O38: 10 | P38: 34 | Q38: 40 | V38: =
B39: PleBas | C39: 1846 | D39: 10, 10, 411 | E39: REYMOND Jean | F39: 25 | G39: Frère de Jean-Louis | H39: Cultivateur | J39: 144 | K39: 39 | L39: B | M39: REYMOND Jean | O39: 10 | P39: 34 | Q39: 40 | V39: =
B40: PleBas | C40: 1846 | D40: 10, 10, 412 | E40: REYMOND Denis | F40: 37 | G40: Frère de Jean-Louis | H40: Cultivateur | J40: 147 | K40: 40 | L40: B | M40: REYMOND Denis | O40: 10 | P40: 34 | Q40: 40 | V40: =
B41: PleBas | C41: 1846 | D41: 11, 11, 413 | E41: PELLORCE Marie vve REYMOND | F41: 42 | G41: Mme, vve | H41: Cultivatrice | J41: 150 | K41: 41 | L41: B | M41: PELLORCE Marie | O41: 11 | P41: 41 | Q41: 44 | R41: x | V41: <>
B42: PleBas | C42: 1846 | D42: 11, 11, 414 | E42: REYMOND Rémy | F42: 14 | G42: Fils | J42: 154 | K42: 42 | L42: B | M42: REYMOND Rémy | O42: 11 | P42: 41 | Q42: 44 | V42: =
B43: PleBas | C43: 1846 | D43: 11, 11, 415 | E43: REYMOND Marie | F43: 12 | G43: Fille | J43: 158 | K43: 43 | L43: B | M43: REYMOND Marie | O43: 11 | P43: 41 | Q43: 44 | V43: =
B44: PleBas | C44: 1846 | D44: 11, 11, 416 | E44: REYMOND Denis | F44: 67 | G44: Père de Marie, veuf | J44: 163 | K44: 44 | L44: B | M44: REYMOND Denis | O44: 11 | P44: 41 | Q44: 44 | V44: =
B45: PleBas | C45: 1846 | D45: 12, 12, 417 | E45: PELLAT Denis | F45: 55 | G45: M | H45: Cultivateur | J45: 167 | K45: 45 | L45: B | M45: PELLAT Denis | O45: 12 | P45: 45 | Q45: 50 | R45: x | V45: =
B46: PleBas | C46: 1846 | D46: 12, 12, 418 | E46: BLANC Marie | F46: 50 | G46: Mme | J46: 171 | K46: 46 | L46: B | M46: BLANC Marie | O46: 12 | P46: 45 | Q46: 50 | V46: =
B47: PleBas | C47: 1846 | D47: 12, 12, 419 | E47: PELLAT Denis | F47: 15 | G47: Fils | J47: 176 | K47: 47 | L47: B | M47: PELLAT Denis | O47: 12 | P47: 45 | Q47: 50 | S47: x | V47: =
B48: PleBas | C48: 1846 | D48: 12, 12, 420 | E48: PELLAT Hippolyte | F48: 8 | G48: Fils | J48: 182 | K48: 48 | L48: B | M48: PELLAT Hippolyte | O48: 12 | P48: 45 | Q48: 50 | V48: = | AB48: Numérotation des Maisons, Ménages et Individus
B49: PleBas | C49: 1846 | D49: 12, 12, 421 | E49: PELLAT Marguerite | F49: 18 | G49: Fille | J49: 186 | K49: 49 | L49: B | M49: PELLAT Marguerite | O49: 12 | P49: 45 | Q49: 50 | V49: =
B50: PleBas | C50: 1846 | D50: 12, 12, 422 | E50: PELLAT Mélany | F50: 13 | G50: Fille | J50: 192 | K50: 50 | L50: B | M50: PELLAT Mélany | O50: 12 | P50: 45 | Q50: 50 | V50: = | AB50: 1846 | AC50: Maisons et Ménages ne sont pas différentiés, ils ont le même numéro, initialisé à chaque hameau. Les individus sont numérotés en cumulé (on ne reprend pas à 1 à chaque nouveau hameau)
B51: PleBas | C51: 1846 | D51: 14, 14, 423 | E51: GIROLLET Pierre | F51: 41 | G51: M | H51: Cultivateur | J51: 198 | K51: 51 | L51: B | M51: GIROLLET Pierre | O51: 13 | P51: 51 | Q51: 54 | R51: x | V51: = | AB51: 1866 | AC51: Maisons et Ménages ont un n° distincts, cumulé à chaque hameau (on continue). Pour les individus on n'a que les n° de ligne dans les pages. Le format utilisé est pp|nn
B52: PleBas | C52: 1846 | D52: 14, 14, 424 | E52: DUSSERT Claudine | F52: 38 | G52: Mme | J52: 205 | K52: 52 | L52: B | M52: DUSSERT Claudine | O52: 13 | P52: 51 | Q52: 54 | V52: = | AB52: 1872 | AC52: Maisons et Ménages ont un n° distincts. Ce n° est cumulé (on continue à chaque nouveau hameau). Les individus sont numérotés en cumulé (on continue à chaque nouveau hameau)
B53: PleBas | C53: 1846 | D53: 14, 14, 425 | E53: GIROLLET Pierre | F53: 9 | G53: Fils | J53: 207 | K53: 53 | L53: B | M53: GIROLLET Pierre | O53: 13 | P53: 51 | Q53: 54 | S53: x | V53: = | AB53: 1876 | AC53: Maisons et Ménages ne sont pas différentiés. Ce n° est initialisé à chaque nouveau hameau. Les individus sont numérotés en cumulé (on continue à chaque nouveau hameau)
B54: PleBas | C54: 1846 | D54: 14, 14, 426 | E54: GIROLLET Françoise | F54: 13 | G54: Fille | J54: 213 | K54: 54 | L54: B | M54: GIROLLET Françoise | O54: 13 | P54: 51 | Q54: 54 | V54: = | AB54: 1881 | AC54: Maisons et Ménages ne sont pas différentiés. Ce n° est initialisé à chaque nouveau hameau. Les individus sont numérotés en cumulé (on continue à chaque nouveau hameau)
B55: PleBas | C55: 1846 | D55: 15, 15, 427 | E55: DUSSERT Antoine | F55: 58 | G55: M | H55: Cultivateur | J55: 216 | K55: 55 | L55: B | M55: DUSSERT Antoine | O55: 14 | P55: 55 | Q55: 60 | R55: x | V55: = | AB55: 1886 | AC55: Maisons et Ménages ont un n° distincts. Ce n° est initialisé à chaque nouveau hameau. Les individus des hameaux sont numérotés séparément
B56: PleBas | C56: 1846 | D56: 15, 15, 428 | E56: DUPRE Geneviève | F56: 47 | G56: Mme | J56: 220 | K56: 56 | L56: B | M56: DUPRE Geneviève | O56: 14 | P56: 55 | Q56: 60 | V56: = | AB56: 1891 | AC56: Maisons et Ménages ont un n° distincts. Ce n° est initialisé à chaque nouveau hameau. Les individus des hameaux sont numérotés séparément
B57: PleBas | C57: 1846 | D57: 15, 15, 429 | E57: DUSSERT Louis | F57: 25 | G57: Fils | J57: 227 | K57: 57 | L57: B | M57: DUSSERT Louis | O57: 14 | P57: 55 | Q57: 60 | V57: = | AB57: 1896 | AC57: Maisons et Ménages ont un n° distincts. Ce n° est cumulé (on continue à chaque nouveau hameau). Pour les individus il n'y a aucune numérotation.On reprend donc le format pp|nn des n° de ligne (à compter) dans chaque page
B58: PleBas | C58: 1846 | D58: 15, 15, 430 | E58: DUSSERT Jean | F58: 16 | G58: Fils | J58: 231 | K58: 58 | L58: B | M58: DUSSERT Jean | O58: 14 | P58: 55 | Q58: 60 | V58: = | AB58: 1901 | AC58: Seul le n° de maison est indiqué, il est initialisé à chaque nouveau hameau. Les individus sont numérotés en cumulé
B59: PleBas | C59: 1846 | D59: 15, 15, 431 | E59: DUSSERT Alphonse | F59: 9 | G59: Fils | J59: 236 | K59: 59 | L59: B | M59: DUSSERT Alphonse | O59: 14 | P59: 55 | Q59: 60 | V59: = | AB59: 1906 | AC59: Seul le n° de maison est indiqué, il est initialisé à chaque nouveau hameau. Les individus sont numérotés en cumulé
B60: PleBas | C60: 1846 | D60: 15, 15, 432 | E60: DUSSERT Marie | F60: 22 | G60: Fille | J60: 238 | K60: 60 | L60: B | M60: DUSSERT Marie | O60: 14 | P60: 55 | Q60: 60 | V60: = | AB60: 1921 | AC60: Le n° de la maison est remplacé apparemment par le n° de la parcelle, mais il y a des discordances. Le n° de ménage est initialisé à chaque nouveau hameau. Pour les individus il n'y a aucune numérotation.On reprend donc le format pp|nn des n° de ligne (à compter) dans chaque page
B61: PleBas | C61: 1846 | D61: 16, 16, 433 | E61: ARLOT Appolinaire | F61: 67 | G61: M | H61: Indigent | J61: 241 | K61: 61 | L61: B | M61: ARLOT Appolinaire | O61: 15 | P61: 61 | Q61: 64 | R61: x | V61: = | AB61: 1926 | AC61: Le n° de la maison est remplacé apparemment par le n° de la parcelle, mais il y a des discordances. Le n° de ménage est initialisé à chaque nouveau hameau. Les individus des hameaux sont numérotés séparément
B62: PleBas | C62: 1846 | D62: 16, 16, 434 | E62: DUPRE Marie vve ARLOT | F62: 65 | G62: Mme | J62: 245 | K62: 62 | L62: B | M62: DUPRE Marie | O62: 15 | P62: 61 | Q62: 64 | V62: <>
B63: PleBas | C63: 1846 | D63: 16, 16, 435 | E63: ARLOT Marie | F63: 42 | G63: Fille | H63: Domestique | J63: 247 | K63: 63 | L63: B | M63: ARLOT Marie | O63: 15 | P63: 61 | Q63: 64 | V63: =
B64: PleBas | C64: 1846 | D64: 16, 16, 436 | E64: ARLOT Rosalie | F64: 38 | G64: Fille | J64: 250 | K64: 64 | L64: B | M64: ARLOT Rosalie | O64: 15 | P64: 61 | Q64: 64 | V64: =
B65: PleBas | C65: 1846 | D65: 17, 17, 437 | E65: RANQUE Claude | F65: 39 | G65: M | H65: Cultivateur | J65: 254 | K65: 65 | L65: B | M65: RANQUE Claude | O65: 16 | P65: 65 | Q65: 71 | R65: x | V65: =
B66: PleBas | C66: 1846 | D66: 17, 17, 438 | E66: ARLOT Marianne | F66: 42 | G66: Mme | J66: 256 | K66: 66 | L66: B | M66: ARLOT Marianne | O66: 16 | P66: 65 | Q66: 71 | V66: =
B67: PleBas | C67: 1846 | D67: 17, 17, 439 | E67: RANQUE Claude | F67: 3 | G67: Fils | J67: 261 | K67: 67 | L67: B | M67: RANQUE Claude | O67: 16 | P67: 65 | Q67: 71 | S67: x | V67: =
B68: PleBas | C68: 1846 | D68: 17, 17, 440 | E68: RANQUE Marie | F68: 5 | G68: Fille | J68: 264 | K68: 68 | L68: B | M68: RANQUE Marie | O68: 16 | P68: 65 | Q68: 71 | V68: =
B69: PleBas | C69: 1846 | D69: 17, 17, 441 | E69: RANQUE Anne | F69: 1 | G69: Fille | J69: 270 | K69: 69 | L69: B | M69: RANQUE Anne | O69: 16 | P69: 65 | Q69: 71 | V69: =
B70: PleBas | C70: 1846 | D70: 17, 17, 442 | E70: ARLOT Joseph | F70: 70 | G70: Père de Claude, veuf | J70: 273 | K70: 70 | L70: B | M70: ARLOT Joseph | O70: 16 | P70: 65 | Q70: 71 | V70: =IF(AND(INDIRECT(CONCATENATE(V$3,ROW()))="",INDIRECT(CONCATENATE(V$4,ROW()))=""),"v v",IF(INDIRECT(CONCATENATE(V$3,ROW()))="","v -",IF(INDIRECT(CONCATENATE(V$4,ROW()))="","- v",IF(INDIRECT(CONCATENATE(V$3,ROW()))=INDIRECT(CONCATENATE(V$4,ROW())),"=","<>")))) -> =
B71: PleBas | C71: 1846 | D71: 17, 17, 443 | E71: DUSSERT Marie vve RANQUE | F71: 70 | G71: Mère de Claude, vve | J71: 276 | K71: 71 | L71: B | M71: DUSSERT Marie | O71: 16 | P71: 65 | Q71: 71 | V71: <>
B72: PleBas | C72: 1846 | D72: 18, 18, 444 | E72: PELLISSIER Anne vve GIROLLET | F72: 48 | G72: Mme, vve | H72: Journalière | J72: 277 | K72: 72 | L72: B | M72: PELLISSIER Anne | O72: 17 | P72: 72 | Q72: 75 | R72: x | V72: <>
B73: PleBas | C73: 1846 | D73: 18, 18, 445 | E73: GIROLLET Françoise | F73: 26 | G73: Fille | J73: 278 | K73: 73 | L73: B | M73: GIROLLET Françoise | O73: 17 | P73: 72 | Q73: 75 | V73: =
B74: PleBas | C74: 1846 | D74: 18, 18, 446 | E74: GIROLLET Marie | F74: 22 | G74: Fille | J74: 285 | K74: 74 | L74: B | M74: GIROLLET Marie | O74: 17 | P74: 72 | Q74: 75 | V74: =
B75: PleBas | C75: 1846 | D75: 18, 18, 447 | E75: GIROLLET Rosalie | F75: 18 | G75: Fille | J75: 292 | K75: 75 | L75: B | M75: GIROLLET Rosalie | O75: 17 | P75: 72 | Q75: 75 | V75: =
B76: PleBas | C76: 1846 | D76: 19, 19, 448 | E76: MICHEL Marie | F76: 37 | G76: Mme | H76: Cultivatrice | J76: 295 | K76: 76 | L76: B | M76: MICHEL Marie | O76: 18 | P76: 76 | Q76: 78 | R76: x | V76: =
B77: PleBas | C77: 1846 | D77: 19, 19, 449 | E77: MICHEL Victoire | F77: 18 | G77: Fille | J77: 300 | K77: 77 | L77: B | M77: MICHEL Victoire | O77: 18 | P77: 76 | Q77: 78 | V77: =
B78: PleBas | C78: 1846 | D78: 19, 19, 450 | E78: MICHEL Joseph | F78: 3 | G78: Fils | J78: 304 | K78: 78 | L78: B | M78: MICHEL Joseph | O78: 18 | P78: 76 | Q78: 78 | V78: =
B79: PleBas | C79: 1846 | D79: 20, 20, 451 | E79: PELLORCE Anne | F79: 43 | G79: Mme | H79: Cultivatrice | J79: 311 | K79: 79 | L79: B | M79: PELLORCE Anne | O79: 19 | P79: 79 | Q79: 79 | R79: x | V79: =
B80: PleBas | C80: 1846 | D80: 21, 21, 452 | E80: RIVOIRE Mathieu | F80: 58 | G80: M veuf | H80: Cultivateur | J80: 315 | K80: 80 | L80: B | M80: RIVOIRE Mathieu | O80: 20 | P80: 80 | Q80: 82 | R80: x | V80: =
B81: PleBas | C81: 1846 | D81: 21, 21, 453 | E81: RIVOIRE André | F81: 23 | G81: Fils | J81: 319 | K81: 81 | L81: B | M81: RIVOIRE André | O81: 20 | P81: 80 | Q81: 82 | V81: =
B82: PleBas | C82: 1846 | D82: 21, 21, 454 | E82: RIVOIRE Louise | F82: 15 | G82: Fille | J82: 322 | K82: 82 | L82: B | M82: RIVOIRE Louise | O82: 20 | P82: 80 | Q82: 82 | V82: =
B83: PleBas | C83: 1846 | D83: 22, 22, 455 | E83: VEYRAT Anne vve DUSSERT | F83: 53 | G83: Mme, vve | H83: Cultivatrice | J83: 323 | K83: 83 | L83: B | M83: VEYRAT Anne | O83: 21 | P83: 83 | Q83: 86 | R83: x | V83: <>
B84: PleBas | C84: 1846 | D84: 22, 22, 456 | E84: DUSSERT Jean-Baptiste | F84: 21 | G84: Fils | J84: 329 | K84: 84 | L84: B | M84: DUSSERT Jean-Baptiste | O84: 21 | P84: 83 | Q84: 86 | V84: =
B85: PleBas | C85: 1846 | D85: 22, 22, 457 | E85: DUSSERT Auguste | F85: 16 | G85: Fils | J85: 335 | K85: 85 | L85: B | M85: DUSSERT Auguste | O85: 21 | P85: 83 | Q85: 86 | V85: =
B86: PleBas | C86: 1846 | D86: 22, 22, 458 | E86: DUSSERT Marie | F86: 23 | G86: Fille | J86: 338 | K86: 86 | L86: B | M86: DUSSERT Marie | O86: 21 | P86: 83 | Q86: 86 | V86: =
B87: PleBas | C87: 1846 | D87: 23, 23, 459 | E87: DUSSERT Magdelaine vve PELLORCE | F87: 62 | G87: Mme, vve | H87: Cultivatrice | J87: 343 | K87: 87 | L87: B | M87: DUSSERT Madeleine | O87: 22 | P87: 87 | Q87: 88 | R87: x | V87: <>
B88: PleBas | C88: 1846 | D88: 23, 23, 460 | E88: PELLORCE Marie | F88: 27 | G88: Fille | J88: 349 | K88: 88 | L88: B | M88: PELLORCE Marie | O88: 22 | P88: 87 | Q88: 88 | V88: =
B89: PleBas | C89: 1846 | D89: 24, 24, 461 | E89: GIROUD Jean-Louis | F89: 55 | G89: M | H89: Cultivateur | J89: 350 | K89: 89 | L89: B | M89: GIROUD Jean-Louis | O89: 23 | P89: 89 | Q89: 98 | R89: x | V89: =
B90: PleBas | C90: 1846 | D90: 24, 24, 462 | E90: ARLOT Anne-Marie | F90: 47 | G90: Mme | J90: 356 | K90: 90 | L90: B | M90: ARLOT Anne-Marie | O90: 23 | P90: 89 | Q90: 98 | V90: =
B91: PleBas | C91: 1846 | D91: 24, 24, 463 | E91: GIROUD Joseph | F91: 23 | G91: Fils | J91: 361 | K91: 91 | L91: B | M91: GIROUD Joseph | O91: 23 | P91: 89 | Q91: 98 | V91: =
B92: PleBas | C92: 1846 | D92: 24, 24, 464 | E92: GIROUD Hippolyte | F92: 18 | G92: Fils | J92: 363 | K92: 92 | L92: B | M92: GIROUD Hippolyte | O92: 23 | P92: 89 | Q92: 98 | V92: =
B93: PleBas | C93: 1846 | D93: 24, 24, 465 | E93: GIROUD François | F93: 15 | G93: Fils | J93: 367 | K93: 93 | L93: B | M93: GIROUD François | O93: 23 | P93: 89 | Q93: 98 | V93: = | CQ93: 1
B94: PleBas | C94: 1846 | D94: 24, 24, 466 | E94: GIROUD Maximin | F94: 1 | G94: Fils | J94: 369 | K94: 94 | L94: B | M94: GIROUD Maximin | O94: 23 | P94: 89 | Q94: 98 | V94: = | CQ94: 1
B95: PleBas | C95: 1846 | D95: 24, 24, 467 | E95: GIROUD Eugène | F95: 3 | G95: Fils | J95: 373 | K95: 95 | L95: B | M95: GIROUD Eugène | O95: 23 | P95: 89 | Q95: 98 | V95: = | CQ95: 1
B96: PleBas | C96: 1846 | D96: 24, 24, 468 | E96: GIROUD Marie | F96: 13 | G96: Fille | J96: 377 | K96: 96 | L96: B | M96: GIROUD Marie | O96: 23 | P96: 89 | Q96: 98 | V96: = | CQ96: 1
B97: PleBas | C97: 1846 | D97: 24, 24, 469 | E97: GIROUD Victorine | F97: 10 | G97: Fille | J97: 380 | K97: 97 | L97: B | M97: GIROUD Victorine | O97: 23 | P97: 89 | Q97: 98 | V97: = | CQ97: 1
B98: PleBas | C98: 1846 | D98: 24, 24, 470 | E98: GIROUD Magdelaine | F98: 55 | H98: Fileuse | J98: 383 | K98: 98 | L98: B | M98: GIROUD Madeleine | O98: 23 | P98: 89 | Q98: 98 | V98: <> | CQ98: 1
B99: PleBas | C99: 1846 | D99: 25, 25, 471 | E99: RIVOIRE André | F99: 38 | G99: M | H99: Cultivateur | J99: 387 | K99: 99 | L99: B | M99: RIVOIRE André | O99: 24 | P99: 99 | Q99: 104 | R99: x | V99: = | CQ99: 1
B100: PleBas | C100: 1846 | D100: 25, 25, 472 | E100: GIROUD Louise feu RIVOIRE | F100: 37 | G100: Mme | J100: 390 | K100: 100 | L100: B | M100: GIROUD Louise | O100: 24 | P100: 99 | Q100: 104 | V100: <>
B101: PleBas | C101: 1846 | D101: 25, 25, 473 | E101: RIVOIRE Joseph | F101: 14 | G101: Fils | J101: 393 | K101: 101 | L101: B | M101: RIVOIRE Joseph | O101: 24 | P101: 99 | Q101: 104 | V101: =
B102: PleBas | C102: 1846 | D102: 25, 25, 474 | E102: RIVOIRE Alexandre | F102: 12 | G102: Fils | J102: 398 | K102: 102 | L102: B | M102: RIVOIRE Alexandre | O102: 24 | P102: 99 | Q102: 104 | V102: =
B103: PleBas | C103: 1846 | D103: 25, 25, 475 | E103: RIVOIRE Firmin | F103: 6 | G103: Fils | J103: 399 | K103: 103 | L103: B | M103: RIVOIRE Firmin | O103: 24 | P103: 99 | Q103: 104 | V103: =
B104: PleBas | C104: 1846 | D104: 25, 25, 476 | E104: RIVOIRE Marie | F104: 9 | G104: Fille | J104: 401 | K104: 104 | L104: B | M104: RIVOIRE Marie | O104: 24 | P104: 99 | Q104: 104 | V104: =
B105: PleBas | C105: 1846 | D105: 26, 26, 477 | E105: MICHEL Janne vve RANQUE | F105: 37 | G105: Mme, vve | H105: Cultivatrice | J105: 409 | K105: 105 | L105: B | M105: MICHEL Jeanne | O105: 25 | P105: 105 | Q105: 106 | R105: x | V105: <>
B106: PleBas | C106: 1846 | D106: 26, 26, 478 | E106: RANQUE Jean-Claude | F106: 18 | G106: Fils | J106: 410 | K106: 106 | L106: B | M106: RANQUE Jean-Claude | O106: 25 | P106: 105 | Q106: 106 | V106: =
B107: PleBas | C107: 1846 | D107: 27, 27, 479 | E107: DUSSER Pierre | F107: 49 | G107: M | H107: Journalier | J107: 415 | K107: 107 | L107: B | M107: DUSSERT Pierre | O107: 26 | P107: 107 | Q107: 111 | R107: x | V107: <> | CN107: DUSSERT Pierre
B108: PleBas | C108: 1846 | D108: 27, 27, 480 | E108: RANQUE Janne | F108: 55 | G108: Mme | J108: 420 | K108: 108 | L108: B | M108: RANQUE Jeanne | O108: 26 | P108: 107 | Q108: 111 | V108: <>
B109: PleBas | C109: 1846 | D109: 27, 27, 481 | E109: DUSSER Louise | F109: 17 | G109: Fille | J109: 427 | K109: 109 | L109: B | M109: DUSSERT Louise | O109: 26 | P109: 107 | Q109: 111 | V109: <> | CN109: DUSSERT Louise
B110: PleBas | C110: 1846 | D110: 27, 27, 482 | E110: DUSSER Pélagie | F110: 9 | G110: Fille | J110: 433 | K110: 110 | L110: B | M110: DUSSERT Pélagie | O110: 26 | P110: 107 | Q110: 111 | V110: <> | CN110: DUSSERT Pélagie
B111: PleBas | C111: 1846 | D111: 27, 27, 483 | E111: CORBIER Pierre | F111: 7 | G111: Hospice en nourisse | J111: 435 | K111: 111 | L111: B | M111: CORBIER Pierre | O111: 26 | P111: 107 | Q111: 111 | V111: =
B112: PleBas | C112: 1846 | D112: 28, 28, 484 | E112: ODOUX Jean | F112: 60 | G112: M | H112: Cultivateur | J112: 439 | K112: 112 | L112: B | M112: ODDOUX Jean | O112: 27 | P112: 112 | Q112: 117 | R112: x | V112: <>
B113: PleBas | C113: 1846 | D113: 28, 28, 485 | E113: FLEUR Janne vve ODDOUX | F113: 53 | G113: Mme | J113: 441 | K113: 113 | L113: B | M113: FLEUR Jeanne | O113: 27 | P113: 112 | Q113: 117 | V113: <>
B114: PleBas | C114: 1846 | D114: 28, 28, 486 | E114: ODDOUX Jean-Baptiste | F114: 19 | G114: Fils | J114: 445 | K114: 114 | L114: B | M114: ODDOUX Jean-Baptiste | O114: 27 | P114: 112 | Q114: 117 | V114: =
B115: PleBas | C115: 1846 | D115: 28, 28, 487 | E115: ODDOUX Vincent | F115: 10 | G115: Fils | J115: 451 | K115: 115 | L115: B | M115: ODDOUX Vincent | O115: 27 | P115: 112 | Q115: 117 | V115: =
B116: PleBas | C116: 1846 | D116: 28, 28, 488 | E116: ODDOUX Anne | F116: 23 | G116: Fille | J116: 455 | K116: 116 | L116: B | M116: ODDOUX Anne | O116: 27 | P116: 112 | Q116: 117 | V116: =
B117: PleBas | C117: 1846 | D117: 28, 28, 489 | E117: ODOUX Marie | F117: 15 | G117: Fille | J117: 460 | K117: 117 | L117: B | M117: ODDOUX Marie | O117: 27 | P117: 112 | Q117: 117 | V117: <>
B118: PleBas | C118: 1846 | D118: 29, 29, 490 | E118: GIROLLET Hippolyte | F118: 40 | G118: M | H118: Cultivateur | J118: 467 | K118: 118 | L118: B | M118: GIROLLET Hippolyte | O118: 28 | P118: 118 | Q118: 121 | R118: x | V118: =
B119: PleBas | C119: 1846 | D119: 29, 29, 491 | E119: PELLESSIER Marie vve GIROLLET | F119: 36 | G119: Mme | J119: 471 | K119: 119 | L119: B | M119: PELLISSIER Marie | O119: 28 | P119: 118 | Q119: 121 | V119: <>
B120: PleBas | C120: 1846 | D120: 29, 29, 492 | E120: GIROLLET Hippolyte | F120: 2 | G120: Fils | J120: 475 | K120: 120 | L120: B | M120: GIROLLET Hippolyte | O120: 28 | P120: 118 | Q120: 121 | S120: x | V120: =
B121: PleBas | C121: 1846 | D121: 29, 29, 493 | E121: inconnu Marie | F121: 6 | G121: en nourisse | J121: 479 | K121: 121 | L121: B | M121: inconnu Marie | O121: 28 | P121: 118 | Q121: 121 | V121: =
B122: PleBas | C122: 1846 | D122: 30, 30, 494 | E122: MICHEL Catherine | F122: 37 | G122: Mme | H122: Cultivatrice | J122: 487 | K122: 122 | L122: B | M122: MICHEL Catherine | O122: 29 | P122: 122 | Q122: 125 | R122: x | V122: =
B123: PleBas | C123: 1846 | D123: 30, 30, 495 | E123: MICHEL Marie | F123: 19 | G123: Fille | J123: 492 | K123: 123 | L123: B | M123: MICHEL Marie | O123: 29 | P123: 122 | Q123: 125 | V123: =
B124: PleBas | C124: 1846 | D124: 30, 30, 496 | E124: MICHEL Catherine | F124: 15 | G124: Fille | J124: 498 | K124: 124 | L124: B | M124: MICHEL Catherine | O124: 29 | P124: 122 | Q124: 125 | S124: x | V124: =
B125: PleBas | C125: 1846 | D125: 30, 30, 497 | E125: MICHEL Mélany | F125: 12 | G125: Fille | J125: 503 | K125: 125 | L125: B | M125: MICHEL Mélany | O125: 29 | P125: 122 | Q125: 125 | V125: =
B126: PleBas | C126: 1846 | D126: 31, 31, 498 | E126: RIVOIRE Matthieu | F126: 47 | G126: M | H126: Cultivateur | J126: 505 | K126: 126 | L126: B | M126: RIVOIRE Mathieu | O126: 30 | P126: 126 | Q126: 130 | R126: x | V126: <>
B127: PleBas | C127: 1846 | D127: 31, 31, 499 | E127: PELLORCE Marie feu RIVOIRE | F127: 36 | G127: Mme | J127: 506 | K127: 127 | L127: B | M127: PELLORCE Marie | O127: 30 | P127: 126 | Q127: 130 | V127: <>
B128: PleBas | C128: 1846 | D128: 31, 31, 500 | E128: RIVOIRE Hypollite | F128: 6 | G128: Fils | J128: 512 | K128: 128 | L128: B | M128: RIVOIRE Hippolyte | O128: 30 | P128: 126 | Q128: 130 | V128: <>
B129: PleBas | C129: 1846 | D129: 31, 31, 501 | E129: RIVOIRE Mélany | F129: 11 | G129: Fille | J129: 517 | K129: 129 | L129: B | M129: RIVOIRE Mélanie | O129: 30 | P129: 126 | Q129: 130 | V129: <>
B130: PleBas | C130: 1846 | D130: 31, 31, 502 | E130: RIVOIRE Poline | F130: 1 | G130: Fille | J130: 522 | K130: 130 | L130: B | M130: RIVOIRE Poline | O130: 30 | P130: 126 | Q130: 130 | V130: =
B131: PleBas | C131: 1846 | D131: 32, 32, 503 | E131: REYMOND Joseph | F131: 64 | G131: M, veuf | H131: Cultivateur | J131: 523 | K131: 131 | L131: B | M131: REYMOND Joseph | O131: 31 | P131: 131 | Q131: 136 | R131: x | V131: =
B132: PleBas | C132: 1846 | D132: 32, 32, 504 | E132: REYMOND Janne-Marie | F132: 40 | G132: Fille | J132: 529 | K132: 132 | L132: B | M132: REYMOND Jeanne-Marie | O132: 31 | P132: 131 | Q132: 136 | V132: <>
B133: PleBas | C133: 1846 | D133: 32, 32, 505 | E133: REYMOND Rose | F133: 38 | G133: Fille | J133: 532 | K133: 133 | L133: B | M133: REYMOND Rose | O133: 31 | P133: 131 | Q133: 136 | V133: =
B134: PleBas | C134: 1846 | D134: 32, 32, 506 | E134: REYMOND Françoise | F134: 27 | G134: Fille | J134: 538 | K134: 134 | L134: B | M134: REYMOND Françoise | O134: 31 | P134: 131 | Q134: 136 | V134: =IF(AND(INDIRECT(CONCATENATE(V$3,ROW()))="",INDIRECT(CONCATENATE(V$4,ROW()))=""),"v v",IF(INDIRECT(CONCATENATE(V$3,ROW()))="","v -",IF(INDIRECT(CONCATENATE(V$4,ROW()))="","- v",IF(INDIRECT(CONCATENATE(V$3,ROW()))=INDIRECT(CONCATENATE(V$4,ROW())),"=","<>")))) -> =
B135: PleBas | C135: 1846 | D135: 32, 32, 507 | E135: REYMOND Louise | F135: 18 | G135: Fille | J135: 543 | K135: 135 | L135: B | M135: REYMOND Louise | O135: 31 | P135: 131 | Q135: 136 | V135: =
B136: PleBas | C136: 1846 | D136: 32, 32, 508 | E136: FAVOT Frédéric | F136: 22 | G136: Hospice | J136: 546 | K136: 136 | L136: B | M136: FAVOT Frédéric | O136: 31 | P136: 131 | Q136: 136 | V136: =
B137: PleBas | C137: 1846 | D137: 33, 33, 509 | E137: REYMOND Catherine vve DUSSER | F137: 42 | G137: Mme, vve | H137: Rentière | J137: 550 | K137: 137 | L137: B | M137: REYMOND Catherine | O137: 32 | P137: 137 | Q137: 138 | R137: x | V137: <>
B138: PleBas | C138: 1846 | D138: 33, 33, 510 | E138: DUSSER Marie Célestine | F138: 15 | G138: Fille | J138: 554 | K138: 138 | L138: B | M138: DUSSERT Marie-Célestine | O138: 32 | P138: 137 | Q138: 138 | V138: <> | CN138: DUSSERT Marie Célestine
B139: PleBas | C139: 1846 | D139: 34, 34, 511 | E139: PELLAT André | F139: 65 | G139: M | H139: Cultivateur | J139: 556 | K139: 139 | L139: B | M139: PELLAT André | O139: 33 | P139: 139 | Q139: 143 | R139: x | V139: =
B140: PleBas | C140: 1846 | D140: 34, 34, 512 | E140: VIEUX Cécile feu Pellat | F140: 64 | G140: Mme | J140: 557 | K140: 140 | L140: B | M140: VIEUX Cécile | O140: 33 | P140: 139 | Q140: 143 | V140: <>
B141: PleBas | C141: 1846 | D141: 34, 34, 513 | E141: PELLAT André | F141: 20 | G141: Fils | J141: 561 | K141: 141 | L141: B | M141: PELLAT André | O141: 33 | P141: 139 | Q141: 143 | S141: x | V141: =
B142: PleBas | C142: 1846 | D142: 34, 34, 514 | E142: PELLAT Jean | F142: 17 | G142: Fils | J142: 562 | K142: 142 | L142: B | M142: PELLAT Jean | O142: 33 | P142: 139 | Q142: 143 | V142: =
B143: PleBas | C143: 1846 | D143: 34, 34, 515 | E143: PELLAT Magdeleine | F143: 23 | G143: Fille | J143: 565 | K143: 143 | L143: B | M143: PELLAT Madeleine | O143: 33 | P143: 139 | Q143: 143 | V143: <>
B144: PleBas | C144: 1846 | D144: 35, 35, 516 | E144: REYMOND Louis | F144: 33 | G144: M | H144: Cultivateur | J144: 567 | K144: 144 | L144: B | M144: REYMOND Louis | O144: 34 | P144: 144 | Q144: 146 | R144: x | V144: =
B145: PleBas | C145: 1846 | D145: 35, 35, 517 | E145: REYMOND Magdeleine feu REYMOND | F145: 27 | G145: Mme | J145: 570 | K145: 145 | L145: B | M145: REYMOND Madeleine | O145: 34 | P145: 144 | Q145: 146 | V145: <>
B146: PleBas | C146: 1846 | D146: 35, 35, 518 | E146: REYMOND Marie | F146: 1 | G146: Fille | J146: 573 | K146: 146 | L146: B | M146: REYMOND Marie | O146: 34 | P146: 144 | Q146: 146 | V146: =
B147: PleBas | C147: 1846 | D147: 36, 36, 519 | E147: FLEUR Joseph | F147: 34 | G147: M | H147: Cultivateur | J147: 578 | K147: 147 | L147: B | M147: FLEUR Joseph | O147: 35 | P147: 147 | Q147: 149 | R147: x | V147: =
B148: PleBas | C148: 1846 | D148: 36, 36, 520 | E148: REYMOND Anne feu FLEUR | F148: 28 | G148: Mme | J148: 583 | K148: 148 | L148: B | M148: REYMOND Anne | O148: 35 | P148: 147 | Q148: 149 | V148: <>
B149: PleBas | C149: 1846 | D149: 36, 36, 521 | E149: FLEUR Anne-Marie | F149: 1 | G149: Fille | J149: 588 | K149: 149 | L149: B | M149: FLEUR Anne-Marie | O149: 35 | P149: 147 | Q149: 149 | V149: =
B150: PleBas | C150: 1846 | D150: 37, 37, 522 | E150: REYMOND Blaize | F150: 46 | G150: M | H150: Cultivateur | J150: 589 | K150: 150 | L150: B | M150: REYMOND Blaise | O150: 36 | P150: 150 | Q150: 153 | R150: x | V150: <>
B151: PleBas | C151: 1846 | D151: 37, 37, 523 | E151: PELLAT Janne feu REYMOND | F151: 43 | G151: Mme | J151: 591 | K151: 151 | L151: B | M151: PELLAT Jeanne | O151: 36 | P151: 150 | Q151: 153 | V151: <>
B152: PleBas | C152: 1846 | D152: 37, 37, 524 | E152: REYMOND Françoise | F152: 17 | G152: Fille | J152: 592 | K152: 152 | L152: B | M152: REYMOND Françoise | O152: 36 | P152: 150 | Q152: 153 | V152: =
B153: PleBas | C153: 1846 | D153: 37, 37, 525 | E153: REYMOND Blaize | F153: 33 | G153: Père de Blaize, veuf | J153: 598 | K153: 153 | L153: B | M153: REYMOND Blaise | O153: 36 | P153: 150 | Q153: 153 | S153: x | V153: <>
B154: PleBas | C154: 1846 | D154: 38, 38, 526 | E154: RIVOIRE Laurent | F154: 73 | G154: M, veuf | H154: Cultivateur | J154: 600 | K154: 154 | L154: B | M154: RIVOIRE Laurent | O154: 37 | P154: 154 | Q154: 157 | R154: x | V154: =
B155: PleBas | C155: 1846 | D155: 38, 38, 527 | E155: RIVOIRE Françoise | F155: 38 | G155: Fille | J155: 606 | K155: 155 | L155: B | M155: RIVOIRE Françoise | O155: 37 | P155: 154 | Q155: 157 | V155: =
B156: PleBas | C156: 1846 | D156: 38, 38, 528 | E156: RIVOIRE Magdeleine | F156: 45 | G156: Fille | J156: 609 | K156: 156 | L156: B | M156: RIVOIRE Madeleine | O156: 37 | P156: 154 | Q156: 157 | V156: <>
B157: PleBas | C157: 1846 | D157: 38, 38, 529 | E157: RIVOIRE Marie | F157: 6 | G157: Fille de Françoise | J157: 614 | K157: 157 | L157: B | M157: RIVOIRE Marie | O157: 37 | P157: 154 | Q157: 157 | V157: =
B158: PleBas | C158: 1846 | D158: 39, 39, 530 | E158: REYMOND Jean | F158: 79 | G158: M | H158: Cultivateur | J158: 616 | K158: 158 | L158: B | M158: REYMOND Jean | O158: 38 | P158: 158 | Q158: 162 | R158: x | V158: =
B159: PleBas | C159: 1846 | D159: 39, 39, 531 | E159: PIERA Anne-Marie feu REYMOND | F159: 75 | G159: Mme | J159: 623 | K159: 159 | L159: B | M159: PIERRA Anne-Marie | O159: 38 | P159: 158 | Q159: 162 | V159: <>
B160: PleBas | C160: 1846 | D160: 39, 39, 532 | E160: REYMOND Esprit | F160: 30 | G160: Fils | J160: 628 | K160: 160 | L160: B | M160: REYMOND Esprit | O160: 38 | P160: 158 | Q160: 162 | V160: =
B161: PleBas | C161: 1846 | D161: 39, 39, 533 | E161: PELLORCE Marie feu REYMOND | F161: 28 | G161: Mme d'Esprit | J161: 633 | K161: 161 | L161: B | M161: PELLORCE Marie | O161: 38 | P161: 158 | Q161: 162 | V161: <>
B162: PleBas | C162: 1846 | D162: 39, 39, 534 | E162: VELOTIER Rosalie | F162: 28 | G162: Hospice | H162: Domestique | J162: 639 | K162: 162 | L162: B | M162: VELOTIER Rosalie | O162: 38 | P162: 158 | Q162: 162 | V162: =
B163: PleBas | C163: 1846 | D163: 40, 40, 535 | E163: REYMOND André | F163: 48 | G163: M | H163: Cultivateur | J163: 641 | K163: 163 | L163: B | M163: REYMOND André | O163: 39 | P163: 163 | Q163: 166 | R163: x | V163: =
B164: PleBas | C164: 1846 | D164: 40, 40, 536 | E164: PELLORCE Marie feu REYMOND | F164: 32 | G164: Mme | J164: 647 | K164: 164 | L164: B | M164: PELLORCE Marie | O164: 39 | P164: 163 | Q164: 166 | V164: <>
B165: PleBas | C165: 1846 | D165: 40, 40, 537 | E165: REYMOND Mélany | F165: 15 | G165: Fille | J165: 650 | K165: 165 | L165: B | M165: REYMOND Mélanie | O165: 39 | P165: 163 | Q165: 166 | V165: <>
B166: PleBas | C166: 1846 | D166: 40, 40, 538 | E166: REYMOND Anne-Marie | F166: 12 | G166: Fille | J166: 654 | K166: 166 | L166: B | M166: REYMOND Anne-Marie | O166: 39 | P166: 163 | Q166: 166 | V166: =
B167: PleBas | C167: 1846 | D167: 41, 41, 539 | E167: DUSSER André | F167: 65 | G167: M | H167: Maréchal | J167: 659 | K167: 167 | L167: B | M167: DUSSERT André | O167: 40 | P167: 167 | Q167: 170 | R167: x | V167: <> | CN167: DUSSERT André
B168: PleBas | C168: 1846 | D168: 41, 41, 540 | E168: DUSSER Marie feu DUSSER | F168: 55 | G168: Mme | J168: 662 | K168: 168 | L168: B | M168: DUSSERT Marie | O168: 40 | P168: 167 | Q168: 170 | V168: <> | CN168: DUSSERT Marie feu DUSSER
B169: PleBas | C169: 1846 | D169: 41, 41, 541 | E169: DUSSER Séraphin | F169: 23 | G169: Fils | J169: 666 | K169: 169 | L169: B | M169: DUSSERT Séraphin | O169: 40 | P169: 167 | Q169: 170 | V169: <> | CN169: DUSSERT Séraphin
B170: PleBas | C170: 1846 | D170: 41, 41, 542 | E170: DUSSER Marie | F170: 21 | G170: Fille | J170: 669 | K170: 170 | L170: B | M170: DUSSERT Marie | O170: 40 | P170: 167 | Q170: 170 | S170: x | V170: <> | CN170: DUSSERT Marie
B171: PleBas | C171: 1846 | D171: 42, 42, 543 | E171: FLEUR Joseph | F171: 58 | G171: M | H171: Cultivateur | J171: 674 | K171: 171 | L171: B | M171: FLEUR Joseph | O171: 41 | P171: 171 | Q171: 175 | R171: x | V171: =
B172: PleBas | C172: 1846 | D172: 42, 42, 544 | E172: BONNET Marianne feu FLEUR | F172: 65 | G172: Mme | J172: 679 | K172: 172 | L172: B | M172: BONNET Marianne | O172: 41 | P172: 171 | Q172: 175 | V172: <>
B173: PleBas | C173: 1846 | D173: 42, 42, 545 | E173: FLEUR Vincent | F173: 23 | G173: Fils | J173: 684 | K173: 173 | L173: B | M173: FLEUR Vincent | O173: 41 | P173: 171 | Q173: 175 | V173: =
B174: PleBas | C174: 1846 | D174: 42, 42, 546 | E174: FLEUR Louis | F174: 21 | G174: Fils | J174: 690 | K174: 174 | L174: B | M174: FLEUR Louis | O174: 41 | P174: 171 | Q174: 175 | V174: =
B175: PleBas | C175: 1846 | D175: 42, 42, 547 | E175: FLEUR Marie | F175: 25 | G175: Fille | J175: 691 | K175: 175 | L175: B | M175: FLEUR Marie | O175: 41 | P175: 171 | Q175: 175 | V175: =
B176: PleBas | C176: 1846 | D176: 43, 43, 548 | E176: FLEUR André | F176: 45 | G176: M | H176: Charbonnier | J176: 697 | K176: 176 | L176: B | M176: FLEUR André | O176: 42 | P176: 176 | Q176: 181 | R176: x | V176: =
B177: PleBas | C177: 1846 | D177: 43, 43, 549 | E177: SARRET Françoise | F177: 36 | G177: Mme | J177: 698 | K177: 177 | L177: B | M177: SARRET Françoise | O177: 42 | P177: 176 | Q177: 181 | V177: =
B178: PleBas | C178: 1846 | D178: 43, 43, 550 | E178: FLEUR Claude | F178: 6 | G178: Fils | J178: 699 | K178: 178 | L178: B | M178: FLEUR Claude | O178: 42 | P178: 176 | Q178: 181 | V178: =
B179: PleBas | C179: 1846 | D179: 43, 43, 551 | E179: FLEUR Pierre | F179: 4 | G179: Fils | J179: 703 | K179: 179 | L179: B | M179: FLEUR Pierre | O179: 42 | P179: 176 | Q179: 181 | V179: =
B180: PleBas | C180: 1846 | D180: 43, 43, 552 | E180: FLEUR Marie | F180: 1 | G180: Fille | J180: 707 | K180: 180 | L180: B | M180: FLEUR Marie | O180: 42 | P180: 176 | Q180: 181 | V180: =
B181: PleBas | C181: 1846 | D181: 43, 43, 553 | E181: SARRET Magdeleine | F181: 34 | G181: Sœur de Françoise | J181: 710 | K181: 181 | L181: B | M181: SARRET Madeleine | O181: 42 | P181: 176 | Q181: 181 | V181: <>
B182: PleBas | C182: 1866 | D182: 112, 120, 16|1 | E182: SARRET Catherine | F182: 53 | G182: Mme, vve | H182: Cultivatrice | J182: 717 | K182: 182 | L182: B | M182: SARRET Catherine | O182: 43 | P182: 182 | Q182: 185 | R182: x | V182: =
B183: PleBas | C183: 1866 | D183: 112, 120, 16|2 | E183: RANQUE Joseph | F183: 23 | G183: Fils | H183: Charpentier | J183: 721 | K183: 183 | L183: B | M183: RANQUE Joseph | O183: 43 | P183: 182 | Q183: 185 | V183: =
B184: PleBas | C184: 1866 | D184: 112, 120, 16|3 | E184: RANQUE Marie | F184: 20 | G184: Fille | J184: 725 | K184: 184 | L184: B | M184: RANQUE Marie | O184: 43 | P184: 182 | Q184: 185 | V184: =
B185: PleBas | C185: 1866 | D185: 112, 120, 16|4 | E185: RANQUE Rémi | F185: 15 | G185: Fils | J185: 731 | K185: 185 | L185: B | M185: RANQUE Rémi | O185: 43 | P185: 182 | Q185: 185 | V185: =
B186: PleBas | C186: 1866 | D186: 113, 121, 16|5 | E186: BELLON Jacques | F186: 33 | G186: M | H186: Cultivateur | J186: 735 | K186: 186 | L186: B | M186: BELLON Jacques | O186: 44 | P186: 186 | Q186: 191 | R186: x | V186: =
B187: PleBas | C187: 1866 | D187: 113, 121, 16|6 | E187: PELLAT Mélanie | F187: 32 | G187: Mme | J187: 740 | K187: 187 | L187: B | M187: PELLAT Mélanie | O187: 44 | P187: 186 | Q187: 191 | V187: =
B188: PleBas | C188: 1866 | D188: 113, 121, 16|7 | E188: BELLON Louis | F188: 6 | G188: Fils | J188: 747 | K188: 188 | L188: B | M188: BELLON Louis | O188: 44 | P188: 186 | Q188: 191 | V188: =
B189: PleBas | C189: 1866 | D189: 113, 121, 16|8 | E189: BELLON Anathalie | F189: 5 | G189: Fille | J189: 748 | K189: 189 | L189: B | M189: BELLON Anathalie | O189: 44 | P189: 186 | Q189: 191 | V189: =
B190: PleBas | C190: 1866 | D190: 113, 121, 16|9 | E190: BELLON Gustave | F190: 1 | G190: Fils | J190: 752 | K190: 190 | L190: B | M190: BELLON Gustave | O190: 44 | P190: 186 | Q190: 191 | V190: =
B191: PleBas | C191: 1866 | D191: 113, 121, 16|10 | E191: PELLAT Jean-Denis | F191: 71 | G191: Père de Mélanie, veuf | J191: 753 | K191: 191 | L191: B | M191: PELLAT Jean-Denis | O191: 44 | P191: 186 | Q191: 191 | V191: =
B192: PleBas | C192: 1866 | D192: 114, 122, 16|11 | E192: REYMOND Joseph | F192: 58 | G192: M, veuf | H192: Maire | J192: 758 | K192: 192 | L192: B | M192: REYMOND Joseph | O192: 45 | P192: 192 | Q192: 197 | R192: x | V192: =
B193: PleBas | C193: 1866 | D193: 114, 122, 16|12 | E193: REYMOND Rémi | F193: 30 | G193: Gendre | H193: Coquetier | J193: 762 | K193: 193 | L193: B | M193: REYMOND Rémy | O193: 45 | P193: 192 | Q193: 197 | V193: <>
B194: PleBas | C194: 1866 | D194: 114, 122, 16|13 | E194: REYMOND Marie | F194: 31 | G194: Mme de Rémi | J194: 764 | K194: 194 | L194: B | M194: REYMOND Marie | O194: 45 | P194: 192 | Q194: 197 | V194: =
B195: PleBas | C195: 1866 | D195: 114, 122, 16|14 | E195: REYMOND Alice | F195: 2 | G195: Fille | J195: 766 | K195: 195 | L195: B | M195: REYMOND Alice | O195: 45 | P195: 192 | Q195: 197 | V195: =
B196: PleBas | C196: 1866 | D196: 114, 122, 16|15 | E196: REYMOND Alphée | F196: 2 m | G196: Fils | J196: 768 | K196: 196 | L196: B | M196: REYMOND Alphée | O196: 45 | P196: 192 | Q196: 197 | V196: =
B197: PleBas | C197: 1866 | D197: 114, 122, 16|16 | E197: REYMOND Jean | F197: 46 | J197: 773 | K197: 197 | L197: B | M197: REYMOND Jean | O197: 45 | P197: 192 | Q197: 197 | V197: =
B198: PleBas | C198: 1866 | D198: 115, 123, 16|17 | E198: DUSSERT Louis | F198: 49 | G198: M | H198: Cultivateur | J198: 774 | K198: 198 | L198: B | M198: DUSSERT Louis | O198: 46 | P198: 198 | Q198: 204 | R198: x | V198: =IF(AND(INDIRECT(CONCATENATE(V$3,ROW()))="",INDIRECT(CONCATENATE(V$4,ROW()))=""),"v v",IF(INDIRECT(CONCATENATE(V$3,ROW()))="","v -",IF(INDIRECT(CONCATENATE(V$4,ROW()))="","- v",IF(INDIRECT(CONCATENATE(V$3,ROW()))=INDIRECT(CONCATENATE(V$4,ROW())),"=","<>")))) -> =
B199: PleBas | C199: 1866 | D199: 115, 123, 16|18 | E199: SARRET Françoise | F199: 42 | G199: Mme | J199: 776 | K199: 199 | L199: B | M199: SARRET Françoise | O199: 46 | P199: 198 | Q199: 204 | V199: =
B200: PleBas | C200: 1866 | D200: 115, 123, 16|19 | E200: DUSSERT Joseph | F200: 19 | G200: Fils | J200: 779 | K200: 200 | L200: B | M200: DUSSERT Joseph | O200: 46 | P200: 198 | Q200: 204 | V200: =
... 2197 more rows

Sheet ndl
C1: 692 | F1: 2319 | I1: 214 | K1: 641 | P1: 6, 429, 644, 683, 845 | S1: 2319 | W1: 6, 132, 199, 208, 250 | Z1: 641
C2: Liste de tous les individus | I2: Liste des chefs de famille | O2: Individus classés par hameau | V2: Chefs de famille par hameau | AR2: 45 familles | AX2: La recherche qui donne le plus grand nombre d'individus
AR3: =CONCATENATE(MAX(AR6:AR51)," individus max dans une famille") -> 9 individus max dans une famille | AZ3: est sur le nom PELLORCE Marie
D4: ndl 1, 2, 3 et 4 | AM4: =MAX(AM6:AM2321) -> 17007 | AR4: =CONCATENATE(SUM(AR6:AR51)," Individus") -> 201 Individus
C5: Nom, Prénom | D5: ndl 1 | E5: ndl 2 | F5: ndl 3 | G5: ndl 4 | I5: Nom, Prénom | J5: ndl 1 | K5: ndl 2 | L5: ndl 3 | M5: ndl 4 | O5: Ham | P5: Nom, Prénom | Q5: ndl 1 | R5: ndl 2 | S5: ndl 3 | T5: ndl 4 | V5: Ham | W5: Nom, Prénom | X5: ndl 1 | Y5: ndl 2 | Z5: ndl 3 | AA5: ndl 4
C6: Alexis | D6: 6 | E6: 369 | F6: 1423 | G6: 1430 | I6: ARLOT Appolinaire | J6: 6 | K6: 15 | L6: 61 | M6: 64 | O6: B | P6: ARLOT Anne-Marie | Q6: 6 | R6: 23 | S6: 89 | T6: 98 | V6: B | W6: ARLOT Appolinaire | X6: 6 | Y6: 15 | Z6: 61 | AA6: 64 | AG6: Alexis | AH6: 369 | AI6: 8 | AJ6: =IF(AG6=AG5,"",ROW()) -> 6 | AK6: =IF(AJ7="",AK7,AJ7-1) -> 6 | AL6: =IF(AJ6="","",CONCATENATE("AH",AJ6,":AH",AK6)) -> AH6:AH6 | AM6: =IF(AJ6="","",SUM(INDIRECT(AL6))) -> 369 | AO6: 10 | AP6: 34 | AQ6: 40 | AR6: =AQ6-AP6+1 -> 7 | AS6: x | AX6: Fille 3 ans de PELLORCE Jean-Louis et Raymond Marie à PleB 1846
C7: ARLOT Anne-Marie | D7: 7 | E7: 23 | F7: 89 | G7: 98 | I7: ARLOT Benoît | J7: 7 | K7: 369 | L7: 1423 | M7: 1430 | O7: B | P7: ARLOT Appolinaire | Q7: 7 | R7: 15 | S7: 61 | T7: 64 | V7: B | W7: ARNAUDET Madeleine | X7: 7 | Y7: 4 | Z7: 13 | AA7: 13 | AG7: ARLOT Anne-Marie | AH7: 23 | AI7: 10 | AJ7: =IF(AG7=AG6,"",ROW()) -> 7 | AK7: =IF(AJ8="",AK8,AJ8-1) -> 7 | AL7: =IF(AJ7="","",CONCATENATE("AH",AJ7,":AH",AK7)) -> AH7:AH7 | AM7: =IF(AJ7="","",SUM(INDIRECT(AL7))) -> 23 | AO7: 11 | AP7: 41 | AQ7: 44 | AR7: =AQ7-AP7+1 -> 4 | AX7: Vve REYMOND, 42 ans à PleB 1846
C8: ARLOT Antoine | D8: 8 | E8: 369 | F8: 1423 | G8: 1430 | I8: ARLOT Madeleine | J8: 8 | K8: 463 | L8: 1750 | M8: 1753 | O8: B | P8: ARLOT Joseph | Q8: 8 | R8: 16 | S8: 65 | T8: 71 | V8: B | W8: BELLON Gustave | X8: 8 | Y8: 265 | Z8: 1037 | AA8: 1038 | AG8: ARLOT Antoine | AH8: 369 | AI8: 8 | AJ8: 8 | AK8: 8 | AL8: AH8:AH8 | AM8: 369 | AO8: 22 | AP8: 87 | AQ8: 88 | AR8: 2 | AX8: Fille 27 ans de DUSSERT Magdeleine vve PELLORCE à PleB 1846
C9: ARLOT Appolinaire | D9: 9 | E9: 15 | F9: 61 | G9: 64 | I9: ARNAUDET Achille | J9: 11 | K9: 479 | L9: 1799 | M9: 1801 | O9: B | P9: ARLOT Marianne | Q9: 9 | R9: 16 | S9: 65 | T9: 71 | V9: B | W9: BELLON Jacques | X9: 9 | Y9: 44 | Z9: 186 | AA9: 191 | AG9: ARLOT Appolinaire | AH9: 15 | AI9: 4 | AJ9: 9 | AK9: 9 | AL9: AH9:AH9 | AM9: 15 | AO9: 30 | AP9: 126 | AQ9: 130 | AR9: 5 | AT9: x | AX9: Femme 36 ans de RIVOIRE Matthieu, PleB 1846
C10: ARLOT Benoît | D10: 10 | E10: 369 | F10: 1423 | G10: 1430 | I10: ARNAUDET André | J10: 17 | K10: 500 | L10: 1879 | M10: 1879 | O10: B | P10: ARLOT Marie | Q10: 14 | R10: 53 | S10: 231 | T10: 235 | V10: B | W10: BERTRAND Joséphine | X10: 17 | Y10: 79 | Z10: 329 | AA10: 334 | AG10: ARLOT Benoît | AH10: 369 | AI10: 8 | AJ10: 10 | AK10: 10 | AL10: AH10:AH10 | AM10: 369 | AO10: 38 | AP10: 158 | AQ10: 162 | AR10: 5 | AX10: Femme 28 ans de REYMOND Esprit lui-même fils dans la famille REYMOND Jean PIERRA Anne-Marie à PleB 1846
C11: ARLOT Claudine | D11: 11 | E11: 351 | F11: 1345 | G11: 1352 | I11: ARNAUDET Eugène | J11: 21 | K11: 438 | L11: 1669 | M11: 1673 | O11: B | P11: ARLOT Rosalie | Q11: 15 | R11: 92 | S11: 380 | T11: 382 | V11: B | W11: BIGALLET Marie | X11: 18 | Y11: 126 | Z11: 523 | AA11: 528 | AG11: ARLOT Claudine | AH11: 351 | AI11: 8 | AJ11: 11 | AK11: 11 | AL11: AH11:AH11 | AM11: 351 | AO11: 39 | AP11: 163 | AQ11: 166 | AR11: 4 | AX11: Femme 32 ans de REYMOND André à PleB 1846
C12: ARLOT Henri | D12: 12 | E12: 369 | F12: 1423 | G12: 1430 | I12: ARNAUDET Joseph | J12: 23 | K12: 454 | L12: 1718 | M12: 1724 | O12: B | P12: ARNAUDET Madeleine | Q12: 16 | R12: 137 | S12: 562 | T12: 564 | V12: B | W12: BLANC Joseph | X12: 19 | Y12: 167 | Z12: 679 | AA12: 683 | AG12: ARLOT Henri | AH12: 369 | AI12: 8 | AJ12: 12 | AK12: 12 | AL12: AH12:AH12 | AM12: 369 | AO12: 65 | AP12: 273 | AQ12: 275 | AR12: 3 | AT12: x | AX12: Femme 58 ans de RIVOIRE Mathieu à PleB 1866
C13: ARLOT Joseph | D13: 13 | E13: 16 | F13: 65 | G13: 71 | I13: ARNAUDET Madeleine | J13: 24 | K13: 465 | L13: 1755 | M13: 1760 | O13: B | P13: ARNOL Edouard | Q13: 17 | R13: 158 | S13: 641 | T13: 646 | V13: B | W13: BLANC Joseph-Laurent | X13: 24 | Y13: 186 | Z13: 753 | AA13: 757 | AG13: ARLOT Joseph | AH13: 16 | AI13: 7 | AJ13: 13 | AK13: 13 | AL13: AH13:AH13 | AM13: 16 | AO13: 75 | AP13: 315 | AQ13: 318 | AR13: 4 | AS13: x | AX13: Fille 21 ans de PELLORCE Jean-Louis et REYMOND Euphroisine à PleB 1866
C14: ARLOT Louis | D14: 14 | E14: 369 | F14: 1423 | G14: 1430 | I14: ARNAUDET Rémy | J14: 25 | K14: 480 | L14: 1802 | M14: 1806 | O14: B | P14: ARNOL Emile | Q14: 18 | R14: 15 | S14: 61 | T14: 64 | V14: B | W14: CAIX Jean | X14: 25 | Y14: 214 | Z14: 853 | AA14: 857 | AG14: ARLOT Louis | AH14: 369 | AI14: 8 | AJ14: 14 | AK14: 14 | AL14: AH14:AH14 | AM14: 369 | AO14: 107 | AP14: 439 | AQ14: 440 | AR14: 2 | AT14: x | AX14: Femme 63 ans de RIVOIRE Mathieu à PleB 1872
C15: ARLOT Madeleine | D15: 15 | E15: 369 | F15: 1423 | G15: 1430 | I15: BALME Etienne | J15: 26 | K15: 486 | L15: 1825 | M15: 1830 | O15: B | P15: ARNOL Marie-Louise | Q15: 19 | R15: 15 | S15: 61 | T15: 64 | V15: B | W15: CAIX Louis | X15: 28 | Y15: 264 | Z15: 1034 | AA15: 1036 | AG15: ARLOT Madeleine | AH15: 369 | AI15: 8 | AJ15: 15 | AK15: 22 | AL15: AH15:AH22 | AM15: 3500 | AO15: 118 | AP15: 492 | AQ15: 497 | AR15: 6 | AX15: Fille 4 ans de PELLORCE Laurent et PELLORCE Adelhine à PleB 1876
C16: ARLOT Marianne | D16: 23 | E16: 384 | F16: 1488 | G16: 1490 | I16: BARONNA François | J16: 27 | K16: 499 | L16: 1875 | M16: 1878 | O16: B | P16: ARNOL Théréza | Q16: 20 | R16: 4 | S16: 13 | T16: 13 | V16: B | W16: CAIX Louise | X16: 34 | Y16: 312 | Z16: 1206 | AA16: 1209 | AG16: ARLOT Madeleine | AH16: 384 | AI16: 3 | AK16: 22 | AO16: 150 | AP16: 606 | AQ16: 608 | AR16: 3 | AU16: x | AX16: Fille 4 ans de PELLORCE Alphonse et GIROLLET Marie à PleB 1881
C17: ARLOT Marie | D17: 28 | E17: 413 | F17: 1580 | G17: 1582 | I17: BELLET François | J17: 28 | K17: 352 | L17: 1353 | M17: 1358 | O17: B | P17: BALME Marie | Q17: 21 | R17: 347 | S17: 1335 | T17: 1339 | V17: B | W17: CAIX Théophile | X17: 35 | Y17: 348 | Z17: 1340 | AA17: 1342 | AG17: ARLOT Madeleine | AH17: 413 | AI17: 3 | AK17: 22 | AO17: 170 | AP17: 691 | AQ17: 696 | AR17: 6 | AX17: Mère 59 ans de REYMOND Marie-Louise elle-même femme de BLANC Joseph à PleB 1881
C18: ARLOT Philomène | D18: 29 | E18: 439 | F18: 1674 | G18: 1677 | I18: BELLET Pierre | J18: 34 | K18: 390 | L18: 1508 | M18: 1510 | O18: B | P18: BELLON Anathalie | Q18: 22 | R18: 347 | S18: 1335 | T18: 1339 | V18: B | W18: CHALVIN François | X18: 36 | Y18: 341 | Z18: 1311 | AA18: 1311 | AG18: ARLOT Madeleine | AH18: 439 | AI18: 4 | AK18: 22 | AO18: 203 | AP18: 812 | AQ18: 815 | AR18: 4 | AU18: x | AX18: Fille 9 ans de PELLORCE Henri Alphonse et GIROLLET Marie à PleB 1886
C19: ARLOT Rosalie | D19: 30 | E19: 453 | F19: 1713 | G19: 1717 | I19: BELLON Gustave | J19: 37 | K19: 398 | L19: 1535 | M19: 1537 | O19: B | P19: BELLON Eugène | Q19: 26 | R19: 347 | S19: 1335 | T19: 1339 | V19: B | W19: CHARBONNEL Marie | X19: 37 | Y19: 170 | Z19: 691 | AA19: 696 | AG19: ARLOT Madeleine | AH19: 453 | AI19: 5 | AK19: 22 | AO19: 215 | AP19: 858 | AQ19: 863 | AR19: 6 | AU19: x | AX19: Fille 13 ans de PELLORCE Henri Alphonse et GIROLLET Marie à PleB en 1891
C20: ARNAUDET Achille | D20: 31 | E20: 463 | F20: 1750 | G20: 1753 | I20: BELLON Jacques | J20: 38 | K20: 428 | L20: 1630 | M20: 1634 | O20: B | P20: BELLON Gaston | Q20: 30 | R20: 347 | S20: 1335 | T20: 1339 | V20: B | W20: COCHET Françoise | X20: 38 | Y20: 208 | Z20: 828 | AA20: 834 | AG20: ARLOT Madeleine | AH20: 463 | AI20: 4 | AK20: 22 | AO20: 251 | AP20: 984 | AQ20: 988 | AR20: 5 | AU20: x | AX20: Fille 17 ans de PELLORCE Henri et GIROLLET Marie à PleB en 1896
C21: ARNAUDET Aline | D21: 40 | E21: 479 | F21: 1799 | G21: 1801 | I21: BERARD Antoine | J21: 46 | K21: 388 | L21: 1501 | M21: 1503 | O21: B | P21: BELLON Gustave | Q21: 31 | R21: 242 | S21: 961 | T21: 966 | V21: B | W21: DODE André | X21: 39 | Y21: 237 | Z21: 943 | AA21: 948 | AG21: ARLOT Madeleine | AH21: 479 | AI21: 3 | AK21: =IF(AJ22="",AK22,AJ22-1) -> 22 | AO21: 272 | AP21: 1063 | AQ21: 1068 | AR21: 6 | AU21: x | AX21: Fille 21 ans de PELLORCE Henri et GIROLLET Marie à PleB en 1901
C22: ARNAUDET André | D22: 44 | E22: 500 | F22: 1879 | G22: 1879 | I22: BERNARD Marie-Madeleine | J22: 47 | K22: 409 | L22: 1563 | M22: 1566 | O22: B | P22: BELLON Jacques | Q22: 38 | R22: 44 | S22: 186 | T22: 191 | V22: B | W22: DODE Louis | X22: 41 | Y22: 266 | Z22: 1039 | AA22: 1044 | AG22: ARLOT Madeleine | AH22: 500 | AI22: 1 | AK22: 22 | AO22: 328 | AP22: 1267 | AQ22: 1270 | AR22: 4 | AX22: Femme 28 ans de PELLORCE Victor à PleB en 1921
C23: ARNAUDET Casimir | D23: 48 | E23: 16 | F23: 65 | G23: 71 | I23: BERTRAND Joséphine | J23: 48 | K23: 449 | L23: 1705 | M23: 1706 | O23: B | P23: BELLON Louis | Q23: 47 | R23: 190 | S23: 766 | T23: 767 | V23: B | W23: DUPRE Amélie | X23: 43 | Y23: 295 | Z23: 1148 | AA23: 1151 | AG23: ARLOT Marianne | AH23: 16 | AI23: 7 | AJ23: 23 | AK23: 27 | AL23: AH23:AH27 | AM23: 456 | AO23: 337 | AP23: 1296 | AQ23: 1300 | AR23: 5 | AX23: Femme 33 ans de PELLORCE Victor à PleB en 1926
C24: ARNAUDET Céphise | D24: 51 | E24: 53 | F24: 231 | G24: 235 | I24: BIGALLET Marie | J24: 49 | K24: 4 | L24: 13 | M24: 13 | O24: B | P24: BELLON Marie | Q24: 53 | R24: 233 | S24: 932 | T24: 935 | V24: B | W24: DUPRE Emélie | X24: 45 | Y24: 292 | Z24: 1136 | AA24: 1140 | AG24: ARLOT Marianne | AH24: 53 | AI24: 5 | AK24: 27 | AO24: 368 | AP24: 1417 | AQ24: 1422 | AR24: 6 | AV24: x | AX24: Fille 32 ans de PELLORCE Henri et DUPRE Elisabeth à PleH en 1846
C25: ARNAUDET Edouard | D25: 57 | E25: 92 | F25: 380 | G25: 382 | I25: BLANC Joseph | J25: 50 | K25: 497 | L25: 1867 | M25: 1868 | O25: B | P25: BELLON Mathilde | Q25: 54 | R25: 312 | S25: 1206 | T25: 1209 | V25: B | W25: DUPRE Emilie | X25: 46 | Y25: 73 | Z25: 304 | AA25: 310 | AG25: ARLOT Marianne | AH25: 92 | AI25: 3 | AK25: 27 | AO25: 372 | AP25: 1440 | AQ25: 1448 | AR25: 9 | AX25: Femme 45 ans de MARTIN Joseph à PleH en 1846
C26: ARNAUDET Eugène | D26: 61 | E26: 137 | F26: 562 | G26: 564 | I26: BLANC Joseph-Laurent | J26: 59 | K26: 358 | L26: 1371 | M26: 1373 | O26: B | P26: BELLON Nathalie | Q26: 55 | R26: 126 | S26: 523 | T26: 528 | V26: B | W26: DUPRE Geneviève | X26: 47 | Y26: 99 | Z26: 401 | AA26: 408 | AG26: ARLOT Marianne | AH26: 137 | AI26: 3 | AK26: 27 | AO26: 377 | AP26: 1463 | AQ26: 1463 | AR26: 1 | AV26: x | AX26: Femme 55 ans seule à PleH en 1866
C27: ARNAUDET Holympe | D27: 64 | E27: 158 | F27: 641 | G27: 646 | I27: BLANC Madeleine | J27: 60 | K27: 601 | L27: 2256 | M27: 2256 | O27: B | P27: BERARD Marie | Q27: 57 | R27: 167 | S27: 679 | T27: 683 | V27: B | W27: DUSSERT André | X27: 48 | Y27: 116 | Z27: 479 | AA27: 486 | AG27: ARLOT Marianne | AH27: 158 | AI27: 6 | AK27: 27 | AO27: 379 | AP27: 1466 | AQ27: 1470 | AR27: 5 | AX27: Fille 8 ans de PELLORCE Alexandre et DUSSERT Victoire à PleH en 1866
C28: ARNAUDET Jean | D28: 65 | E28: 15 | F28: 61 | G28: 64 | I28: BOTHOLIER LASQUIN Simon | J28: 61 | K28: 533 | L28: 2004 | M28: 2007 | O28: B | P28: BERGOUIN Marie | Q28: 60 | R28: 186 | S28: 753 | T28: 757 | V28: B | W28: DUSSERT Antoine | X28: 49 | Y28: 7 | Z28: 24 | AA28: 26 | AG28: ARLOT Marie | AH28: 15 | AI28: 4 | AJ28: 28 | AK28: 28 | AL28: AH28:AH28 | AM28: 15 | AO28: 401 | AP28: 1544 | AQ28: 1544 | AR28: 1 | AV28: x | AX28: Femme 61 ans seule à PleH en 1872
C29: ARNAUDET Joseph | D29: 66 | E29: 369 | F29: 1423 | G29: 1430 | I29: CAIX Hippolyte | J29: 62 | K29: 550 | L29: 2075 | M29: 2078 | O29: B | P29: BERTRAND Casimir | Q29: 62 | R29: 214 | S29: 853 | T29: 857 | V29: B | W29: DUSSERT Augustin | X29: 50 | Y29: 62 | Z29: 261 | AA29: 263 | AG29: ARLOT Philomène | AH29: 369 | AI29: 8 | AJ29: 29 | AK29: 29 | AL29: AH29:AH29 | AM29: 369 | AO29: 427 | AP29: 1629 | AQ29: 1629 | AR29: 1 | AV29: x | AX29: Femme 66 ans seule à PleH en 1876
C30: ARNAUDET Jules | D30: 67 | E30: 15 | F30: 61 | G30: 64 | I30: CAIX Jacques | J30: 67 | K30: 556 | L30: 2088 | M30: 2089 | O30: B | P30: BERTRAND Joséphine | Q30: 65 | R30: 186 | S30: 753 | T30: 757 | V30: B | W30: DUSSERT Eugène | X30: 53 | Y30: 122 | Z30: 506 | AA30: 511 | AG30: ARLOT Rosalie | AH30: 15 | AI30: 4 | AJ30: 30 | AK30: 30 | AL30: AH30:AH30 | AM30: 15 | AO30: 446 | AP30: 1698 | AQ30: 1698 | AR30: 1 | AV30: x | AX30: Femme 72 ans seule à PleH en 1881
C31: ARNAUDET Léon | D31: 69 | E31: 390 | F31: 1508 | G31: 1510 | I31: CAIX Jean | J31: 69 | K31: 569 | L31: 2140 | M31: 2141 | O31: B | P31: BERTRAND Marie | Q31: 67 | R31: 44 | S31: 186 | T31: 191 | V31: B | W31: DUSSERT Jean-Baptiste | X31: 57 | Y31: 185 | Z31: 752 | AA31: 752 | AG31: ARNAUDET Achille | AH31: 390 | AI31: 3 | AJ31: 31 | AK31: 39 | AL31: AH31:AH39 | AM31: 4038 | AO31: 452 | AP31: 1712 | AQ31: 1712 | AR31: 1 | AV31: x | AX31: Femme 70 ans seule à PleH en 1886
C32: ARNAUDET Léontine | D32: 73 | E32: 398 | F32: 1535 | G32: 1537 | I32: CAIX Joseph | J32: 73 | K32: 584 | L32: 2193 | M32: 2197 | O32: B | P32: BIGALLET Marie | Q32: 69 | R32: 79 | S32: 329 | T32: 334 | V32: B | W32: DUSSERT Joseph | X32: 58 | Y32: 239 | Z32: 955 | AA32: 955 | AG32: ARNAUDET Achille | AH32: 398 | AI32: 3 | AK32: 39 | AO32: 457 | AP32: 1734 | AQ32: 1736 | AR32: 3 | AX32: Fille 4 ans de ODDOUX Florentine à PleH en 1886
C33: ARNAUDET Madeleine | D33: 74 | E33: 428 | F33: 1630 | G33: 1634 | I33: CAIX Joséphine | J33: 74 | K33: 590 | L33: 2221 | M33: 2222 | O33: B | P33: BLANC Aline | Q33: 70 | R33: 126 | S33: 523 | T33: 528 | V33: B | W33: DUSSERT Louis | X33: 64 | Y33: 243 | Z33: 967 | AA33: 967 | AG33: ARNAUDET Achille | AH33: 428 | AI33: 5 | AK33: 39 | AO33: 469 | AP33: 1767 | AQ33: 1767 | AR33: 1 | AV33: x | AX33: Femme 80 ans seule à PleH en 1891
C34: ARNAUDET Marie | D34: 75 | E34: 438 | F34: 1669 | G34: 1673 | I34: CAIX Louis | J34: 80 | K34: 530 | L34: 1999 | M34: 1999 | O34: B | P34: BLANC Joseph | Q34: 71 | R34: 167 | S34: 679 | T34: 683 | V34: B | W34: DUSSERT Madeleine | X34: 77 | Y34: 171 | Z34: 697 | AA34: 697 | AG34: ARNAUDET Achille | AH34: 438 | AI34: 5 | AK34: 39 | AO34: 510 | AP34: 1920 | AQ34: 1924 | AR34: 5 | AX34: Fille 10 ans de PELLORCE Vincent et REYMOND Louise au Passet en 1846
C35: ARNAUDET Maximin | D35: 84 | E35: 454 | F35: 1718 | G35: 1724 | I35: CAIX Louise | J35: 86 | K35: 549 | L35: 2074 | M35: 2074 | O35: B | P35: BLANC Joseph Laurent | Q35: 77 | R35: 214 | S35: 853 | T35: 857 | V35: B | W35: DUSSERT Marie | X35: 78 | Y35: 209 | Z35: 835 | AA35: 842 | AG35: ARNAUDET Achille | AH35: 454 | AI35: 7 | AK35: 39 | AO35: 523 | AP35: 1974 | AQ35: 1978 | AR35: 5 | AX35: Sœur 54 ans de l'épouse PELLORCE Joséphine avec RANQUE Louis au Passet en 1896
C36: ARNAUDET Rémy | D36: 85 | E36: 465 | F36: 1755 | G36: 1760 | I36: CAIX Paul | J36: 87 | K36: 555 | L36: 2087 | M36: 2087 | O36: B | P36: BLANC Joseph Raymond | Q36: 78 | R36: 265 | S36: 1037 | T36: 1038 | V36: B | W36: DUSSERT Pierre | X36: 82 | Y36: 213 | Z36: 851 | AA36: 852 | AG36: ARNAUDET Achille | AH36: 465 | AI36: 6 | AK36: 39 | AO36: 528 | AP36: 1990 | AQ36: 1993 | AR36: 4 | AX36: Fille 15 ans de PELLORCE Pierre et PELLORCE Jeanne au Périer en 1846
C37: ARNAUDET Rosalie | D37: 94 | E37: 480 | F37: 1802 | G37: 1806 | I37: CAIX Théophile | J37: 88 | K37: 265 | L37: 1037 | M37: 1038 | O37: B | P37: BLANC Joséphine | Q37: 79 | R37: 271 | S37: 1055 | T37: 1062 | V37: B | W37: FAURE Pellerin | X37: 88 | Y37: 334 | Z37: 1287 | AA37: 1288 | AG37: ARNAUDET Achille | AH37: 480 | AI37: 5 | AK37: 39 | AO37: 529 | AP37: 1994 | AQ37: 1998 | AR37: 5 | AX37: Fille 6 ans de PELLORCE Félix et REYMOND Françoise au Périer en 1846
C38: ARNAUDET Théophile | D38: 99 | E38: 486 | F38: 1825 | G38: 1830 | I38: CAIX Victoire | J38: 89 | K38: 44 | L38: 186 | M38: 191 | O38: B | P38: BLANC Joséphine-Aline | Q38: 83 | R38: 44 | S38: 186 | T38: 191 | V38: B | W38: FLEUR André | X38: 89 | Y38: 290 | Z38: 1131 | AA38: 1131 | AG38: ARNAUDET Achille | AH38: 486 | AI38: 6 | AK38: 39 | AO38: 540 | AP38: 2033 | AQ38: 2037 | AR38: 5 | AX38: Fille 21 ans de vve BLANC Magdeleine au Périer en 1846
C39: ARNOL Edouard | D39: 100 | E39: 499 | F39: 1875 | G39: 1878 | I39: CARROLINE Marie | J39: 90 | K39: 79 | L39: 329 | M39: 334 | O39: B | P39: BLANC Joseph-Laurent | Q39: 84 | R39: 79 | S39: 329 | T39: 334 | V39: B | W39: FLEUR Joseph | X39: 90 | Y39: 260 | Z39: 1024 | AA39: 1025 | AG39: ARNAUDET Achille | AH39: 499 | AI39: 4 | AK39: 39 | AO39: 544 | AP39: 2044 | AQ39: 2048 | AR39: 5 | AW39: x | AX39: Fille 25 ans de PELLORCE Pierre au Périer en 1866
C40: ARNOL Emile | D40: 101 | E40: 454 | F40: 1718 | G40: 1724 | I40: CHALVIN François | J40: 94 | K40: 126 | L40: 523 | M40: 528 | O40: B | P40: BLANC Marie | Q40: 85 | R40: 126 | S40: 523 | T40: 528 | V40: B | W40: FLEUR Joséphine | X40: 93 | Y40: 316 | Z40: 1221 | AA40: 1221 | AG40: ARNAUDET Aline | AH40: 454 | AI40: 7 | AJ40: 40 | AK40: 43 | AL40: AH40:AH43 | AM40: 1885 | AO40: 564 | AP40: 2121 | AQ40: 2127 | AR40: 7 | AW40: x | AX40: Fille 30 ans de PELLORCE Pierre et BLANC Françoise au Périer en 1872
C41: ARNOL Marie | D41: 102 | E41: 465 | F41: 1755 | G41: 1760 | I41: CHALVIN Laurent | J41: 101 | K41: 167 | L41: 679 | M41: 683 | O41: B | P41: BLANC Marie-Aline | Q41: 89 | R41: 167 | S41: 679 | T41: 683 | V41: B | W41: GIROLLET Hippolyte | X41: 94 | Y41: 317 | Z41: 1222 | AA41: 1228 | AG41: ARNAUDET Aline | AH41: 465 | AI41: 6 | AK41: 43 | AO41: 577 | AP41: 2165 | AQ41: 2172 | AR41: 8 | AW41: x | AX41: Fille 35 ans de PELLORCE Pierre et BLANC Françoise au Périer en 1876
C42: ARNOL Marie-Louise | D42: 106 | E42: 480 | F42: 1802 | G42: 1806 | I42: CHALVIN Louise | J42: 103 | K42: 186 | L42: 753 | M42: 757 | O42: B | P42: BLANC Marie-Emilie | Q42: 90 | R42: 186 | S42: 753 | T42: 757 | V42: B | W42: GIROLLET Marie | X42: 100 | Y42: 335 | Z42: 1289 | AA42: 1294 | AG42: ARNAUDET Aline | AH42: 480 | AI42: 5 | AK42: 43 | AO42: 588 | AP42: 2211 | AQ42: 2217 | AR42: 7 | AX42: Fille 48 ans de PELLORCE Pierre au Périer en 1881
C43: ARNOL Théréza | D43: 107 | E43: 486 | F43: 1825 | G43: 1830 | I43: CHARBONNEL Marie | J43: 108 | K43: 214 | L43: 853 | M43: 857 | O43: B | P43: BLANC Raymond | Q43: 91 | R43: 214 | S43: 853 | T43: 857 | V43: B | W43: GIROLLET Pierre | X43: 101 | Y43: 194 | Z43: 776 | AA43: 778 | AG43: ARNAUDET Aline | AH43: 486 | AI43: 6 | AK43: 43 | AO43: 600 | AP43: 2250 | AQ43: 2255 | AR43: 6 | AW43: x | AX43: Fille 45 ans de PELLORCE Pierre et BLANC Françoise au Périer en 1886
C44: AUBERT Philomène | D44: 108 | E44: 352 | F44: 1353 | G44: 1358 | I44: COCHET Françoise | J44: 109 | K44: 264 | L44: 1034 | M44: 1036 | O44: B | P44: BLANC Rémi | Q44: 95 | R44: 264 | S44: 1034 | T44: 1036 | V44: B | W44: GIROUD François | X44: 107 | Y44: 307 | Z44: 1192 | AA44: 1193 | AG44: ARNAUDET André | AH44: 352 | AI44: 6 | AJ44: 44 | AK44: 47 | AL44: AH44:AH47 | AM44: 1568 | AO44: 602 | AP44: 2257 | AQ44: 2261 | AR44: 5 | AW44: x | AX44: Fille 50 ans de PELLORCE Pierre et BLANC Françoise au Périer en 1891
C45: BALME Etienne | D45: 117 | E45: 390 | F45: 1508 | G45: 1510 | I45: DODE André | J45: 110 | K45: 312 | L45: 1206 | M45: 1209 | O45: B | P45: BLANC Rémy | Q45: 96 | R45: 271 | S45: 1055 | T45: 1062 | V45: B | W45: GIROUD Jean-Louis | X45: 115 | Y45: 270 | Z45: 1052 | AA45: 1054 | AG45: ARNAUDET André | AH45: 390 | AI45: 3 | AK45: 47 | AO45: 605 | AP45: 2268 | AQ45: 2272 | AR45: 5 | AX45: Fille 1 mois de PELLORCE Vincent et DUSSERT Sylvie au Périer en 1891
C46: BALME Marie | D46: 118 | E46: 398 | F46: 1535 | G46: 1537 | I46: DODE Louis | J46: 112 | K46: 591 | L46: 2223 | M46: 2225 | O46: B | P46: BLANC Rémy-Emile | Q46: 99 | R46: 312 | S46: 1206 | T46: 1209 | V46: B | W46: GIROUD Joseph | X46: 118 | Y46: 282 | Z46: 1106 | AA46: 1107 | AG46: ARNAUDET André | AH46: 398 | AI46: 3 | AK46: 47 | AO46: 607 | AP46: 2278 | AQ46: 2279 | AR46: 2 | AX46: Mme 52 ans et sa fille 21 ans au Périer en 1891
C47: BARONNA François | D47: 119 | E47: 428 | F47: 1630 | G47: 1634 | I47: DUPRE Amélie | J47: 114 | K47: 434 | L47: 1653 | M47: 1657 | O47: B | P47: BOCHE Antonin | Q47: 100 | R47: 44 | S47: 186 | T47: 191 | V47: B | W47: GIROUD Rémy | X47: 122 | Y47: 70 | Z47: 292 | AA47: 294 | AG47: ARNAUDET André | AH47: 428 | AI47: 5 | AK47: 47
C48: BELLET Adeline | D48: 120 | E48: 480 | F48: 1802 | G48: 1806 | I48: DUPRE Anne | J48: 116 | K48: 348 | L48: 1340 | M48: 1342 | O48: B | P48: BONNET Léon | Q48: 101 | R48: 79 | S48: 329 | T48: 334 | V48: B | W48: ISEMIN Henri | X48: 129 | Y48: 40 | Z48: 167 | AA48: 170 | AG48: ARNAUDET Casimir | AH48: 480 | AI48: 5 | AJ48: 48 | AK48: 50 | AL48: AH48:AH50 | AM48: 1465 | AO48: 611 | AP48: 2291 | AQ48: 2294 | AR48: 4 | AX48: Sœur 25 ans de PELLORCE Pierre au Périer en 1896
C49: BELLET Arey | D49: 122 | E49: 486 | F49: 1825 | G49: 1830 | I49: DUPRE Catherine | J49: 117 | K49: 341 | L49: 1311 | M49: 1311 | O49: B | P49: BONNET Marianne | Q49: 102 | R49: 126 | S49: 523 | T49: 528 | V49: B | W49: JOUFFREY Auguste | X49: 130 | Y49: 14 | Z49: 55 | AA49: 60 | AG49: ARNAUDET Casimir | AH49: 486 | AI49: 6 | AK49: 50 | AO49: 620 | AP49: 2323 | AQ49: 2328 | AR49: 6 | AX49: Femme 30 ans de MOREL Auguste au Périer en 1901
C50: BELLET François | D50: 124 | E50: 499 | F50: 1875 | G50: 1878 | I50: DUPRE Emélie | J50: 119 | K50: 170 | L50: 691 | M50: 696 | O50: B | P50: BOUVET Célestine | Q50: 103 | R50: 186 | S50: 753 | T50: 757 | V50: B | W50: JOUVEL Louis | X50: 132 | Y50: 144 | Z50: 588 | AA50: 588 | AG50: ARNAUDET Casimir | AH50: 499 | AI50: 4 | AK50: 50 | AO50: 629 | AP50: 2363 | AQ50: 2369 | AR50: 7 | AX50: Femme 51 ans de PELLORCE Louis au Périer en 1921
C51: BELLET Pierre | D51: 130 | E51: 409 | F51: 1563 | G51: 1566 | I51: DUPRE Emilie | J51: 120 | K51: 208 | L51: 828 | M51: 834 | O51: B | P51: BREDY Claudine | Q51: 104 | R51: 214 | S51: 853 | T51: 857 | V51: B | W51: LEPIDI Ange Louis | X51: 136 | Y51: 200 | Z51: 801 | AA51: 801 | AG51: ARNAUDET Céphise | AH51: 409 | AI51: 4 | AJ51: 51 | AK51: 56 | AL51: AH51:AH56 | AM51: 2680 | AO51: 634 | AP51: 2382 | AQ51: 2386 | AR51: 5 | AX51: Fille 19 ans de PELLORCE Marie au Périer en 1926
C52: BELLON Anathalie | D52: 133 | E52: 419 | F52: 1606 | G52: 1609 | I52: DUPRE Françoise | J52: 121 | K52: 237 | L52: 943 | M52: 948 | O52: B | P52: BROTTET Marie | Q52: 105 | R52: 264 | S52: 1034 | T52: 1036 | V52: B | W52: MAGNAN Anathalie | X52: 137 | Y52: 216 | Z52: 864 | AA52: 864 | AG52: ARNAUDET Céphise | AH52: 419 | AI52: 4 | AK52: 56
C53: BELLON Eugène | D53: 137 | E53: 443 | F53: 1686 | G53: 1691 | I53: DUPRE Geneviève | J53: 122 | K53: 266 | L53: 1039 | M53: 1044 | O53: B | P53: CAIX Adeline | Q53: 106 | R53: 264 | S53: 1034 | T53: 1036 | V53: B | W53: MAGNAN Edouard | X53: 138 | Y53: 225 | Z53: 900 | AA53: 903 | AG53: ARNAUDET Céphise | AH53: 443 | AI53: 6 | AK53: 56
C54: BELLON Gaston | D54: 141 | E54: 455 | F54: 1725 | G54: 1730 | I54: DUPRE Jean-Claude | J54: 123 | K54: 295 | L54: 1148 | M54: 1151 | O54: B | P54: CAIX Alphonse | Q54: 115 | R54: 126 | S54: 523 | T54: 528 | V54: B | W54: MICHEL Catherine | X54: 140 | Y54: 253 | Z54: 993 | AA54: 996 | AG54: ARNAUDET Céphise | AH54: 455 | AI54: 6 | AK54: 56
C55: BELLON Gustave | D55: 142 | E55: 472 | F55: 1775 | G55: 1780 | I55: DUPRE Joseph | J55: 124 | K55: 547 | L55: 2061 | M55: 2068 | O55: B | P55: CAIX Aristide | Q55: 119 | R55: 79 | S55: 329 | T55: 334 | V55: B | W55: MICHEL Jeanne | X55: 141 | Y55: 273 | Z55: 1069 | AA55: 1071 | AG55: ARNAUDET Céphise | AH55: 472 | AI55: 6 | AK55: 56
C56: BELLON Jacques | D56: 149 | E56: 482 | F56: 1812 | G56: 1817 | I56: DUPRE Madeleine | J56: 126 | K56: 557 | L56: 2090 | M56: 2097 | O56: B | P56: CAIX Emile | Q56: 123 | R56: 167 | S56: 679 | T56: 683 | V56: B | W56: MICHEL Marie | X56: 144 | Y56: 314 | Z56: 1214 | AA56: 1216 | AG56: ARNAUDET Céphise | AH56: 482 | AI56: 6 | AK56: 56
C57: BELLON Louis | D57: 158 | E57: 419 | F57: 1606 | G57: 1609 | I57: DUPRE Simon | J57: 127 | K57: 574 | L57: 2157 | M57: 2161 | O57: B | P57: CAIX Emmanuel | Q57: 126 | R57: 247 | S57: 975 | T57: 976 | V57: B | W57: MICHEL Victoire | X57: 146 | Y57: 204 | Z57: 816 | AA57: 816 | AG57: ARNAUDET Edouard | AH57: 419 | AI57: 4 | AJ57: 57 | AK57: 60 | AL57: AH57:AH60 | AM57: 1789
C58: BELLON Marie | D58: 164 | E58: 443 | F58: 1686 | G58: 1691 | I58: DUSSERT André | J58: 128 | K58: 585 | L58: 2198 | M58: 2202 | O58: B | P58: CAIX Eugénie | Q58: 129 | R58: 288 | S58: 1125 | T58: 1128 | V58: B | W58: MOUNIER Pierre-Marius | X58: 148 | Y58: 195 | Z58: 779 | AA58: 783 | AG58: ARNAUDET Edouard | AH58: 443 | AI58: 6 | AK58: 60
C59: BELLON Mathilde | D59: 165 | E59: 455 | F59: 1725 | G59: 1730 | I59: DUSSERT Antoine | J59: 130 | K59: 292 | L59: 1136 | M59: 1140 | O59: B | P59: CAIX Florentine | Q59: 130 | R59: 298 | S59: 1157 | T59: 1160 | V59: B | W59: NOIREY Constantin | X59: 149 | Y59: 222 | Z59: 883 | AA59: 888 | AG59: ARNAUDET Edouard | AH59: 455 | AI59: 6 | AK59: 60
C60: BELLON Nathalie | D60: 166 | E60: 472 | F60: 1775 | G60: 1780 | I60: DUSSERT Augustin | J60: 132 | K60: 540 | L60: 2033 | M60: 2037 | O60: B | P60: CAIX Jean | Q60: 133 | R60: 152 | S60: 614 | T60: 615 | V60: B | W60: NOIREY Noémie | X60: 157 | Y60: 255 | Z60: 1000 | AA60: 1005 | AG60: ARNAUDET Edouard | AH60: 472 | AI60: 6 | AK60: 60
C61: BERARD Antoine | D61: 168 | E61: 352 | F61: 1353 | G61: 1358 | I61: DUSSERT Désiré | J61: 135 | K61: 565 | L61: 2128 | M61: 2131 | O61: B | P61: CAIX Jules Rémi | Q61: 136 | R61: 193 | S61: 774 | T61: 775 | V61: B | W61: ODDOUX Edouard | X61: 160 | Y61: 277 | Z61: 1081 | AA61: 1085 | AG61: ARNAUDET Eugène | AH61: 352 | AI61: 6 | AJ61: 61 | AK61: 63 | AL61: AH61:AH63 | AM61: 1149
C62: BERARD Marguerite | D62: 169 | E62: 388 | F62: 1501 | G62: 1503 | I62: DUSSERT Eugène | J62: 136 | K62: 408 | L62: 1561 | M62: 1562 | O62: B | P62: CAIX Léonie | Q62: 137 | R62: 281 | S62: 1102 | T62: 1105 | V62: B | W62: ODDOUX Etienne | X62: 162 | Y62: 305 | Z62: 1187 | AA62: 1188 | AG62: ARNAUDET Eugène | AH62: 388 | AI62: 3 | AK62: 63
C63: BERARD Marie | D63: 170 | E63: 409 | F63: 1563 | G63: 1566 | I63: DUSSERT Françoise | J63: 140 | K63: 424 | L63: 1622 | M63: 1623 | O63: B | P63: CAIX Louis | Q63: 139 | R63: 301 | S63: 1164 | T63: 1168 | V63: B | W63: ODDOUX Jean | X63: 163 | Y63: 347 | Z63: 1335 | AA63: 1339 | AG63: ARNAUDET Eugène | AH63: 409 | AI63: 4 | AK63: 63
C64: BERGOUIN Marie | D64: 175 | E64: 352 | F64: 1353 | G64: 1358 | I64: DUSSERT Jean | J64: 142 | K64: 447 | L64: 1699 | M64: 1700 | O64: B | P64: CAIX Louis Alphonse | Q64: 146 | R64: 324 | S64: 1243 | T64: 1247 | V64: B | W64: ODDOUX Jean-Baptiste | X64: 164 | Y64: 8 | Z64: 27 | AA64: 31 | AG64: ARNAUDET Holympe | AH64: 352 | AI64: 6 | AJ64: 64 | AK64: 64 | AL64: AH64:AH64 | AM64: 352
C65: BERNARD Marie-Madeleine | D65: 177 | E65: 352 | F65: 1353 | G65: 1358 | I65: DUSSERT Jean-Baptiste | J65: 147 | K65: 459 | L65: 1743 | M65: 1744 | O65: B | P65: CAIX Louise | Q65: 147 | R65: 324 | S65: 1243 | T65: 1247 | V65: B | W65: ODDOUX Marie | X65: 170 | Y65: 46 | Z65: 198 | AA65: 204 | AG65: ARNAUDET Jean | AH65: 352 | AI65: 6 | AJ65: 65 | AK65: 65 | AL65: AH65:AH65 | AM65: 352
C66: BERTRAND Casimir | D66: 178 | E66: 449 | F66: 1705 | G66: 1706 | I66: DUSSERT Joseph | J66: 150 | K66: 468 | L66: 1765 | M66: 1766 | O66: B | P66: CAIX Marie | Q66: 148 | R66: 348 | S66: 1340 | T66: 1342 | V66: B | W66: ODDOUX Vincent | X66: 173 | Y66: 82 | Z66: 343 | AA66: 348 | AG66: ARNAUDET Joseph | AH66: 449 | AI66: 2 | AJ66: 66 | AK66: 66 | AL66: AH66:AH66 | AM66: 449
C67: BERTRAND Joséphine | D67: 181 | E67: 486 | F67: 1825 | G67: 1830 | I67: DUSSERT Joséphine | J67: 162 | K67: 366 | L67: 1402 | M67: 1410 | O67: B | P67: CAIX Marie-Florentine | Q67: 159 | R67: 301 | S67: 1164 | T67: 1168 | V67: B | W67: PELLAT Alphonse | X67: 181 | Y67: 143 | Z67: 583 | AA67: 587 | AG67: ARNAUDET Jules | AH67: 486 | AI67: 6 | AJ67: 67 | AK67: 68 | AL67: AH67:AH68 | AM67: 985
C68: BERTRAND Marie | D68: 183 | E68: 499 | F68: 1875 | G68: 1878 | I68: DUSSERT Louis | J68: 163 | K68: 386 | L68: 1496 | M68: 1497 | O68: B | P68: CAIX Marius | Q68: 160 | R68: 324 | S68: 1243 | T68: 1247 | V68: B | W68: PELLAT André | X68: 186 | Y68: 166 | Z68: 674 | AA68: 678 | AG68: ARNAUDET Jules | AH68: 499 | AI68: 4 | AK68: 68
C69: BIGALLET Marie | D69: 185 | E69: 428 | F69: 1630 | G69: 1634 | I69: DUSSERT Madeleine | J69: 177 | K69: 73 | L69: 304 | M69: 310 | O69: B | P69: CAIX Rémy | Q69: 162 | R69: 341 | S69: 1311 | T69: 1311 | V69: B | W69: PELLAT Aristide | X69: 192 | Y69: 175 | Z69: 707 | AA69: 709 | AG69: ARNAUDET Léon | AH69: 428 | AI69: 5 | AJ69: 69 | AK69: 72 | AL69: AH69:AH72 | AM69: 1785
C70: BLANC Aline | D70: 186 | E70: 438 | F70: 1669 | G70: 1673 | I70: DUSSERT Marguerite | J70: 178 | K70: 99 | L70: 401 | M70: 408 | O70: B | P70: CAIX Théophile | Q70: 164 | R70: 208 | S70: 828 | T70: 834 | V70: B | W70: PELLAT Denis | X70: 196 | Y70: 191 | Z70: 768 | AA70: 772 | AG70: ARNAUDET Léon | AH70: 438 | AI70: 5 | AK70: 72
C71: BLANC Alphonsine | D71: 187 | E71: 454 | F71: 1718 | G71: 1724 | I71: DUSSERT Marie | J71: 180 | K71: 116 | L71: 479 | M71: 486 | O71: B | P71: CHALVIN François | Q71: 167 | R71: 106 | S71: 435 | T71: 438 | V71: B | W71: PELLAT Jean | X71: 197 | Y71: 201 | Z71: 802 | AA71: 804 | AG71: ARNAUDET Léon | AH71: 454 | AI71: 7 | AJ71: =IF(AG71=AG70,"",ROW()) ->  | AK71: =IF(AJ72="",AK72,AJ72-1) -> 72 | AL71: =IF(AJ71="","",CONCATENATE("AH",AJ71,":AH",AK71)) ->  | AM71: =IF(AJ71="","",SUM(INDIRECT(AL71))) -> 
C72: BLANC Emélie | D72: 192 | E72: 465 | F72: 1755 | G72: 1760 | I72: DUSSERT Pierre | J72: 184 | K72: 360 | L72: 1379 | M72: 1382 | O72: B | P72: CHALVIN Henriette | Q72: 168 | R72: 170 | S72: 691 | T72: 696 | V72: B | W72: PELLAT Jean-Denis | X72: 202 | Y72: 217 | Z72: 865 | AA72: 866 | AG72: ARNAUDET Léon | AH72: 465 | AI72: 6 | AK72: 72
C73: BLANC Françoise | D73: 194 | E73: 454 | F73: 1718 | G73: 1724 | I73: DUSSERT Rémy | J73: 191 | K73: 381 | L73: 1476 | M73: 1480 | O73: B | P73: CHALVIN Rémi | Q73: 171 | R73: 208 | S73: 828 | T73: 834 | V73: B | W73: PELLAT Jean-Louis | X73: 207 | Y73: 229 | Z73: 917 | AA73: 920 | AG73: ARNAUDET Léontine | AH73: 454 | AI73: 7 | AJ73: 73 | AK73: 73 | AL73: AH73:AH73 | AM73: 454
C74: BLANC Joseph | D74: 200 | E74: 4 | F74: 13 | G74: 13 | I74: DUSSERT Rose | J74: 192 | K74: 442 | L74: 1683 | M74: 1685 | O74: B | P74: CHALVIN Rémy | Q74: 173 | R74: 237 | S74: 943 | T74: 948 | V74: B | W74: PELLAT Marie | X74: 208 | Y74: 242 | Z74: 961 | AA74: 966 | AG74: ARNAUDET Madeleine | AH74: 4 | AI74: 1 | AJ74: 74 | AK74: 74 | AL74: AH74:AH74 | AM74: 4
C75: BLANC Joseph Laurent | D75: 210 | E75: 428 | F75: 1630 | G75: 1634 | I75: DUSSERT Séraphin | J75: 195 | K75: 460 | L75: 1745 | M75: 1746 | O75: B | P75: CHARBONNEL Marie | Q75: 174 | R75: 266 | S75: 1039 | T75: 1044 | V75: B | W75: PELLISSIER Anne | X75: 209 | Y75: 283 | Z75: 1108 | AA75: 1111 | AG75: ARNAUDET Marie | AH75: 428 | AI75: 5 | AJ75: 75 | AK75: 83 | AL75: AH75:AH83 | AM75: 4117
C76: BLANC Joseph Raymond | D76: 211 | E76: 438 | F76: 1669 | G76: 1673 | I76: FAURE Pellerin | J76: 202 | K76: 462 | L76: 1748 | M76: 1749 | O76: B | P76: CHASSIGNEUX Paul | Q76: 177 | R76: 295 | S76: 1148 | T76: 1151 | V76: B | W76: PELLISSIER Marie | X76: 210 | Y76: 308 | Z76: 1194 | AA76: 1198 | AG76: ARNAUDET Marie | AH76: 438 | AI76: 5 | AK76: 83
C77: BLANC Joséphine | D77: 212 | E77: 443 | F77: 1686 | G77: 1691 | I77: FAVIER Marie | J77: 203 | K77: 478 | L77: 1798 | M77: 1798 | O77: B | P77: COCHET Françoise | Q77: 178 | R77: 129 | S77: 538 | T77: 542 | V77: B | W77: PELLORCE Alphonse | X77: 212 | Y77: 22 | Z77: 87 | AA77: 88 | AG77: ARNAUDET Marie | AH77: 443 | AI77: 6 | AK77: 83
C78: BLANC Joséphine-Aline | D78: 216 | E78: 454 | F78: 1718 | G78: 1724 | I78: FLEUR André | J78: 204 | K78: 493 | L78: 1853 | M78: 1853 | O78: B | P78: CONTAMIN Marcel | Q78: 180 | R78: 129 | S78: 538 | T78: 542 | V78: B | W78: PELLORCE Anne | X78: 214 | Y78: 100 | Z78: 409 | AA78: 409 | AG78: ARNAUDET Marie | AH78: 454 | AI78: 7 | AK78: 83
C79: BLANC Joseph-Laurent | D79: 217 | E79: 455 | F79: 1725 | G79: 1730 | I79: FLEUR Etienne | J79: 207 | K79: 501 | L79: 1880 | M79: 1880 | O79: B | P79: CORBIER Pierre | Q79: 181 | R79: 208 | S79: 828 | T79: 834 | V79: B | W79: PELLORCE Céline | X79: 218 | Y79: 146 | Z79: 591 | AA79: 591 | AG79: ARNAUDET Marie | AH79: 455 | AI79: 6 | AK79: 83
C80: BLANC Léonie | D80: 218 | E80: 465 | F80: 1755 | G80: 1760 | I80: FLEUR Jeanne-Marie | J80: 209 | K80: 7 | L80: 24 | M80: 26 | O80: B | P80: DIDIER Joseph | Q80: 182 | R80: 237 | S80: 943 | T80: 948 | V80: B | W80: PELLORCE Elisabeth | X80: 220 | Y80: 169 | Z80: 690 | AA80: 690 | AG80: ARNAUDET Marie | AH80: 465 | AI80: 6 | AK80: 83
C81: BLANC Madeleine | D81: 219 | E81: 472 | F81: 1775 | G81: 1780 | I81: FLEUR Joseph | J81: 213 | K81: 62 | L81: 261 | M81: 263 | O81: B | P81: DODE André | Q81: 183 | R81: 266 | S81: 1039 | T81: 1044 | V81: B | W81: PELLORCE Henri | X81: 224 | Y81: 183 | Z81: 747 | AA81: 747 | AG81: ARNAUDET Marie | AH81: 472 | AI81: 6 | AK81: 83
C82: BLANC Marie | D82: 220 | E82: 480 | F82: 1802 | G82: 1806 | I82: FLEUR Joséphine | J82: 217 | K82: 122 | L82: 506 | M82: 511 | O82: B | P82: DODE Henri | Q82: 185 | R82: 295 | S82: 1148 | T82: 1151 | V82: B | W82: PELLORCE Henri Alphonse | X82: 232 | Y82: 26 | Z82: 107 | AA82: 111 | AG82: ARNAUDET Marie | AH82: 480 | AI82: 5 | AK82: 83
C83: BLANC Marie-Aline | D83: 229 | E83: 482 | F83: 1812 | G83: 1817 | I83: FLEUR Louis | J83: 218 | K83: 185 | L83: 752 | M83: 752 | O83: B | P83: DODE Louis | Q83: 187 | R83: 292 | S83: 1136 | T83: 1140 | V83: B | W83: PELLORCE Henri-Alphonse | X83: 233 | Y83: 130 | Z83: 543 | AA83: 545 | AG83: ARNAUDET Marie | AH83: 482 | AI83: 6 | AK83: 83
C84: BLANC Marie-Emilie | D84: 230 | E84: 482 | F84: 1812 | G84: 1817 | I84: FLEUR Marie | J84: 223 | K84: 239 | L84: 955 | M84: 955 | O84: B | P84: DODE Marie | Q84: 191 | R84: 292 | S84: 1136 | T84: 1140 | V84: B | W84: PELLORCE Jean-Louis | X84: 234 | Y84: 178 | Z84: 721 | AA84: 724 | AG84: ARNAUDET Maximin | AH84: 482 | AI84: 6 | AJ84: 84 | AK84: 84 | AL84: AH84:AH84 | AM84: 482
C85: BLANC Marie-Louise | D85: 231 | E85: 352 | F85: 1353 | G85: 1358 | I85: GAY Michel | J85: 224 | K85: 243 | L85: 967 | M85: 967 | O85: B | P85: DODE Marie-Louise | Q85: 193 | R85: 12 | S85: 45 | T85: 50 | V85: B | W85: PELLORCE Jeanne | X85: 236 | Y85: 184 | Z85: 748 | AA85: 751 | AG85: ARNAUDET Rémy | AH85: 352 | AI85: 6 | AJ85: 85 | AK85: 93 | AL85: AH85:AH93 | AM85: 4020
C86: BLANC Raymond | D86: 232 | E86: 409 | F86: 1563 | G86: 1566 | I86: GIROLLET Hippolyte | J86: 229 | K86: 171 | L86: 697 | M86: 697 | O86: B | P86: DOYON Gisèle | Q86: 194 | R86: 237 | S86: 943 | T86: 948 | V86: B | W86: PELLORCE Laurent | X86: 237 | Y86: 232 | Z86: 928 | AA86: 931 | AG86: ARNAUDET Rémy | AH86: 409 | AI86: 4 | AK86: 93
C87: BLANC Rémi | D87: 236 | E87: 419 | F87: 1606 | G87: 1609 | I87: GIROLLET Jacques | J87: 236 | K87: 378 | L87: 1464 | M87: 1465 | O87: B | P87: DUPRE Amélie | Q87: 195 | R87: 266 | S87: 1039 | T87: 1044 | V87: B | W87: PELLORCE Marie | X87: 238 | Y87: 257 | Z87: 1010 | AA87: 1012 | AG87: ARNAUDET Rémy | AH87: 419 | AI87: 4 | AK87: 93
C88: BLANC Rémy | D88: 239 | E88: 443 | F88: 1686 | G88: 1691 | I88: GIROLLET Marie | J88: 238 | K88: 209 | L88: 835 | M88: 842 | O88: B | P88: DUPRE Catherine | Q88: 198 | R88: 295 | S88: 1148 | T88: 1151 | V88: B | W88: PELLORCE Victor | X88: 239 | Y88: 113 | Z88: 467 | AA88: 470 | AG88: ARNAUDET Rémy | AH88: 443 | AI88: 6 | AK88: 93
C89: BLANC Rémy-Emile | D89: 244 | E89: 455 | F89: 1725 | G89: 1730 | I89: GIROLLET Pierre | J89: 240 | K89: 552 | L89: 2083 | M89: 2083 | O89: B | P89: DUPRE Emélie | Q89: 199 | R89: 170 | S89: 691 | T89: 696 | V89: B | W89: PIERRA André | X89: 241 | Y89: 42 | Z89: 176 | AA89: 181 | AG89: ARNAUDET Rémy | AH89: 455 | AI89: 6 | AK89: 93
C90: BOCHE Antonin | D90: 245 | E90: 472 | F90: 1775 | G90: 1780 | I90: GIROUD François | J90: 251 | K90: 356 | L90: 1366 | M90: 1367 | O90: B | P90: DUPRE Emilie | Q90: 200 | R90: 292 | S90: 1136 | T90: 1140 | V90: B | W90: RANQUE André | X90: 243 | Y90: 35 | Z90: 147 | AA90: 149 | AG90: ARNAUDET Rémy | AH90: 472 | AI90: 6 | AK90: 93
C91: BONNET Léon | D91: 246 | E91: 482 | F91: 1812 | G91: 1817 | I91: GIROUD Jean-Louis | J91: 259 | K91: 392 | L91: 1517 | M91: 1518 | O91: B | P91: DUPRE Françoise | Q91: 202 | R91: 170 | S91: 691 | T91: 696 | V91: B | W91: RANQUE Blaise | X91: 244 | Y91: 41 | Z91: 171 | AA91: 175 | AG91: ARNAUDET Rémy | AH91: 482 | AI91: 6 | AK91: 93
C92: BONNET Marianne | D92: 247 | E92: 491 | F92: 1844 | G92: 1846 | I92: GIROUD Joseph | J92: 262 | K92: 402 | L92: 1545 | M92: 1546 | O92: B | P92: DUPRE Geneviève | Q92: 203 | R92: 208 | S92: 828 | T92: 834 | V92: B | W92: RANQUE Clarisse | X92: 245 | Y92: 71 | Z92: 295 | AA92: 299 | AG92: ARNAUDET Rémy | AH92: 491 | AI92: 3 | AK92: 93
C93: BOTHOLIER LASQUIN Simon | D93: 248 | E93: 497 | F93: 1867 | G93: 1868 | I93: GIROUD Rémy | J93: 266 | K93: 430 | L93: 1637 | M93: 1640 | O93: B | P93: DUPRE Marie | Q93: 205 | R93: 237 | S93: 943 | T93: 948 | V93: B | W93: RANQUE Claude | X93: 247 | Y93: 289 | Z93: 1129 | AA93: 1130 | AG93: ARNAUDET Rémy | AH93: 497 | AI93: 2 | AK93: 93
C94: BOUVET Célestine | D94: 250 | E94: 438 | F94: 1669 | G94: 1673 | I94: GUBIOZ Pierre | J94: 273 | K94: 213 | L94: 851 | M94: 852 | O94: B | P94: DUPRE Marie-Emilie | Q94: 206 | R94: 266 | S94: 1039 | T94: 1044 | V94: B | W94: RANQUE Jean-Charles | X94: 252 | Y94: 28 | Z94: 118 | AA94: 121 | AG94: ARNAUDET Rosalie | AH94: 438 | AI94: 5 | AJ94: 94 | AK94: 98 | AL94: AH94:AH98 | AM94: 2342
C95: BREDY Claudine | D95: 251 | E95: 454 | F95: 1718 | G95: 1724 | I95: HOSTACHE Emilie | J95: 274 | K95: 385 | L95: 1491 | M95: 1495 | O95: B | P95: DUPRE Marie-Pélagie | Q95: 207 | R95: 237 | S95: 943 | T95: 948 | V95: B | W95: RANQUE Joseph | X95: 253 | Y95: 181 | Z95: 735 | AA95: 739 | AG95: ARNAUDET Rosalie | AH95: 454 | AI95: 7 | AK95: 98
C96: BROTTET Marie | D96: 252 | E96: 465 | F96: 1755 | G96: 1760 | I96: ISEMIN Henri | J96: 275 | K96: 415 | L96: 1588 | M96: 1592 | O96: B | P96: DUSSERT Alexis | Q96: 208 | R96: 170 | S96: 691 | T96: 696 | V96: B | W96: RANQUE Joseph(ine) | X96: 264 | Y96: 230 | Z96: 921 | AA96: 924 | AG96: ARNAUDET Rosalie | AH96: 465 | AI96: 6 | AK96: 98
C97: BRUN Emile | D97: 253 | E97: 486 | F97: 1825 | G97: 1830 | I97: JOUFFREY Auguste | J97: 276 | K97: 418 | L97: 1599 | M97: 1605 | O97: B | P97: DUSSERT Alphonse | Q97: 212 | R97: 208 | S97: 828 | T97: 834 | V97: B | W97: RANQUE Louis | X97: 265 | Y97: 256 | Z97: 1006 | AA97: 1009 | AG97: ARNAUDET Rosalie | AH97: 486 | AI97: 6 | AK97: 98
C98: BRUN Emilie | D98: 254 | E98: 499 | F98: 1875 | G98: 1878 | I98: JOUVEL Louis | J98: 278 | K98: 445 | L98: 1693 | M98: 1697 | O98: B | P98: DUSSERT André | Q98: 213 | R98: 266 | S98: 1039 | T98: 1044 | V98: B | W98: RANQUE Louis-Philippe | X98: 267 | Y98: 287 | Z98: 1122 | AA98: 1124 | AG98: ARNAUDET Rosalie | AH98: 499 | AI98: 4 | AK98: 98
C99: CAIX Adeline | D99: 255 | E99: 388 | F99: 1501 | G99: 1503 | I99: LEPIDI Ange Louis | J99: 282 | K99: 467 | L99: 1764 | M99: 1764 | O99: B | P99: DUSSERT Antoine | Q99: 214 | R99: 292 | S99: 1136 | T99: 1140 | V99: B | W99: RANQUE Marguerite | X99: 273 | Y99: 297 | Z99: 1155 | AA99: 1156 | AG99: ARNAUDET Théophile | AH99: 388 | AI99: 3 | AJ99: 99 | AK99: 99 | AL99: AH99:AH99 | AM99: 388
C100: CAIX Adolphe | D100: 264 | E100: 347 | F100: 1335 | G100: 1339 | I100: LESOURD André | J100: 283 | K100: 536 | L100: 2017 | M100: 2020 | O100: B | P100: DUSSERT Auguste | Q100: 215 | R100: 233 | S100: 932 | T100: 935 | V100: B | W100: RANQUE Pierre | X100: 276 | Y100: 196 | Z100: 784 | AA100: 786 | AG100: ARNOL Edouard | AH100: 347 | AI100: 5 | AJ100: 100 | AK100: 100 | AL100: AH100:AH100 | AM100: 347
C101: CAIX Alphonse | D101: 265 | E101: 347 | F101: 1335 | G101: 1339 | I101: MAGNAN Anathalie | J101: 284 | K101: 538 | L101: 2027 | M101: 2030 | O101: B | P101: DUSSERT Augustin | Q101: 216 | R101: 326 | S101: 1249 | T101: 1260 | V101: B | W101: RANQUE Théophile | X101: 277 | Y101: 13 | Z101: 51 | AA101: 54 | AG101: ARNOL Emile | AH101: 347 | AI101: 5 | AJ101: 101 | AK101: 101 | AL101: AH101:AH101 | AM101: 347
C102: CAIX Anne | D102: 269 | E102: 458 | F102: 1737 | G102: 1742 | I102: MAGNAN Edouard | J102: 285 | K102: 542 | L102: 2040 | M102: 2042 | O102: B | P102: DUSSERT Célestine | Q102: 223 | R102: 41 | S102: 171 | T102: 175 | V102: B | W102: REYMOND André | X102: 281 | Y102: 50 | Z102: 216 | AA102: 219 | AG102: ARNOL Marie | AH102: 458 | AI102: 6 | AJ102: 102 | AK102: 105 | AL102: AH102:AH105 | AM102: 1974
C103: CAIX Antoine | D103: 270 | E103: 470 | F103: 1768 | G103: 1773 | I103: MERVAL Emile | J103: 287 | K103: 562 | L103: 2116 | M103: 2117 | O103: B | P103: DUSSERT Claudine | Q103: 228 | R103: 287 | S103: 1122 | T103: 1124 | V103: B | W103: REYMOND Anne-Marie | X103: 283 | Y103: 94 | Z103: 387 | AA103: 389 | AG103: ARNOL Marie | AH103: 470 | AI103: 6 | AK103: 105
C104: CAIX Aristide | D104: 272 | E104: 476 | F104: 1789 | G104: 1794 | I104: MERVAL Paul | J104: 293 | K104: 576 | L104: 2163 | M104: 2164 | O104: B | P104: DUSSERT Eléonore | Q104: 230 | R104: 271 | S104: 1055 | T104: 1062 | V104: B | W104: REYMOND Blaise | X104: 286 | Y104: 139 | Z104: 567 | AA104: 569 | AG104: ARNOL Marie | AH104: 476 | AI104: 6 | AK104: 105
C105: CAIX Emile | D105: 276 | E105: 570 | F105: 2142 | G105: 2145 | I105: MICHEL Anne | J105: 297 | K105: 580 | L105: 2183 | M105: 2184 | O105: B | P105: DUSSERT Elie | Q105: 231 | R105: 109 | S105: 445 | T105: 450 | V105: B | W105: REYMOND Catherine | X105: 288 | Y105: 174 | Z105: 703 | AA105: 706 | AG105: ARNOL Marie | AH105: 570 | AI105: 4 | AK105: 105
C106: CAIX Emmanuel | D106: 279 | E106: 347 | F106: 1335 | G106: 1339 | I106: MICHEL Catherine | J106: 301 | K106: 594 | L106: 2231 | M106: 2231 | O106: B | P106: DUSSERT Eugène | Q106: 235 | R106: 62 | S106: 261 | T106: 263 | V106: B | W106: REYMOND Célestin | X106: 289 | Y106: 189 | Z106: 764 | AA106: 765 | AG106: ARNOL Marie-Louise | AH106: 347 | AI106: 5 | AJ106: 106 | AK106: 106 | AL106: AH106:AH106 | AM106: 347
C107: CAIX Eugène | D107: 282 | E107: 347 | F107: 1335 | G107: 1339 | I107: MICHEL Denis | J107: 302 | K107: 618 | L107: 2317 | M107: 2317 | O107: B | P107: DUSSERT Eugénie | Q107: 243 | R107: 110 | S107: 451 | T107: 454 | V107: B | W107: REYMOND Esprit | X107: 290 | Y107: 117 | Z107: 487 | AA107: 491 | AG107: ARNOL Théréza | AH107: 347 | AI107: 5 | AJ107: 107 | AK107: 107 | AL107: AH107:AH107 | AM107: 347
C108: CAIX Eugénie | D108: 283 | E108: 541 | F108: 2038 | G108: 2039 | I108: MICHEL Gabriel | J108: 303 | K108: 334 | L108: 1287 | M108: 1288 | O108: B | P108: DUSSERT Jean | Q108: 247 | R108: 123 | S108: 512 | T108: 516 | V108: B | W108: REYMOND Françoise | X108: 293 | Y108: 154 | Z108: 623 | AA108: 627 | AG108: AUBERT Philomène | AH108: 541 | AI108: 2 | AJ108: 108 | AK108: 116 | AL108: AH108:AH116 | AM108: 5319
C109: CAIX Florentine | D109: 284 | E109: 563 | F109: 2118 | G109: 2120 | I109: MICHEL Jeanne | J109: 304 | K109: 290 | L109: 1131 | M109: 1131 | O109: B | P109: DUSSERT Jean-Baptiste | Q109: 248 | R109: 176 | S109: 710 | T109: 716 | V109: B | W109: REYMOND Jean | X109: 294 | Y109: 210 | Z109: 843 | AA109: 847 | AG109: AUBERT Philomène | AH109: 563 | AI109: 3 | AK109: 116
C110: CAIX Françoise | D110: 287 | E110: 579 | F110: 2179 | G110: 2182 | I110: MICHEL Marie | J110: 307 | K110: 260 | L110: 1024 | M110: 1025 | O110: B | P110: DUSSERT Joseph | Q110: 250 | R110: 182 | S110: 740 | T110: 746 | V110: B | W110: REYMOND Joseph | X110: 295 | Y110: 226 | Z110: 904 | AA110: 907 | AG110: AUBERT Philomène | AH110: 579 | AI110: 4 | AK110: 116
C111: CAIX Hippolyte | D111: 288 | E111: 582 | F111: 2186 | G111: 2189 | I111: MICHEL Victoire | J111: 309 | K111: 316 | L111: 1221 | M111: 1221 | O111: B | P111: DUSSERT Joséphine | Q111: 260 | R111: 238 | S111: 949 | T111: 954 | V111: B | W111: REYMOND Louis | X111: 300 | Y111: 261 | Z111: 1026 | AA111: 1030 | AG111: AUBERT Philomène | AH111: 582 | AI111: 4 | AK111: 116
C112: CAIX Hortense | D112: 295 | E112: 598 | F112: 2244 | G112: 2247 | I112: MONTELLI Maurice | J112: 311 | K112: 317 | L112: 1222 | M112: 1228 | O112: B | P112: DUSSERT Léon | Q112: 261 | R112: 250 | S112: 980 | T112: 983 | V112: B | W112: REYMOND Rémy | X112: 308 | Y112: 281 | Z112: 1102 | AA112: 1105 | AG112: AUBERT Philomène | AH112: 598 | AI112: 4 | AK112: 116
C113: CAIX Jacques | D113: 297 | E113: 604 | F113: 2264 | G113: 2267 | I113: MOREL Auguste | J113: 312 | K113: 335 | L113: 1289 | M113: 1294 | O113: B | P113: DUSSERT Louis | Q113: 263 | R113: 285 | S113: 1117 | T113: 1120 | V113: B | W113: RIVOIRE André | X113: 309 | Y113: 301 | Z113: 1164 | AA113: 1168 | AG113: AUBERT Philomène | AH113: 604 | AI113: 4 | AK113: 116
C114: CAIX Jean | D114: 299 | E114: 613 | F114: 2297 | G114: 2301 | I114: MOUNIER Pierre-Marius | J114: 313 | K114: 194 | L114: 776 | M114: 778 | O114: B | P114: DUSSERT Louise | Q114: 278 | R114: 310 | S114: 1202 | T114: 1204 | V114: B | W114: RIVOIRE Antoine | X114: 315 | Y114: 324 | Z114: 1243 | AA114: 1247 | AG114: AUBERT Philomène | AH114: 613 | AI114: 5 | AK114: 116
C115: CAIX Jeanne | D115: 303 | E115: 616 | F115: 2309 | G115: 2310 | I115: NOIREY Constantin | J115: 314 | K115: 307 | L115: 1192 | M115: 1193 | O115: B | P115: DUSSERT Madeleine | Q115: 279 | R115: 99 | S115: 401 | T115: 408 | V115: B | W115: RIVOIRE Catherine | X115: 322 | Y115: 23 | Z115: 89 | AA115: 98 | AG115: AUBERT Philomène | AH115: 616 | AI115: 2 | AK115: 116
C116: CAIX Joseph | D116: 304 | E116: 623 | F116: 2335 | G116: 2338 | I116: NOIREY Noémie | J116: 322 | K116: 355 | L116: 1365 | M116: 1365 | O116: B | P116: DUSSERT Maria-Téréza | Q116: 280 | R116: 116 | S116: 479 | T116: 486 | V116: B | W116: RIVOIRE Firmin | X116: 323 | Y116: 56 | Z116: 241 | AA116: 244 | AG116: AUBERT Philomène | AH116: 623 | AI116: 4 | AK116: 116
C117: CAIX Joséphine | D117: 307 | E117: 358 | F117: 1371 | G117: 1373 | I117: ODDOUX Edouard | J117: 325 | K117: 406 | L117: 1556 | M117: 1556 | O117: B | P117: DUSSERT Marie | Q117: 281 | R117: 153 | S117: 616 | T117: 622 | V117: B | W117: RIVOIRE Françoise | X117: 325 | Y117: 90 | Z117: 373 | AA117: 376 | AG117: BALME Etienne | AH117: 358 | AI117: 3 | AJ117: 117 | AK117: 117 | AL117: AH117:AH117 | AM117: 358
C118: CAIX Jules | D118: 316 | E118: 242 | F118: 961 | G118: 966 | I118: ODDOUX Etienne | J118: 327 | K118: 417 | L118: 1598 | M118: 1598 | O118: B | P118: DUSSERT Marie-Célestine | Q118: 301 | R118: 209 | S118: 835 | T118: 842 | V118: B | W118: RIVOIRE Laurent | X118: 326 | Y118: 52 | Z118: 227 | AA118: 230 | AG118: BALME Marie | AH118: 242 | AI118: 6 | AJ118: 118 | AK118: 118 | AL118: AH118:AH118 | AM118: 242
C119: CAIX Jules Rémi | D119: 324 | E119: 601 | F119: 2256 | G119: 2256 | I119: ODDOUX Florentine | J119: 328 | K119: 270 | L119: 1052 | M119: 1054 | O119: B | P119: DUSSERT Marius | Q119: 302 | R119: 99 | S119: 401 | T119: 408 | V119: B | W119: RIVOIRE Louis | X119: 327 | Y119: 95 | Z119: 390 | AA119: 392 | AG119: BARONNA François | AH119: 601 | AI119: 1 | AJ119: 119 | AK119: 119 | AL119: AH119:AH119 | AM119: 601
C120: CAIX Julie | D120: 325 | E120: 550 | F120: 2075 | G120: 2078 | I120: ODDOUX Jean | J120: 329 | K120: 282 | L120: 1106 | M120: 1107 | O120: B | P120: DUSSERT Marius-Emile | Q120: 304 | R120: 116 | S120: 479 | T120: 486 | V120: B | W120: RIVOIRE Mathieu | X120: 328 | Y120: 140 | Z120: 570 | AA120: 572 | AG120: BELLET Adeline | AH120: 550 | AI120: 4 | AJ120: 120 | AK120: 121 | AL120: AH120:AH121 | AM120: 1134
C121: CAIX Léonie | D121: 326 | E121: 584 | F121: 2193 | G121: 2197 | I121: ODDOUX Jean-Baptiste | J121: 330 | K121: 373 | L121: 1449 | M121: 1449 | O121: B | P121: DUSSERT Pélagie | Q121: 305 | R121: 153 | S121: 616 | T121: 622 | V121: B | W121: RIVOIRE Mélanie | X121: 332 | Y121: 156 | Z121: 633 | AA121: 638 | AG121: BELLET Adeline | AH121: 584 | AI121: 5 | AK121: 121
C122: CAIX Louis | D122: 328 | E122: 533 | F122: 2004 | G122: 2007 | I122: ODDOUX Louis | J122: 336 | K122: 70 | L122: 292 | M122: 294 | O122: B | P122: DUSSERT Pierre | Q122: 311 | R122: 209 | S122: 835 | T122: 842 | V122: B | W122: RIVOIRE Pierre | X122: 333 | Y122: 197 | Z122: 787 | AA122: 792 | AG122: BELLET Arey | AH122: 533 | AI122: 4 | AJ122: 122 | AK122: 123 | AL122: AH122:AH123 | AM122: 1083
C123: CAIX Louis Alphonse | D123: 335 | E123: 550 | F123: 2075 | G123: 2078 | I123: ODDOUX Marie | J123: 339 | K123: 351 | L123: 1345 | M123: 1352 | O123: B | P123: DUSSERT Rémy | Q123: 318 | R123: 116 | S123: 479 | T123: 486 | V123: B | W123: RIVOIRE Rémy | X123: 336 | Y123: 223 | Z123: 889 | AA123: 895 | AG123: BELLET Arey | AH123: 550 | AI123: 4 | AK123: 123
C124: CAIX Louise | D124: 336 | E124: 533 | F124: 2004 | G124: 2007 | I124: ODDOUX Vincent | J124: 342 | K124: 440 | L124: 1678 | M124: 1679 | O124: B | P124: DUSSERT Rose | Q124: 323 | R124: 153 | S124: 616 | T124: 622 | V124: B | W124: RIVOIRE Rosalie | X124: 338 | Y124: 259 | Z124: 1018 | AA124: 1023 | AG124: BELLET François | AH124: 533 | AI124: 4 | AJ124: 124 | AK124: 129 | AL124: AH124:AH129 | AM124: 3382
C125: CAIX Marie | D125: 337 | E125: 550 | F125: 2075 | G125: 2078 | I125: PAYAN Félix | J125: 350 | K125: 464 | L125: 1754 | M125: 1754 | O125: B | P125: DUSSERT Séraphin | Q125: 324 | R125: 209 | S125: 835 | T125: 842 | V125: B | W125: SARRET Catherine | X125: 339 | Y125: 279 | Z125: 1090 | AA125: 1095 | AG125: BELLET François | AH125: 550 | AI125: 4 | AK125: 129
C126: CAIX Marie-Florentine | D126: 349 | E126: 556 | F126: 2088 | G126: 2089 | I126: PELLAT Alphonse | J126: 353 | K126: 578 | L126: 2173 | M126: 2178 | O126: B | P126: EYMARD Marie | Q126: 325 | R126: 116 | S126: 479 | T126: 486 | V126: B | W126: SERBON Joseph | X126: 342 | Y126: 304 | Z126: 1181 | AA126: 1186 | AG126: BELLET François | AH126: 556 | AI126: 2 | AK126: 129
C127: CAIX Marie-Louise | D127: 350 | E127: 569 | F127: 2140 | G127: 2141 | I127: PELLAT André | J127: 358 | K127: 350 | L127: 1344 | M127: 1344 | O127: B | P127: FAURE Emile | Q127: 326 | R127: 153 | S127: 616 | T127: 622 | V127: B | W127: VERNET Jean-Pierre | X127: 343 | Y127: 322 | Z127: 1236 | AA127: 1238 | AG127: BELLET François | AH127: 569 | AI127: 2 | AK127: 129
C128: CAIX Marius | D128: 351 | E128: 584 | F128: 2193 | G128: 2197 | I128: PELLAT Aristide | J128: 364 | K128: 40 | L128: 167 | M128: 170 | O128: B | P128: FAURE Eugénie | Q128: 327 | R128: 209 | S128: 835 | T128: 842 | V128: B | W128: VERNET Pierre | X128: 349 | Y128: 342 | Z128: 1312 | AA128: 1313 | AG128: BELLET François | AH128: 584 | AI128: 5 | AK128: 129
C129: CAIX Noémie | D129: 353 | E129: 590 | F129: 2221 | G129: 2222 | I129: PELLAT Denis | J129: 368 | K129: 370 | L129: 1431 | M129: 1437 | O129: B | P129: FAURE Pellerin | Q129: 328 | R129: 62 | S129: 261 | T129: 263 | V129: B | W129: VERNET Pierre-Denis | X129: 351 | Y129: 268 | Z129: 1047 | AA129: 1049 | AG129: BELLET François | AH129: 590 | AI129: 2 | AK129: 129
C130: CAIX Paul | D130: 357 | E130: 530 | F130: 1999 | G130: 1999 | I130: PELLAT Jean | J130: 369 | K130: 14 | L130: 55 | M130: 60 | O130: B | P130: FAVOT Frédéric | Q130: 329 | R130: 99 | S130: 401 | T130: 408 | V130: B | W130: VERNET Séraphine | X130: 352 | Y130: 227 | Z130: 908 | AA130: 911 | AG130: BELLET Pierre | AH130: 530 | AI130: 1 | AJ130: 130 | AK130: 132 | AL130: AH130:AH132 | AM130: 1634
C131: CAIX Rémy | D131: 358 | E131: 549 | F131: 2074 | G131: 2074 | I131: PELLAT Jean-Denis | J131: 374 | K131: 532 | L131: 2002 | M131: 2003 | O131: B | P131: FLEUR André | Q131: 330 | R131: 116 | S131: 479 | T131: 486 | V131: B | W131: VEYRAT Anne | X131: 354 | Y131: 249 | Z131: 979 | AA131: 979 | AG131: BELLET Pierre | AH131: 549 | AI131: 1 | AK131: 132
C132: CAIX Rosalie | D132: 360 | E132: 555 | F132: 2087 | G132: 2087 | I132: PELLAT Jean-Louis | J132: 379 | K132: 144 | L132: 588 | M132: 588 | O132: B | P132: FLEUR Anne-Marie | Q132: 331 | R132: 153 | S132: 616 | T132: 622 | V132: H | W132: ARLOT Benoît | X132: 355 | Y132: 224 | Z132: 896 | AA132: 899 | AG132: BELLET Pierre | AH132: 555 | AI132: 1 | AK132: 132
C133: CAIX Théophile | D133: 361 | E133: 44 | F133: 186 | G133: 191 | I133: PELLAT Marie | J133: 380 | K133: 200 | L133: 801 | M133: 801 | O133: B | P133: FLEUR Claude | Q133: 332 | R133: 73 | S133: 304 | T133: 310 | V133: H | W133: ARLOT Madeleine | X133: 356 | Y133: 258 | Z133: 1013 | AA133: 1017 | AG133: BELLON Anathalie | AH133: 44 | AI133: 6 | AJ133: 133 | AK133: 136 | AL133: AH133:AH136 | AM133: 779
C134: CAIX Victoire | D134: 364 | E134: 190 | F134: 766 | G134: 767 | I134: PELLISSIER Anne | J134: 381 | K134: 216 | L134: 864 | M134: 864 | O134: B | P134: FLEUR Jeanne | Q134: 333 | R134: 99 | S134: 401 | T134: 408 | V134: H | W134: ARNAUDET Achille | X134: 359 | Y134: 303 | Z134: 1177 | AA134: 1180 | AG134: BELLON Anathalie | AH134: 190 | AI134: 2 | AK134: 136
C135: CARROLINE Françoise | D135: 365 | E135: 233 | F135: 932 | G135: 935 | I135: PELLISSIER Marie | J135: 382 | K135: 470 | L135: 1768 | M135: 1773 | O135: B | P135: FLEUR Jeanne-Marie | Q135: 335 | R135: 116 | S135: 479 | T135: 486 | V135: H | W135: ARNAUDET André | X135: 365 | Y135: 323 | Z135: 1239 | AA135: 1242 | AG135: BELLON Anathalie | AH135: 233 | AI135: 4 | AJ135: =IF(AG135=AG134,"",ROW()) ->  | AK135: =IF(AJ136="",AK136,AJ136-1) -> 136 | AL135: =IF(AJ135="","",CONCATENATE("AH",AJ135,":AH",AK135)) ->  | AM135: =IF(AJ135="","",SUM(INDIRECT(AL135))) -> 
C136: CARROLINE Marie | D136: 368 | E136: 312 | F136: 1206 | G136: 1209 | I136: PELLORCE Adolphe | J136: 384 | K136: 225 | L136: 900 | M136: 903 | O136: B | P136: FLEUR Joseph | Q136: 336 | R136: 73 | S136: 304 | T136: 310 | V136: H | W136: ARNAUDET Eugène | X136: 369 | Y136: 300 | Z136: 1162 | AA136: 1163 | AG136: BELLON Anathalie | AH136: 312 | AI136: 4 | AK136: 136
C137: CHALVIN Alphonse | D137: 372 | E137: 126 | F137: 523 | G137: 528 | I137: PELLORCE Alexandre | J137: 386 | K137: 253 | L137: 993 | M137: 996 | O137: B | P137: FLEUR Joséphine | Q137: 341 | R137: 73 | S137: 304 | T137: 310 | V137: H | W137: ARNAUDET Joseph | X137: 371 | Y137: 318 | Z137: 1229 | AA137: 1229 | AG137: BELLON Eugène | AH137: 126 | AI137: 6 | AJ137: 137 | AK137: 140 | AL137: AH137:AH140 | AM137: 693
C138: CHALVIN Antoine | D138: 373 | E138: 167 | F138: 679 | G138: 683 | I138: PELLORCE Alphonse | J138: 389 | K138: 273 | L138: 1069 | M138: 1071 | O138: B | P138: FLEUR Louis | Q138: 347 | R138: 209 | S138: 835 | T138: 842 | V138: H | W138: ARNAUDET Rémy | X138: 372 | Y138: 190 | Z138: 766 | AA138: 767 | AG138: BELLON Eugène | AH138: 167 | AI138: 5 | AK138: 140
C139: CHALVIN François | D139: 374 | E139: 186 | F139: 753 | G139: 757 | I139: PELLORCE Anne | J139: 391 | K139: 314 | L139: 1214 | M139: 1216 | O139: B | P139: FLEUR Marie | Q139: 348 | R139: 7 | S139: 24 | T139: 26 | V139: H | W139: BALME Etienne | X139: 373 | Y139: 233 | Z139: 932 | AA139: 935 | AG139: BELLON Eugène | AH139: 186 | AI139: 5 | AK139: 140
C140: CHALVIN Henriette | D140: 381 | E140: 214 | F140: 853 | G140: 857 | I140: PELLORCE Céline | J140: 395 | K140: 414 | L140: 1583 | M140: 1587 | O140: B | P140: FLEUR Pauline | Q140: 351 | R140: 62 | S140: 261 | T140: 263 | V140: H | W140: BERNARD Marie-Madeleine | X140: 374 | Y140: 29 | Z140: 122 | AA140: 125 | AG140: BELLON Eugène | AH140: 214 | AI140: 5 | AK140: 140
C141: CHALVIN Laurent | D141: 388 | E141: 186 | F141: 753 | G141: 757 | I141: PELLORCE Denis | J141: 397 | K141: 416 | L141: 1593 | M141: 1597 | O141: B | P141: FLEUR Pierre | Q141: 359 | R141: 109 | S141: 445 | T141: 450 | V141: H | W141: CAIX Hippolyte | X141: 375 | Y141: 25 | Z141: 105 | AA141: 106 | AG141: BELLON Gaston | AH141: 186 | AI141: 5 | AJ141: 141 | AK141: 141 | AL141: AH141:AH141 | AM141: 186
C142: CHALVIN Louis | D142: 391 | E142: 44 | F142: 186 | G142: 191 | I142: PELLORCE Elisabeth | J142: 398 | K142: 426 | L142: 1625 | M142: 1628 | O142: B | P142: FLEUR Rémy | Q142: 360 | R142: 122 | S142: 506 | T142: 511 | V142: H | W142: CAIX Jacques | X142: 380 | Y142: 57 | Z142: 245 | AA142: 246 | AG142: BELLON Gustave | AH142: 44 | AI142: 6 | AJ142: 142 | AK142: 148 | AL142: AH142:AH148 | AM142: 1166
C143: CHALVIN Louise | D143: 392 | E143: 79 | F143: 329 | G143: 334 | I143: PELLORCE Etienne | J143: 402 | K143: 432 | L143: 1644 | M143: 1647 | O143: B | P143: FLEUR Vincent | Q143: 363 | R143: 185 | S143: 752 | T143: 752 | V143: H | W143: CAIX Jean | X143: 382 | Y143: 88 | Z143: 367 | AA143: 368 | AG143: BELLON Gustave | AH143: 79 | AI143: 6 | AK143: 148
C144: CHALVIN Madeleine | D144: 401 | E144: 126 | F144: 523 | G144: 528 | I144: PELLORCE Félix | J144: 403 | K144: 475 | L144: 1785 | M144: 1788 | O144: B | P144: FOURNIER Odette | Q144: 364 | R144: 239 | S144: 955 | T144: 955 | V144: H | W144: CAIX Joseph | X144: 383 | Y144: 18 | Z144: 76 | AA144: 78 | AG144: BELLON Gustave | AH144: 126 | AI144: 6 | AK144: 148
C145: CHALVIN Marie | D145: 402 | E145: 167 | F145: 679 | G145: 683 | I145: PELLORCE Henri | J145: 408 | K145: 485 | L145: 1822 | M145: 1824 | O145: B | P145: GAY Lucien | Q145: 365 | R145: 243 | S145: 967 | T145: 967 | V145: H | W145: CAIX Joséphine | X145: 384 | Y145: 76 | Z145: 319 | AA145: 321 | AG145: BELLON Gustave | AH145: 167 | AI145: 5 | AK145: 148
C146: CHALVIN Marie-Henriette | D146: 407 | E146: 214 | F146: 853 | G146: 857 | I146: PELLORCE Henri Alphonse | J146: 418 | K146: 496 | L146: 1864 | M146: 1866 | O146: B | P146: GAY Marie | Q146: 366 | R146: 73 | S146: 304 | T146: 310 | V146: H | W146: CAIX Paul | X146: 390 | Y146: 98 | Z146: 399 | AA146: 400 | AG146: BELLON Gustave | AH146: 214 | AI146: 5 | AK146: 148
C147: CHALVIN Octavie | D147: 408 | E147: 265 | F147: 1037 | G147: 1038 | I147: PELLORCE Henri-Alphonse | J147: 419 | K147: 204 | L147: 816 | M147: 816 | O147: B | P147: GERARD Alexandrine | Q147: 367 | R147: 171 | S147: 697 | T147: 697 | V147: H | W147: CARROLINE Marie | X147: 391 | Y147: 120 | Z147: 503 | AA147: 504 | AG147: BELLON Gustave | AH147: 265 | AI147: 2 | AK147: 148
C148: CHALVIN Pierre | D148: 412 | E148: 271 | F148: 1055 | G148: 1062 | I148: PELLORCE Jean | J148: 420 | K148: 451 | L148: 1708 | M148: 1711 | O148: B | P148: GERVAIS Jules | Q148: 368 | R148: 7 | S148: 24 | T148: 26 | V148: H | W148: CHALVIN François | X148: 395 | Y148: 172 | Z148: 698 | AA148: 698 | AG148: BELLON Gustave | AH148: 271 | AI148: 8 | AK148: 148
C149: CHALVIN Rémi | D149: 413 | E149: 44 | F149: 186 | G149: 191 | I149: PELLORCE Jean-Louis | J149: 421 | K149: 489 | L149: 1840 | M149: 1842 | O149: B | P149: GIROLLET Alceste | Q149: 370 | R149: 59 | S149: 250 | T149: 253 | V149: H | W149: DUPRE Anne | X149: 400 | Y149: 58 | Z149: 247 | AA149: 249 | AG149: BELLON Jacques | AH149: 44 | AI149: 6 | AJ149: 149 | AK149: 157 | AL149: AH149:AH157 | AM149: 1663
C150: CHALVIN Rémy | D150: 415 | E150: 79 | F150: 329 | G150: 334 | I150: PELLORCE Jeanne | J150: 423 | K150: 195 | L150: 779 | M150: 783 | O150: B | P150: GIROLLET Alphonse | Q150: 373 | R150: 99 | S150: 401 | T150: 408 | V150: H | W150: DUPRE Catherine | X150: 401 | Y150: 87 | Z150: 363 | AA150: 366 | AG150: BELLON Jacques | AH150: 79 | AI150: 6 | AK150: 157
C151: CHALVIN Rosette | D151: 420 | E151: 126 | F151: 523 | G151: 528 | I151: PELLORCE Jeanne-Marie | J151: 425 | K151: 222 | L151: 883 | M151: 888 | O151: B | P151: GIROLLET Amélie | Q151: 374 | R151: 109 | S151: 445 | T151: 450 | V151: H | W151: DUPRE Françoise | X151: 403 | Y151: 132 | Z151: 550 | AA151: 553 | AG151: BELLON Jacques | AH151: 126 | AI151: 6 | AK151: 157
C152: CHARBONNEL Marie | D152: 421 | E152: 167 | F152: 679 | G152: 683 | I152: PELLORCE Laurent | J152: 427 | K152: 255 | L152: 1000 | M152: 1005 | O152: B | P152: GIROLLET Anne-Marie | Q152: 381 | R152: 122 | S152: 506 | T152: 511 | V152: H | W152: DUPRE Jean-Claude | X152: 404 | Y152: 149 | Z152: 600 | AA152: 605 | AG152: BELLON Jacques | AH152: 167 | AI152: 5 | AK152: 157
C153: CHARLES Jules | D153: 424 | E153: 186 | F153: 753 | G153: 757 | I153: PELLORCE Louis | J153: 433 | K153: 277 | L153: 1081 | M153: 1085 | O153: B | P153: GIROLLET Casimir | Q153: 382 | R153: 165 | S153: 669 | T153: 673 | V153: H | W153: DUPRE Joseph | X153: 405 | Y153: 179 | Z153: 725 | AA153: 730 | AG153: BELLON Jacques | AH153: 186 | AI153: 5 | AK153: 157
C154: CHARLES Marie | D154: 425 | E154: 214 | F154: 853 | G154: 857 | I154: PELLORCE Marie | J154: 441 | K154: 305 | L154: 1187 | M154: 1188 | O154: B | P154: GIROLLET Emélie | Q154: 384 | R154: 202 | S154: 805 | T154: 811 | V154: H | W154: DUPRE Simon | X154: 407 | Y154: 228 | Z154: 912 | AA154: 916 | AG154: BELLON Jacques | AH154: 214 | AI154: 5 | AK154: 157
C155: CHASSIGNEUX Paul | D155: 426 | E155: 264 | F155: 1034 | G155: 1036 | I155: PELLORCE Noël | J155: 450 | K155: 347 | L155: 1335 | M155: 1339 | O155: B | P155: GIROLLET Françoise | Q155: 386 | R155: 218 | S155: 867 | T155: 872 | V155: H | W155: DUSSERT André | X155: 408 | Y155: 252 | Z155: 989 | AA155: 992 | AG155: BELLON Jacques | AH155: 264 | AI155: 3 | AK155: 157
C156: COCHET Françoise | D156: 427 | E156: 271 | F156: 1055 | G156: 1062 | I156: PELLORCE Phélix | J156: 451 | K156: 384 | L156: 1488 | M156: 1490 | O156: B | P156: GIROLLET Hippolyte | Q156: 388 | R156: 254 | S156: 997 | T156: 999 | V156: H | W156: DUSSERT Désiré | X156: 409 | Y156: 284 | Z156: 1112 | AA156: 1116 | AG156: BELLON Jacques | AH156: 271 | AI156: 8 | AK156: 157
C157: CONTAMIN Marcel | D157: 429 | E157: 312 | F157: 1206 | G157: 1209 | I157: PELLORCE Pierre | J157: 452 | K157: 413 | L157: 1580 | M157: 1582 | O157: B | P157: GIROLLET Madeleine | Q157: 396 | R157: 274 | S157: 1072 | T157: 1074 | V157: H | W157: DUSSERT Françoise | X157: 410 | Y157: 309 | Z157: 1199 | AA157: 1201 | AG157: BELLON Jacques | AH157: 312 | AI157: 4 | AK157: 157
C158: CORBIER Pierre | D158: 430 | E158: 44 | F158: 186 | G158: 191 | I158: PELLORCE Pierre-Louis | J158: 468 | K158: 439 | L158: 1674 | M158: 1677 | O158: B | P158: GIROLLET Marie | Q158: 397 | R158: 315 | S158: 1217 | T158: 1220 | V158: H | W158: DUSSERT Jean | X158: 412 | Y158: 333 | Z158: 1286 | AA158: 1286 | AG158: BELLON Louis | AH158: 44 | AI158: 6 | AJ158: 158 | AK158: 163 | AL158: AH158:AH163 | AM158: 913
C159: DELORT Françoise | D159: 431 | E159: 79 | F159: 329 | G159: 334 | I159: PELLORCE Victoire | J159: 471 | K159: 453 | L159: 1713 | M159: 1717 | O159: B | P159: GIROLLET Pierre | Q159: 412 | R159: 73 | S159: 304 | T159: 310 | V159: H | W159: DUSSERT Jean-Baptiste | X159: 417 | Y159: 349 | Z159: 1343 | AA159: 1343 | AG159: BELLON Louis | AH159: 79 | AI159: 6 | AK159: 163
C160: DIDIER Joseph | D160: 432 | E160: 126 | F160: 523 | G160: 528 | I160: PELLORCE Victor | J160: 474 | K160: 502 | L160: 1881 | M160: 1889 | O160: B | P160: GIROLLET Rosalie | Q160: 418 | R160: 153 | S160: 616 | T160: 622 | V160: H | W160: DUSSERT Joseph | X160: 419 | Y160: 326 | Z160: 1249 | AA160: 1260 | AG160: BELLON Louis | AH160: 126 | AI160: 6 | AK160: 163
C161: DODE André | D161: 433 | E161: 186 | F161: 753 | G161: 757 | I161: PELLORCE Vincent | J161: 476 | K161: 509 | L161: 1911 | M161: 1919 | O161: B | P161: GIROUD Alphonse | Q161: 420 | R161: 209 | S161: 835 | T161: 842 | V161: H | W161: DUSSERT Joséphine | X161: 425 | Y161: 338 | Z161: 1301 | AA161: 1308 | AG161: BELLON Louis | AH161: 186 | AI161: 5 | AK161: 163
C162: DODE Henri | D162: 435 | E162: 214 | F162: 853 | G162: 857 | I162: PIERRA André | J162: 481 | K162: 508 | L162: 1908 | M162: 1910 | O162: B | P162: GIROUD Casimir | Q162: 421 | R162: 99 | S162: 401 | T162: 408 | V162: H | W162: DUSSERT Louis | X162: 426 | Y162: 5 | Z162: 14 | AA162: 15 | AG162: BELLON Louis | AH162: 214 | AI162: 5 | AK162: 163
C163: DODE Louis | D163: 437 | E163: 264 | F163: 1034 | G163: 1036 | I163: PIERRA Esprit | J163: 483 | K163: 8 | L163: 27 | M163: 31 | O163: B | P163: GIROUD Céphise | Q163: 428 | R163: 116 | S163: 479 | T163: 486 | V163: H | W163: DUSSERT Marguerite | X163: 427 | Y163: 27 | Z163: 112 | AA163: 117 | AG163: BELLON Louis | AH163: 264 | AI163: 3 | AK163: 163
C164: DODE Marie | D164: 441 | E164: 264 | F164: 1034 | G164: 1036 | I164: RANQUE André | J164: 484 | K164: 46 | L164: 198 | M164: 204 | O164: B | P164: GIROUD Clarisse | Q164: 429 | R164: 73 | S164: 304 | T164: 310 | V164: H | W164: DUSSERT Séraphin | X164: 429 | Y164: 104 | Z164: 427 | AA164: 432 | AG164: BELLON Marie | AH164: 264 | AI164: 3 | AJ164: 164 | AK164: 164 | AL164: AH164:AH164 | AM164: 264
C165: DODE Marie-Louise | D165: 443 | E165: 126 | F165: 523 | G165: 528 | I165: RANQUE Blaise | J165: 485 | K165: 82 | L165: 343 | M165: 348 | O165: B | P165: GIROUD Clémentine | Q165: 430 | R165: 99 | S165: 401 | T165: 408 | V165: H | W165: FLEUR André | X165: 436 | Y165: 128 | Z165: 532 | AA165: 537 | AG165: BELLON Mathilde | AH165: 126 | AI165: 6 | AJ165: 165 | AK165: 165 | AL165: AH165:AH165 | AM165: 126
C166: DORVILLE Marie | D166: 444 | E166: 79 | F166: 329 | G166: 334 | I166: RANQUE Clarisse | J166: 486 | K166: 143 | L166: 583 | M166: 587 | O166: B | P166: GIROUD Elisée | Q166: 438 | R166: 209 | S166: 835 | T166: 842 | V166: H | W166: FLEUR Etienne | X166: 438 | Y166: 163 | Z166: 662 | AA166: 665 | AG166: BELLON Nathalie | AH166: 79 | AI166: 6 | AJ166: 166 | AK166: 167 | AL166: AH166:AH167 | AM166: 246
C167: DORVILLE Marie-Louise | D167: 447 | E167: 167 | F167: 679 | G167: 683 | I167: RANQUE Claude | J167: 488 | K167: 166 | L167: 674 | M167: 678 | O167: B | P167: GIROUD Eugène | Q167: 439 | R167: 213 | S167: 851 | T167: 852 | V167: H | W167: FLEUR Jeanne-Marie | X167: 440 | Y167: 206 | Z167: 819 | AA167: 823 | AG167: BELLON Nathalie | AH167: 167 | AI167: 5 | AK167: 167
C168: DOYON Gisèle | D168: 448 | E168: 591 | F168: 2223 | G168: 2225 | I168: RANQUE Jean-Charles | J168: 493 | K168: 175 | L168: 707 | M168: 709 | O168: B | P168: GIROUD Fédora | Q168: 440 | R168: 181 | S168: 735 | T168: 739 | V168: H | W168: FLEUR Joseph | X168: 444 | Y168: 236 | Z168: 940 | AA168: 942 | AG168: BERARD Antoine | AH168: 591 | AI168: 3 | AJ168: 168 | AK168: 168 | AL168: AH168:AH168 | AM168: 591
C169: DUPRE Amélie | D169: 449 | E169: 369 | F169: 1423 | G169: 1430 | I169: RANQUE Joseph | J169: 494 | K169: 191 | L169: 768 | M169: 772 | O169: B | P169: GIROUD Ferdinand | Q169: 441 | R169: 230 | S169: 921 | T169: 924 | V169: H | W169: FLEUR Louis | X169: 445 | Y169: 269 | Z169: 1050 | AA169: 1051 | AG169: BERARD Marguerite | AH169: 369 | AI169: 8 | AJ169: 169 | AK169: 169 | AL169: AH169:AH169 | AM169: 369
C170: DUPRE Anne | D170: 452 | E170: 247 | F170: 975 | G170: 976 | I170: RANQUE Joseph(ine) | J170: 505 | K170: 201 | L170: 802 | M170: 804 | O170: B | P170: GIROUD François | Q170: 446 | R170: 256 | S170: 1006 | T170: 1009 | V170: H | W170: FLEUR Marie | X170: 450 | Y170: 231 | Z170: 925 | AA170: 927 | AG170: BERARD Marie | AH170: 247 | AI170: 2 | AJ170: 170 | AK170: 174 | AL170: AH170:AH174 | AM170: 1921
C171: DUPRE Antoine | D171: 453 | E171: 288 | F171: 1125 | G171: 1128 | I171: RANQUE Louis | J171: 506 | K171: 217 | L171: 865 | M171: 866 | O171: B | P171: GIROUD Hippolyte | Q171: 457 | R171: 181 | S171: 735 | T171: 739 | V171: H | W171: GAY Michel | X171: 451 | Y171: 247 | Z171: 975 | AA171: 976 | AG171: BERARD Marie | AH171: 288 | AI171: 4 | AK171: 174
C172: DUPRE Catherine | D172: 454 | E172: 298 | F172: 1157 | G172: 1160 | I172: RANQUE Louis-Philippe | J172: 511 | K172: 229 | L172: 917 | M172: 920 | O172: B | P172: GIROUD Jean-Louis | Q172: 458 | R172: 230 | S172: 921 | T172: 924 | V172: H | W172: GIROLLET Hippolyte | X172: 456 | Y172: 320 | Z172: 1231 | AA172: 1231 | AG172: BERARD Marie | AH172: 298 | AI172: 4 | AK172: 174
C173: DUPRE Elisabeth | D173: 460 | E173: 497 | F173: 1867 | G173: 1868 | I173: RANQUE Marguerite | J173: 517 | K173: 242 | L173: 961 | M173: 966 | O173: B | P173: GIROUD Joseph | Q173: 461 | R173: 256 | S173: 1006 | T173: 1009 | V173: H | W173: GIROLLET Jacques | X173: 457 | Y173: 59 | Z173: 250 | AA173: 253 | AG173: BERARD Marie | AH173: 497 | AI173: 2 | AK173: 174
C174: DUPRE Emélie | D174: 461 | E174: 591 | F174: 2223 | G174: 2225 | I174: RANQUE Marie | J174: 521 | K174: 283 | L174: 1108 | M174: 1111 | O174: B | P174: GIROUD Joséphine | Q174: 468 | R174: 265 | S174: 1037 | T174: 1038 | V174: H | W174: GIROLLET Marie | X174: 459 | Y174: 109 | Z174: 445 | AA174: 450 | AG174: BERARD Marie | AH174: 591 | AI174: 3 | AK174: 174
C175: DUPRE Emilie | D175: 464 | E175: 152 | F175: 614 | G175: 615 | I175: RANQUE Pierre | J175: 527 | K175: 308 | L175: 1194 | M175: 1198 | O175: B | P175: GIROUD Louise | Q175: 475 | R175: 271 | S175: 1055 | T175: 1062 | V175: H | W175: GIROLLET Pierre | X175: 460 | Y175: 165 | Z175: 669 | AA175: 673 | AG175: BERGOUIN Marie | AH175: 152 | AI175: 2 | AJ175: 175 | AK175: 176 | AL175: AH175:AH176 | AM175: 345
C176: DUPRE Euphroisine | D176: 466 | E176: 193 | F176: 774 | G176: 775 | I176: RANQUE Théophile | J176: 528 | K176: 367 | L176: 1411 | M176: 1416 | O176: B | P176: GIROUD Madeleine | Q176: 476 | R176: 334 | S176: 1287 | T176: 1288 | V176: H | W176: GUBIOZ Pierre | X176: 461 | Y176: 202 | Z176: 805 | AA176: 811 | AG176: BERGOUIN Marie | AH176: 193 | AI176: 2 | AK176: 176
C177: DUPRE Françoise | D177: 467 | E177: 434 | F177: 1653 | G177: 1657 | I177: REYMOND André | J177: 532 | K177: 22 | L177: 87 | M177: 88 | O177: B | P177: GIROUD Marie | Q177: 477 | R177: 291 | S177: 1132 | T177: 1135 | V177: H | W177: MERVAL Emile | X177: 462 | Y177: 218 | Z177: 867 | AA177: 872 | AG177: BERNARD Marie-Madeleine | AH177: 434 | AI177: 5 | AJ177: 177 | AK177: 177 | AL177: AH177:AH177 | AM177: 434
C178: DUPRE Geneviève | D178: 469 | E178: 281 | F178: 1102 | G178: 1105 | I178: REYMOND Anne-Marie | J178: 534 | K178: 376 | L178: 1455 | M178: 1462 | O178: B | P178: GIROUD Maximin | Q178: 487 | R178: 290 | S178: 1131 | T178: 1131 | V178: H | W178: MERVAL Paul | X178: 468 | Y178: 254 | Z178: 997 | AA178: 999 | AG178: BERTRAND Casimir | AH178: 281 | AI178: 4 | AJ178: 178 | AK178: 180 | AL178: AH178:AH180 | AM178: 906
C179: DUPRE Jean-Claude | D179: 471 | E179: 301 | F179: 1164 | G179: 1168 | I179: REYMOND Blaise | J179: 537 | K179: 399 | L179: 1538 | M179: 1540 | O179: B | P179: GIROUD Pauline | Q179: 488 | R179: 300 | S179: 1162 | T179: 1163 | V179: H | W179: MICHEL Gabriel | X179: 472 | Y179: 274 | Z179: 1072 | AA179: 1074 | AG179: BERTRAND Casimir | AH179: 301 | AI179: 5 | AK179: 180
C180: DUPRE Joseph | D180: 472 | E180: 324 | F180: 1243 | G180: 1247 | I180: REYMOND Catherine | J180: 539 | K180: 100 | L180: 409 | M180: 409 | O180: B | P180: GIROUD Rémy | Q180: 489 | R180: 332 | S180: 1282 | T180: 1285 | V180: H | W180: MONTELLI Maurice | X180: 473 | Y180: 315 | Z180: 1217 | AA180: 1220 | AG180: BERTRAND Casimir | AH180: 324 | AI180: 5 | AK180: 180
C181: DUPRE Madeleine | D181: 477 | E181: 324 | F181: 1243 | G181: 1247 | I181: REYMOND Célestin | J181: 543 | K181: 146 | L181: 591 | M181: 591 | O181: B | P181: GIROUD Victorine | Q181: 500 | R181: 26 | S181: 107 | T181: 111 | V181: H | W181: ODDOUX Florentine | X181: 474 | Y181: 221 | Z181: 880 | AA181: 882 | AG181: BERTRAND Joséphine | AH181: 324 | AI181: 5 | AJ181: 181 | AK181: 182 | AL181: AH181:AH182 | AM181: 672
C182: DUPRE Marie | D182: 479 | E182: 348 | F182: 1340 | G182: 1342 | I182: REYMOND Dorothée | J182: 549 | K182: 169 | L182: 690 | M182: 690 | O182: B | P182: GLODAS Rémy | Q182: 501 | R182: 91 | S182: 377 | T182: 379 | V182: H | W182: ODDOUX Louis | X182: 475 | Y182: 244 | Z182: 968 | AA182: 970 | AG182: BERTRAND Joséphine | AH182: 348 | AI182: 3 | AK182: 182
C183: DUPRE Marie-Emilie | D183: 481 | E183: 301 | F183: 1164 | G183: 1168 | I183: REYMOND Esprit | J183: 550 | K183: 183 | L183: 747 | M183: 747 | O183: B | P183: GUERAUD Marie | Q183: 502 | R183: 260 | S183: 1024 | T183: 1025 | V183: H | W183: PELLORCE Adolphe | X183: 478 | Y183: 276 | Z183: 1078 | AA183: 1080 | AG183: BERTRAND Marie | AH183: 301 | AI183: 5 | AJ183: 183 | AK183: 184 | AL183: AH183:AH184 | AM183: 625
C184: DUPRE Marie-Pélagie | D184: 482 | E184: 324 | F184: 1243 | G184: 1247 | I184: REYMOND Françoise | J184: 553 | K184: 26 | L184: 107 | M184: 111 | O184: B | P184: HEST Séraphine | Q184: 503 | R184: 316 | S184: 1221 | T184: 1221 | V184: H | W184: PELLORCE Alexandre | X184: 480 | Y184: 306 | Z184: 1189 | AA184: 1191 | AG184: BERTRAND Marie | AH184: 324 | AI184: 5 | AK184: 184
C185: DUPRE Noé | D185: 483 | E185: 341 | F185: 1311 | G185: 1311 | I185: REYMOND Jean | J185: 555 | K185: 130 | L185: 543 | M185: 545 | O185: B | P185: HIGUET Pierre | Q185: 506 | R185: 317 | S185: 1222 | T185: 1228 | V185: H | W185: PELLORCE Henri | X185: 483 | Y185: 321 | Z185: 1232 | AA185: 1235 | AG185: BIGALLET Marie | AH185: 341 | AI185: 1 | AJ185: 185 | AK185: 185 | AL185: AH185:AH185 | AM185: 341
C186: DUPRE Philomène | D186: 484 | E186: 208 | F186: 828 | G186: 834 | I186: REYMOND Jean-Denis | J186: 556 | K186: 178 | L186: 721 | M186: 724 | O186: B | P186: HUGUET Pierre | Q186: 507 | R186: 335 | S186: 1289 | T186: 1294 | V186: H | W186: PELLORCE Jean | X186: 485 | Y186: 33 | Z186: 139 | AA186: 143 | AG186: BLANC Aline | AH186: 208 | AI186: 7 | AJ186: 186 | AK186: 186 | AL186: AH186:AH186 | AM186: 208
C187: DUPRE Simon | D187: 487 | E187: 547 | F187: 2061 | G187: 2068 | I187: REYMOND Joseph | J187: 557 | K187: 184 | L187: 748 | M187: 751 | O187: B | P187: HUGUET Pierre-Sylvestre | Q187: 508 | R187: 272 | S187: 1063 | T187: 1068 | V187: H | W187: PELLORCE Jeanne | X187: 486 | Y187: 72 | Z187: 300 | AA187: 303 | AG187: BLANC Alphonsine | AH187: 547 | AI187: 8 | AJ187: 187 | AK187: 191 | AL187: AH187:AH191 | AM187: 2855
C188: DUSSERT Adélaïde | D188: 488 | E188: 557 | F188: 2090 | G188: 2097 | I188: REYMOND Louis | J188: 564 | K188: 232 | L188: 928 | M188: 931 | O188: B | P188: HUILLIER Georgette | Q188: 509 | R188: 313 | S188: 1210 | T188: 1213 | V188: H | W188: PELLORCE Jeanne-Marie | X188: 487 | Y188: 102 | Z188: 415 | AA188: 419 | AG188: BLANC Alphonsine | AH188: 557 | AI188: 8 | AK188: 191
C189: DUSSERT Aimée | D189: 493 | E189: 574 | F189: 2157 | G189: 2161 | I189: REYMOND Louise | J189: 572 | K189: 257 | L189: 1010 | M189: 1012 | O189: B | P189: inconnu Marie | Q189: 510 | R189: 317 | S189: 1222 | T189: 1228 | V189: H | W189: PELLORCE Laurent | X189: 488 | Y189: 131 | Z189: 546 | AA189: 549 | AG189: BLANC Alphonsine | AH189: 574 | AI189: 5 | AK189: 191
C190: DUSSERT Alexis | D190: 494 | E190: 585 | F190: 2198 | G190: 2202 | I190: REYMOND Rémy | J190: 576 | K190: 511 | L190: 1925 | M190: 1932 | O190: B | P190: ISEMIN Henri | Q190: 511 | R190: 335 | S190: 1289 | T190: 1294 | V190: H | W190: PELLORCE Marie | X190: 491 | Y190: 177 | Z190: 717 | AA190: 720 | AG190: BLANC Alphonsine | AH190: 585 | AI190: 5 | AK190: 191
C191: DUSSERT Alice | D191: 498 | E191: 592 | F191: 2226 | G191: 2229 | I191: RIVOIRE Amable | J191: 577 | K191: 615 | L191: 2305 | M191: 2308 | O191: B | P191: ISEMIN Maria | Q191: 512 | R191: 317 | S191: 1222 | T191: 1228 | V191: H | W191: PIERRA Esprit | X191: 497 | Y191: 187 | Z191: 758 | AA191: 761 | AG191: BLANC Alphonsine | AH191: 592 | AI191: 4 | AK191: 191
C192: DUSSERT Alphonse | D192: 501 | E192: 547 | F192: 2061 | G192: 2068 | I192: RIVOIRE André | J192: 582 | K192: 518 | L192: 1959 | M192: 1962 | O192: B | P192: JOUFFREY Auguste | Q192: 513 | R192: 335 | S192: 1289 | T192: 1294 | V192: H | W192: RANQUE Marguerite | X192: 498 | Y192: 288 | Z192: 1125 | AA192: 1128 | AG192: BLANC Emélie | AH192: 547 | AI192: 8 | AJ192: 192 | AK192: 193 | AL192: AH192:AH193 | AM192: 1104
C193: DUSSERT André | D193: 502 | E193: 557 | F193: 2090 | G193: 2097 | I193: RIVOIRE Antoine | J193: 588 | K193: 520 | L193: 1966 | M193: 1966 | O193: B | P193: JOUVEL Herma | Q193: 515 | R193: 335 | S193: 1289 | T193: 1294 | V193: H | W193: RANQUE Marie | X193: 499 | Y193: 298 | Z193: 1157 | AA193: 1160 | AG193: BLANC Emélie | AH193: 557 | AI193: 8 | AK193: 193
C194: DUSSERT Antoine | D194: 504 | E194: 544 | F194: 2044 | G194: 2048 | I194: RIVOIRE Catherine | J194: 595 | K194: 567 | L194: 2135 | M194: 2138 | O194: B | P194: JOUVEL Irma | Q194: 516 | R194: 327 | S194: 1261 | T194: 1266 | V194: H | W194: REYMOND Catherine | X194: 505 | Y194: 329 | Z194: 1271 | AA194: 1276 | AG194: BLANC Françoise | AH194: 544 | AI194: 5 | AJ194: 194 | AK194: 199 | AL194: AH194:AH199 | AM194: 3475
C195: DUSSERT Aristide | D195: 506 | E195: 564 | F195: 2121 | G195: 2127 | I195: RIVOIRE Firmin | J195: 596 | K195: 396 | L195: 1527 | M195: 1531 | O195: B | P195: JOUVEL Joseph | Q195: 518 | R195: 194 | S195: 776 | T195: 778 | V195: H | W195: REYMOND Françoise | X195: 508 | Y195: 343 | Z195: 1314 | AA195: 1319 | AG195: BLANC Françoise | AH195: 564 | AI195: 7 | AK195: 199
C196: DUSSERT Auguste | D196: 510 | E196: 577 | F196: 2165 | G196: 2172 | I196: RIVOIRE Françoise | J196: 598 | K196: 435 | L196: 1658 | M196: 1661 | O196: B | P196: JOUVEL Joséphine | Q196: 519 | R196: 227 | S196: 908 | T196: 911 | V196: H | W196: REYMOND Joseph | X196: 509 | Y196: 12 | Z196: 45 | AA196: 50 | AG196: BLANC Françoise | AH196: 577 | AI196: 8 | AK196: 199
C197: DUSSERT Augustin | D197: 511 | E197: 588 | F197: 2211 | G197: 2217 | I197: RIVOIRE Joseph | J197: 599 | K197: 458 | L197: 1737 | M197: 1742 | O197: B | P197: JOUVEL Léon | Q197: 524 | R197: 307 | S197: 1192 | T197: 1193 | V197: H | W197: REYMOND Louise | X197: 511 | Y197: 78 | Z197: 323 | AA197: 328 | AG197: BLANC Françoise | AH197: 588 | AI197: 7 | AK197: 199
C198: DUSSERT Casimir | D198: 518 | E198: 600 | F198: 2250 | G198: 2255 | I198: RIVOIRE Laurent | J198: 609 | K198: 477 | L198: 1795 | M198: 1797 | O198: B | P198: JOUVEL Louis | Q198: 526 | R198: 5 | S198: 14 | T198: 15 | V198: H | W198: RIVOIRE Rose | X198: 514 | Y198: 96 | Z198: 393 | AA198: 397 | AG198: BLANC Françoise | AH198: 600 | AI198: 6 | AK198: 199
C199: DUSSERT Catherine | D199: 519 | E199: 602 | F199: 2257 | G199: 2261 | I199: RIVOIRE Léon | J199: 610 | K199: 488 | L199: 1836 | M199: 1839 | O199: B | P199: JOUVEL Marie | Q199: 530 | R199: 270 | S199: 1052 | T199: 1054 | V199: S | W199: DUSSERT Pierre | X199: 515 | Y199: 119 | Z199: 498 | AA199: 502 | AG199: BLANC Françoise | AH199: 602 | AI199: 5 | AJ199: =IF(AG199=AG198,"",ROW()) ->  | AK199: =IF(AJ200="",AK200,AJ200-1) -> 199 | AL199: =IF(AJ199="","",CONCATENATE("AH",AJ199,":AH",AK199)) ->  | AM199: =IF(AJ199="","",SUM(INDIRECT(AL199))) -> 
C200: DUSSERT Célestine | D200: 520 | E200: 106 | F200: 435 | G200: 438 | I200: RIVOIRE Louis | J200: 612 | K200: 495 | L200: 1859 | M200: 1863 | O200: B | P200: LEPIDI Ange Louis | Q200: 532 | R200: 160 | S200: 650 | T200: 653 | V200: S | W200: DUSSERT Rose | X200: 516 | Y200: 155 | Z200: 628 | AA200: 632 | AG200: BLANC Joseph | AH200: 106 | AI200: 4 | AJ200: 200 | AK200: 209 | AL200: AH200:AH209 | AM200: 3545
... 2122 more rows

Sheet Extr
B2: A partir de, | G2: Extraction de familles recensées
B3: Un individu | C3: Un chef de famille
F4: Ham | G4: Année | H4: Ma, Mé, Ind | I4: Nom, Prénom, originaux | J4: Âge | K4: Qualité | L4: Profession | N4: Nom, Prénom uniformisés
B5: Dans l'ensemble des quatre hameaux
B6: 513 | F6: PleBas | G6: 1846 | H6: 10, 10, 406 | I6: PELLORCE Jean-Louis | J6: 36 | K6: M | L6: Cultivateur | N6: PELLORCE Jean-Louis
F7: PleBas | G7: 1846 | H7: 10, 10, 407 | I7: REYMOND Marie | J7: 32 | K7: Mme | N7: REYMOND Marie
F8: PleBas | G8: 1846 | H8: 10, 10, 408 | I8: PELLORCE Jean-Denis | J8: 5 | K8: Fils | N8: PELLORCE Jean-Denis
B9: Dans le hameau de Puy le Bas | F9: PleBas | G9: 1846 | H9: 10, 10, 409 | I9: PELLORCE Marie | J9: 3 | K9: Fille | N9: PELLORCE Marie
F10: PleBas | G10: 1846 | H10: 10, 10, 410 | I10: PELLORCE Sidonnie | J10: 2 | K10: Fille | N10: PELLORCE Sidonnie
F11: PleBas | G11: 1846 | H11: 10, 10, 411 | I11: REYMOND Jean | J11: 25 | K11: Frère de Jean-Louis | L11: Cultivateur | N11: REYMOND Jean
F12: PleBas | G12: 1846 | H12: 10, 10, 412 | I12: REYMOND Denis | J12: 37 | K12: Frère de Jean-Louis | L12: Cultivateur | N12: REYMOND Denis
B13: Dans le hameau de Puy le Haut
F14: PleBas | G14: 1846 | H14: 11, 11, 413 | I14: PELLORCE Marie vve REYMOND | J14: 42 | K14: Mme, vve | L14: Cultivatrice | N14: PELLORCE Marie
F15: PleBas | G15: 1846 | H15: 11, 11, 414 | I15: REYMOND Rémy | J15: 14 | K15: Fils | N15: REYMOND Rémy
F16: PleBas | G16: 1846 | H16: 11, 11, 415 | I16: REYMOND Marie | J16: 12 | K16: Fille | N16: REYMOND Marie
B17: Dans le hameau du Passet | F17: PleBas | G17: 1846 | H17: 11, 11, 416 | I17: REYMOND Denis | J17: 67 | K17: Père de Marie, veuf | N17: REYMOND Denis
F19: PleBas | G19: 1846 | H19: 23, 23, 459 | I19: DUSSERT Magdelaine vve PELLORCE | J19: 62 | K19: Mme, vve | L19: Cultivatrice | N19: DUSSERT Madeleine
F20: PleBas | G20: 1846 | H20: 23, 23, 460 | I20: PELLORCE Marie | J20: 27 | K20: Fille | N20: PELLORCE Marie
B21: Dans le hameau du Périer
F22: PleBas | G22: 1846 | H22: 31, 31, 498 | I22: RIVOIRE Matthieu | J22: 47 | K22: M | L22: Cultivateur | N22: RIVOIRE Mathieu
F23: PleBas | G23: 1846 | H23: 31, 31, 499 | I23: PELLORCE Marie feu RIVOIRE | J23: 36 | K23: Mme | N23: PELLORCE Marie
F24: PleBas | G24: 1846 | H24: 31, 31, 500 | I24: RIVOIRE Hypollite | J24: 6 | K24: Fils | N24: RIVOIRE Hippolyte
F25: PleBas | G25: 1846 | H25: 31, 31, 501 | I25: RIVOIRE Mélany | J25: 11 | K25: Fille | N25: RIVOIRE Mélanie
F26: PleBas | G26: 1846 | H26: 31, 31, 502 | I26: RIVOIRE Poline | J26: 1 | K26: Fille | N26: RIVOIRE Poline
B27: Hameau sélectionné : | C27: L'ensemble des hameaux
B28: Type de sélection : | C28: Un individu | F28: PleBas | G28: 1846 | H28: 39, 39, 530 | I28: REYMOND Jean | J28: 79 | K28: M | L28: Cultivateur | N28: REYMOND Jean
B29: Personne sélectionnée : | C29: PELLORCE Marie | F29: PleBas | G29: 1846 | H29: 39, 39, 531 | I29: PIERA Anne-Marie feu REYMOND | J29: 75 | K29: Mme | N29: PIERRA Anne-Marie
F30: PleBas | G30: 1846 | H30: 39, 39, 532 | I30: REYMOND Esprit | J30: 30 | K30: Fils | N30: REYMOND Esprit
F31: PleBas | G31: 1846 | H31: 39, 39, 533 | I31: PELLORCE Marie feu REYMOND | J31: 28 | K31: Mme d'Esprit | N31: PELLORCE Marie
F32: PleBas | G32: 1846 | H32: 39, 39, 534 | I32: VELOTIER Rosalie | J32: 28 | K32: Hospice | L32: Domestique | N32: VELOTIER Rosalie
F34: PleBas | G34: 1846 | H34: 40, 40, 535 | I34: REYMOND André | J34: 48 | K34: M | L34: Cultivateur | N34: REYMOND André
F35: PleBas | G35: 1846 | H35: 40, 40, 536 | I35: PELLORCE Marie feu REYMOND | J35: 32 | K35: Mme | N35: PELLORCE Marie
F36: PleBas | G36: 1846 | H36: 40, 40, 537 | I36: REYMOND Mélany | J36: 15 | K36: Fille | N36: REYMOND Mélanie
F37: PleBas | G37: 1846 | H37: 40, 40, 538 | I37: REYMOND Anne-Marie | J37: 12 | K37: Fille | N37: REYMOND Anne-Marie
F39: PleBas | G39: 1866 | H39: 134, 142, 19|2 | I39: RIVOIRE Mathieu | J39: 66 | K39: M | L39: Cultivateur | N39: RIVOIRE Mathieu
F40: PleBas | G40: 1866 | H40: 134, 142, 19|3 | I40: PELLORCE Marie | J40: 58 | K40: Mme | N40: PELLORCE Marie
F41: PleBas | G41: 1866 | H41: 134, 142, 19|4 | I41: RIVOIRE Pauline | J41: 21 | K41: Fille | N41: RIVOIRE Pauline
F43: PleBas | G43: 1866 | H43: 144, 152, 20|14 | I43: PELLORCE Jean-Louis | J43: 56 | K43: M | L43: Cultivateur | N43: PELLORCE Jean-Louis
F44: PleBas | G44: 1866 | H44: 144, 152, 20|15 | I44: REYMOND Euphroisine | J44: 49 | K44: Mme | N44: REYMOND Euphroisine
F45: PleBas | G45: 1866 | H45: 144, 152, 20|16 | I45: PELLORCE Marie | J45: 21 | K45: Fille | N45: PELLORCE Marie
F46: PleBas | G46: 1866 | H46: 144, 152, 20|17 | I46: PELLORCE Rémi | J46: 16 | K46: Fils | N46: PELLORCE Rémy
F48: PleBas | G48: 1872 | H48: 115, 127, 453 | I48: RIVOIRE Mathieux | J48: 71 | K48: M | L48: Cultivateur | N48: RIVOIRE Mathieu
F49: PleBas | G49: 1872 | H49: 115, 127, 454 | I49: PELLORCE Marie | J49: 63 | K49: Mme | N49: PELLORCE Marie
F51: PleBas | G51: 1876 | H51: 7, 7, 396 | I51: PELLORCE Laurent | J51: 35 | K51: M | L51: Cultivateur | N51: PELLORCE Laurent
F52: PleBas | G52: 1876 | H52: 7, 7, 397 | I52: PELLORCE Adelphine | J52: 33 | K52: Mme | L52: Ménagère | N52: PELLORCE Adelphine
F53: PleBas | G53: 1876 | H53: 7, 7, 398 | I53: PELLORCE Léon | J53: 10 | K53: Fils | N53: PELLORCE Léon
F54: PleBas | G54: 1876 | H54: 7, 7, 399 | I54: PELLORCE Marie | J54: 4 | K54: Fille | N54: PELLORCE Marie
F55: PleBas | G55: 1876 | H55: 7, 7, 400 | I55: PELLORCE Céline | J55: 2 | K55: Fille | N55: PELLORCE Céline
F56: PleBas | G56: 1876 | H56: 7, 7, 401 | I56: REYMOND Euphroisine vve PELLORCE | J56: 59 | K56: Mère d'Adelphine | N56: REYMOND Euphroisine
F58: PleBas | G58: 1881 | H58: 3, 3, 328 | I58: PELLORCE Alphonse | J58: 30 | K58: M | L58: Cultivateur | N58: PELLORCE Alphonse
F59: PleBas | G59: 1881 | H59: 3, 3, 329 | I59: GIROLLET Marie | J59: 29 | K59: Mme | L59: Ménagère | N59: GIROLLET Marie
F60: PleBas | G60: 1881 | H60: 3, 3, 330 | I60: PELLORCE Marie | J60: 4 | K60: Fille | N60: PELLORCE Marie
F62: PleBas | G62: 1881 | H62: 23, 23, 413 | I62: BLANC Joseph | J62: 35 | K62: M | L62: Cultivateur | N62: BLANC Joseph
F63: PleBas | G63: 1881 | H63: 23, 23, 414 | I63: RAYMOND Marie-Louise | J63: 32 | K63: Mme | N63: REYMOND Marie-Louise
F64: PleBas | G64: 1881 | H64: 23, 23, 415 | I64: BLANC Raymond | J64: 7 | K64: Fils | N64: BLANC Raymond
F65: PleBas | G65: 1881 | H65: 23, 23, 416 | I65: BLANC Rémy | J65: 5 | K65: Fils | N65: BLANC Rémy
F66: PleBas | G66: 1881 | H66: 23, 23, 417 | I66: BLANC Marie-Aline | J66: 1 | K66: Fille | N66: BLANC Marie-Aline
F67: PleBas | G67: 1881 | H67: 23, 23, 418 | I67: PELLORCE Marie | J67: 59 | K67: Mère de Marie-Louise | L67: Cultivatrice | N67: PELLORCE Marie
F69: PleBas | G69: 1886 | H69: 24, 25, 87 | I69: PELLORCE Henri-Alphonse | J69: 35 | K69: M | L69: Cultivateur | N69: PELLORCE Henri-Alphonse
F70: PleBas | G70: 1886 | H70: 24, 25, 88 | I70: GIROLLET Marie | J70: 34 | K70: Mme | L70: Ménagère | N70: GIROLLET Marie
F71: PleBas | G71: 1886 | H71: 24, 25, 89 | I71: PELLORCE Marie | J71: 9 | K71: Fille | N71: PELLORCE Marie
F72: PleBas | G72: 1886 | H72: 24, 25, 90 | I72: PELLORCE Victor | J72: 1 | K72: Fils | N72: PELLORCE Victor
F74: PleBas | G74: 1891 | H74: 2, 2, 6 | I74: PELLORCE Henri Alph. | J74: 40 | K74: M | L74: Cultivateur | N74: PELLORCE Henri Alphonse
F75: PleBas | G75: 1891 | H75: 2, 2, 7 | I75: GIROLLET Marie | J75: 38 | K75: Mme | L75: Ménagère | N75: GIROLLET Marie
F76: PleBas | G76: 1891 | H76: 2, 2, 8 | I76: PELLORCE Marie | J76: 13 | K76: Fille | N76: PELLORCE Marie
F77: PleBas | G77: 1891 | H77: 2, 2, 9 | I77: PELLORCE Victor | J77: 5 | K77: Fils | N77: PELLORCE Victor
F78: PleBas | G78: 1891 | H78: 2, 2, 10 | I78: PELLORCE Rémi | J78: 2 | K78: Fils d'Henri | N78: PELLORCE Rémy
F79: PleBas | G79: 1891 | H79: 2, 2, 11 | I79: PELLORCE Rémi | J79: 3 m | K79: Fils | N79: PELLORCE Rémy
F81: PleBas | G81: 1896 | H81: 91, 100, 12|5 | I81: PELLORCE Henri | J81: 45 | K81: M | L81: Cultivateur | N81: PELLORCE Henri
F82: PleBas | G82: 1896 | H82: 91, 100, 12|6 | I82: GIROLLET Marie | J82: 44 | K82: Mme | L82: Cultivatrice | N82: GIROLLET Marie
F83: PleBas | G83: 1896 | H83: 91, 100, 12|7 | I83: PELLORCE Marie | J83: 17 | K83: Fille | L83: Cultivatrice | N83: PELLORCE Marie
F84: PleBas | G84: 1896 | H84: 91, 100, 12|8 | I84: PELLORCE Victor | J84: 11 | K84: Fils | N84: PELLORCE Victor
F85: PleBas | G85: 1896 | H85: 91, 100, 12|9 | I85: PELLORCE Rémy | J85: 7 | K85: Fils | N85: PELLORCE Rémy
F87: PleBas | G87: 1901 | H87: 3, , 275 | I87: PELLORCE Alphonse | J87: 50 | K87: M | L87: Cultivateur | N87: PELLORCE Alphonse
F88: PleBas | G88: 1901 | H88: 3, , 276 | I88: GIROLLET Marie | J88: 48 | K88: Mme | N88: GIROLLET Marie
F89: PleBas | G89: 1901 | H89: 3, , 277 | I89: PELLORCE Marie | J89: 24 | K89: Fille | L89: Ménagère | N89: PELLORCE Marie
F90: PleBas | G90: 1901 | H90: 3, , 278 | I90: DODE Louis | J90: 25 | K90: Gendre | L90: Cultivateur | N90: DODE Louis
F91: PleBas | G91: 1901 | H91: 3, , 279 | I91: PELLORCE Victor | J91: 16 | K91: Fils | L91: Cultivateur | N91: PELLORCE Victor
F92: PleBas | G92: 1901 | H92: 3, , 280 | I92: PELLORCE Rémy | J92: 12 | K92: Fils | N92: PELLORCE Rémy
F94: PleBas | G94: 1921 | H94: 1812, 12, 5|30 | I94: PELLORCE Victor | J94: 36 | K94: M | L94: Cultivateur | N94: PELLORCE Victor
F95: PleBas | G95: 1921 | H95: 1812, 12, 5|31 | I95: PELLORCE Marie | J95: 28 | K95: Mme | L95: Ménagère | N95: PELLORCE Marie
F96: PleBas | G96: 1921 | H96: 1812, 12, 5|32 | I96: PELLORCE Simone | J96: 1 | K96: Fille | N96: PELLORCE Simone
F97: PleBas | G97: 1921 | H97: 1812, 12, 5|33 | I97: DUSSERT Louis | J97: 71 | K97: Beau-père | L97: Cultivateur | N97: DUSSERT Louis
F99: PleBas | G99: 1926 | H99: 1812, 4, 10 | I99: PELLORCE Victor | J99: 41 | K99: M | L99: Cultivateur | N99: PELLORCE Victor
F100: PleBas | G100: 1926 | H100: 1812, 4, 11 | I100: PELLORCE Marie | J100: 33 | K100: Mme | L100: Cultivatrice | N100: PELLORCE Marie
F101: PleBas | G101: 1926 | H101: 1812, 4, 12 | I101: PELLORCE Simone | J101: 6 | K101: Fille | N101: PELLORCE Simone
F102: PleBas | G102: 1926 | H102: 1812, 4, 13 | I102: PELLORCE Pierre | J102: 1 | K102: Fils | N102: PELLORCE Pierre
F103: PleBas | G103: 1926 | H103: 1812, 4, 14 | I103: PELLORCE Alphonse | J103: 75 | K103: Père | L103: Cultivateur | N103: PELLORCE Alphonse
F105: PleHaut | G105: 1846 | H105: 19, 19, 627 | I105: PELLORCE Henri | J105: 67 | K105: M | L105: Cultivateur | N105: PELLORCE Henri
F106: PleHaut | G106: 1846 | H106: 19, 19, 628 | I106: DUPRE Elisabeth | J106: 62 | K106: Mme | N106: DUPRE Elisabeth
F107: PleHaut | G107: 1846 | H107: 19, 19, 629 | I107: PELLORCE Henri | J107: 24 | K107: Fils | N107: PELLORCE Henri
F108: PleHaut | G108: 1846 | H108: 19, 19, 630 | I108: PELLORCE Alexandre | J108: 17 | K108: Fils | N108: PELLORCE Alexandre
F109: PleHaut | G109: 1846 | H109: 19, 19, 631 | I109: PELLORCE Marie | J109: 32 | K109: Fille | N109: PELLORCE Marie
F110: PleHaut | G110: 1846 | H110: 19, 19, 632 | I110: PELLORCE Elisabeth | J110: 30 | K110: Fille | N110: PELLORCE Elisabeth
F112: PleHaut | G112: 1846 | H112: 23, 23, 650 | I112: PELLORCE Jean | J112: 51 | L112: Domestique | N112: PELLORCE Jean
F113: PleHaut | G113: 1846 | H113: 23, 23, 651 | I113: MARTIN Joseph | J113: 40 | K113: M | L113: Domestique | N113: MARTIN Joseph
F114: PleHaut | G114: 1846 | H114: 23, 23, 652 | I114: PELLORCE Marie | J114: 45 | K114: Mme | N114: PELLORCE Marie
F115: PleHaut | G115: 1846 | H115: 23, 23, 653 | I115: MARTIN Laurent | J115: 17 | K115: Fils | N115: MARTIN Laurent
F116: PleHaut | G116: 1846 | H116: 23, 23, 654 | I116: MARTIN Joseph | J116: 13 | K116: Fils | N116: MARTIN Joseph
F117: PleHaut | G117: 1846 | H117: 23, 23, 655 | I117: MARTIN Catherine | J117: 21 | K117: Fille | N117: MARTIN Catherine
F118: PleHaut | G118: 1846 | H118: 23, 23, 656 | I118: MARTIN Françoise | J118: 11 | K118: Fille | N118: MARTIN Françoise
F119: PleHaut | G119: 1846 | H119: 23, 23, 657 | I119: MARTIN Célestine | J119: 9 | K119: Fille | N119: MARTIN Célestine
F120: PleHaut | G120: 1846 | H120: 23, 23, 658 | I120: MARTIN Marie | J120: 2 | K120: Fille | N120: MARTIN Marie
F122: PleHaut | G122: 1866 | H122: 81, 88, 12|13 | I122: PELLORCE Marie | J122: 55 | K122: Mme | L122: Cultivatrice | N122: PELLORCE Marie
F124: PleHaut | G124: 1866 | H124: 83, 90, 12|16 | I124: PELLORCE Alexandre | J124: 54 | K124: M | N124: PELLORCE Alexandre
F125: PleHaut | G125: 1866 | H125: 83, 90, 12|17 | I125: DUSSERT Victoire | J125: 51 | K125: Mme | L125: Cultivatrice | N125: DUSSERT Victoire
F126: PleHaut | G126: 1866 | H126: 83, 90, 12|18 | I126: PELLORCE Alexandrine | J126: 18 | K126: Fille | N126: PELLORCE Alexandrine
F127: PleHaut | G127: 1866 | H127: 83, 90, 12|19 | I127: PELLORCE Adolphe | J127: 16 | K127: Fils | N127: PELLORCE Adolphe
F128: PleHaut | G128: 1866 | H128: 83, 90, 12|20 | I128: PELLORCE Marie | J128: 8 | K128: Fille | N128: PELLORCE Marie
F130: PleHaut | G130: 1872 | H130: 125, 137, 491 | I130: PELLORCE Marie | J130: 61 | K130: Mme | L130: Cultivatrice | N130: PELLORCE Marie
F132: PleHaut | G132: 1876 | H132: 12, 12, 349 | I132: PELLORCE Marie | J132: 66 | K132: Mme | L132: Cultivatrice | N132: PELLORCE Marie
F134: PleHaut | G134: 1881 | H134: 15, 15, 501 | I134: PELLORCE Marie | J134: 72 | K134: Mme | L134: Ménagère | N134: PELLORCE Marie
F136: PleHaut | G136: 1886 | H136: 3, 3, 6 | I136: PELLORCE Marie | J136: 70 | K136: Mme | L136: Ménagère | N136: PELLORCE Marie
F138: PleHaut | G138: 1886 | H138: 8, 8, 28 | I138: ODDOUX Florentine | J138: 25 | K138: Mme | L138: Ménagère | N138: ODDOUX Florentine
F139: PleHaut | G139: 1886 | H139: 8, 8, 29 | I139: PELLORCE Adolphe | J139: 8 | K139: Fils | N139: PELLORCE Adolphe
F140: PleHaut | G140: 1886 | H140: 8, 8, 30 | I140: PELLORCE Marie | J140: 4 | K140: Fille | N140: PELLORCE Marie
F142: PleHaut | G142: 1891 | H142: 8, 8, 20 | I142: PELLORCE Marie | J142: 80 | K142: Mme | L142: Ménagère | N142: PELLORCE Marie
F144: Passet | G144: 1846 | H144: 14, 14, 351 | I144: PELLORCE Vincent | J144: 37 | K144: M | L144: Marchand de vin en gros | N144: PELLORCE Vincent
F145: Passet | G145: 1846 | H145: 14, 14, 352 | I145: REYMOND Louise | J145: 38 | K145: Mme | N145: REYMOND Louise
F146: Passet | G146: 1846 | H146: 14, 14, 353 | I146: PELLORCE Pierre | J146: 35 | K146: Frère, veuf | N146: PELLORCE Pierre
F147: Passet | G147: 1846 | H147: 14, 14, 354 | I147: PELLORCE Pierre | J147: 14 | K147: Fils | N147: PELLORCE Pierre
F148: Passet | G148: 1846 | H148: 14, 14, 355 | I148: PELLORCE Marie | J148: 10 | K148: Fille | N148: PELLORCE Marie
F150: Passet | G150: 1896 | H150: 70, 79, 9|25 | I150: RANQUE Louis | J150: 29 | K150: M | L150: Menuisier | N150: RANQUE Louis
F151: Passet | G151: 1896 | H151: 70, 79, 9|26 | I151: PELLORCE Joséphine | J151: 21 | K151: Mme | N151: PELLORCE Joséphine
F152: Passet | G152: 1896 | H152: 70, 79, 9|27 | I152: RANQUE Eugénie | J152: 2 | K152: Fille | N152: RANQUE Eugénie
F153: Passet | G153: 1896 | H153: 70, 79, 9|28 | I153: RANQUE Joséphine | J153: 1 | K153: Fille | N153: RANQUE Joséphine
F154: Passet | G154: 1896 | H154: 70, 79, 9|29 | I154: PELLORCE Marie | J154: 54 | K154: Sœur de Joséphine | N154: PELLORCE Marie
F156: Périer | G156: 1846 | H156: 2, 2, 261 | I156: PELLORCE Pierre | J156: 51 | K156: M | L156: Charpentier | N156: PELLORCE Pierre
F157: Périer | G157: 1846 | H157: 2, 2, 262 | I157: PELLORCE Jeanne | J157: 49 | K157: Mme | N157: PELLORCE Jeanne
F158: Périer | G158: 1846 | H158: 2, 2, 263 | I158: PELLORCE Pierre | J158: 19 | K158: Fils | N158: PELLORCE Pierre
F159: Périer | G159: 1846 | H159: 2, 2, 264 | I159: PELLORCE Marie | J159: 15 | K159: Fille | N159: PELLORCE Marie
F161: Périer | G161: 1846 | H161: 3, 3, 265 | I161: PELLORCE Félix | J161: 29 | K161: M | L161: Marchand | N161: PELLORCE Félix
F162: Périer | G162: 1846 | H162: 3, 3, 266 | I162: REYMOND Françoise feu PELLORCE | J162: 27 | K162: Mme | N162: REYMOND Françoise
F163: Périer | G163: 1846 | H163: 3, 3, 267 | I163: PELLORCE Marie | J163: 6 | K163: Fille | N163: PELLORCE Marie
F164: Périer | G164: 1846 | H164: 3, 3, 268 | I164: PELLORCE Françoise | J164: 4 | K164: Fille | N164: PELLORCE Françoise
F165: Périer | G165: 1846 | H165: 3, 3, 269 | I165: PELLORCE Louise | J165: 1 | K165: Fille | N165: PELLORCE Louise
F167: Périer | G167: 1846 | H167: 14, 14, 304 | I167: BLANC Magdeleine vve PELLORCE | J167: 55 | K167: Mme, vve | L167: Cultivatrice | N167: BLANC Madeleine
F168: Périer | G168: 1846 | H168: 14, 14, 305 | I168: PELLORCE Pierre | J168: 23 | K168: Fils | N168: PELLORCE Pierre
F169: Périer | G169: 1846 | H169: 14, 14, 306 | I169: PELLORCE Vincent | J169: 19 | K169: Fils | N169: PELLORCE Vincent
F170: Périer | G170: 1846 | H170: 14, 14, 307 | I170: PELLORCE Marie | J170: 21 | K170: Fille | N170: PELLORCE Marie
F171: Périer | G171: 1846 | H171: 14, 14, 308 | I171: PELLORCE Mélany | J171: 17 | K171: Fille | N171: PELLORCE Mélany
F173: Périer | G173: 1866 | H173: 50, 56, 8|1 | I173: PELLORCE Pierre | J173: 54 | K173: M | L173: Cultivateur | N173: PELLORCE Pierre
F174: Périer | G174: 1866 | H174: 50, 56, 8|2 | I174: BLANC Françoise | J174: 38 | K174: Mme | N174: BLANC Françoise
F175: Périer | G175: 1866 | H175: 50, 56, 8|3 | I175: PELLORCE Marie | J175: 25 | K175: fille du mari | L175: Idiote par accident | N175: PELLORCE Marie
F176: Périer | G176: 1866 | H176: 50, 56, 8|4 | I176: PELLORCE Vincent | J176: 7 | K176: Fils | N176: PELLORCE Vincent
F177: Périer | G177: 1866 | H177: 50, 56, 8|5 | I177: PELLORCE Casimir | J177: 2.5 | K177: Fils | N177: PELLORCE Casimir
F179: Périer | G179: 1872 | H179: 84, 95, 325 | I179: PELLORCE Pierre | J179: 64 | K179: M | L179: Cultivateur | N179: PELLORCE Pierre
F180: Périer | G180: 1872 | H180: 84, 95, 326 | I180: BLANC Françoise | J180: 41 | K180: Mme | N180: BLANC Françoise
F181: Périer | G181: 1872 | H181: 84, 95, 327 | I181: PELLORCE Marie | J181: 30 | K181: Fille de Pierre | N181: PELLORCE Marie
F182: Périer | G182: 1872 | H182: 84, 95, 328 | I182: PELLORCE Vincent | J182: 13 | K182: Fils | N182: PELLORCE Vincent
F183: Périer | G183: 1872 | H183: 84, 95, 329 | I183: PELLORCE Casimir | J183: 8 | K183: Fils | N183: PELLORCE Casimir
F184: Périer | G184: 1872 | H184: 84, 95, 330 | I184: PELLORCE Joseph | J184: 4 | K184: Fils | N184: PELLORCE Joseph
F185: Périer | G185: 1872 | H185: 84, 95, 331 | I185: DUPRE Madeleine | J185: 75 | K185: Belle-mère de Pierre | N185: DUPRE Madeleine
F187: Périer | G187: 1876 | H187: 10, 10, 291 | I187: PELLORCE Pierre | J187: 66 | K187: M | L187: Cultivateur | N187: PELLORCE Pierre
F188: Périer | G188: 1876 | H188: 10, 10, 292 | I188: BLANC Françoise | J188: 45 | K188: Mme | N188: BLANC Françoise
F189: Périer | G189: 1876 | H189: 10, 10, 293 | I189: PELLORCE Marie | J189: 35 | K189: fille de Pierre | N189: PELLORCE Marie
F190: Périer | G190: 1876 | H190: 10, 10, 294 | I190: PELLORCE Vincent | J190: 17 | K190: Fils | N190: PELLORCE Vincent
F191: Périer | G191: 1876 | H191: 10, 10, 295 | I191: PELLORCE Casimir | J191: 12 | K191: Fils | N191: PELLORCE Casimir
F192: Périer | G192: 1876 | H192: 10, 10, 296 | I192: PELLORCE Joseph | J192: 8 | K192: Fils | N192: PELLORCE Joseph
F193: Périer | G193: 1876 | H193: 10, 10, 297 | I193: PELLORCE joséphine | J193: 3 | K193: Fille | N193: PELLORCE joséphine
F194: Périer | G194: 1876 | H194: 10, 10, 298 | I194: PELLORCE Rose | J194: 52 | K194: Mère | N194: PELLORCE Rose
F196: Périer | G196: 1881 | H196: 9, 9, 297 | I196: PELLORCE Pierre | J196: 73 | K196: M | L196: Cultivateur | N196: PELLORCE Pierre
F197: Périer | G197: 1881 | H197: 9, 9, 298 | I197: BLANC Françoise | J197: 53 | K197: Mme | L197: Ménagère | N197: BLANC Françoise
F198: Périer | G198: 1881 | H198: 9, 9, 299 | I198: PELLORCE Vincent | J198: 23 | K198: Fils | L198: Cultivateur | N198: PELLORCE Vincent
F199: Périer | G199: 1881 | H199: 9, 9, 300 | I199: PELLORCE Casimir | J199: 18 | K199: Fils | N199: PELLORCE Casimir
F200: Périer | G200: 1881 | H200: 9, 9, 301 | I200: PELLORCE Joseph | J200: 14 | K200: Fils | N200: PELLORCE Joseph
F201: Périer | G201: 1881 | H201: 9, 9, 302 | I201: PELLORCE Joséphine | J201: 8 | K201: Fille | N201: PELLORCE Joséphine
F202: Périer | G202: 1881 | H202: 9, 9, 303 | I202: PELLORCE Marie | J202: 48 | K202: fille de Pierre | N202: PELLORCE Marie
F204: Périer | G204: 1886 | H204: 11, 11, 30 | I204: PELLORCE Pierre | J204: 77 | K204: M | L204: Cultivateur | N204: PELLORCE Pierre
F205: Périer | G205: 1886 | H205: 11, 11, 31 | I205: BLANC Françoise | J205: 56 | K205: Mme | L205: Ménagère | N205: BLANC Françoise
F206: Périer | G206: 1886 | H206: 11, 11, 32 | I206: PELLORCE Marie | J206: 45 | K206: fille de Pierre | N206: PELLORCE Marie
F207: Périer | G207: 1886 | H207: 11, 11, 33 | I207: PELLORCE Vincent | J207: 27 | K207: Fils | L207: Cultivateur | N207: PELLORCE Vincent
F208: Périer | G208: 1886 | H208: 11, 11, 34 | I208: PELLORCE Casimir | J208: 22 | K208: Fils | L208: Cultivateur | N208: PELLORCE Casimir
F209: Périer | G209: 1886 | H209: 11, 11, 35 | I209: PELLORCE Joséphine | J209: 12 | K209: Fille | N209: PELLORCE Joséphine
F211: Périer | G211: 1891 | H211: 1, 1, 1 | I211: PELLORCE Pierre | J211: 82 | K211: M | L211: Cultivateur | N211: PELLORCE Pierre
F212: Périer | G212: 1891 | H212: 1, 1, 2 | I212: BLANC Françoise | J212: 61 | K212: Mme | L212: Ménagère | N212: BLANC Françoise
F213: Périer | G213: 1891 | H213: 1, 1, 3 | I213: PELLORCE Marie | J213: 50 | K213: fille de Pierre | N213: PELLORCE Marie
F214: Périer | G214: 1891 | H214: 1, 1, 4 | I214: PELLORCE Casimir | J214: 26 | K214: Fils | L214: Cultivateur | N214: PELLORCE Casimir
F215: Périer | G215: 1891 | H215: 1, 1, 5 | I215: PELLORCE Joséphine | J215: 17 | K215: Fille | N215: PELLORCE Joséphine
F217: Périer | G217: 1891 | H217: 4, 4, 12 | I217: PELLORCE Vincent | J217: 32 | K217: M | L217: Cultivateur | N217: PELLORCE Vincent
F218: Périer | G218: 1891 | H218: 4, 4, 13 | I218: DUSSERT Sylvie | J218: 28 | K218: Mme | L218: Ménagère | N218: DUSSERT Sylvie
F219: Périer | G219: 1891 | H219: 4, 4, 14 | I219: PELLORCE Sylvie | J219: 3 | K219: Fille | N219: PELLORCE Sylvie
F220: Périer | G220: 1891 | H220: 4, 4, 15 | I220: PELLORCE Marie | J220: 1 m | K220: Fille | N220: PELLORCE Marie
F221: Périer | G221: 1891 | H221: 4, 4, 16 | I221: DUSSERT Euphroisine | J221: 65 | K221: Mère de Sylvie | L221: Ménagère | N221: DUSSERT Euphroisine
F223: Périer | G223: 1891 | H223: 6, 6, 22 | I223: PELLORCE Marie | J223: 52 | K223: Mme | L223: Ménagère | N223: PELLORCE Marie
F224: Périer | G224: 1891 | H224: 6, 6, 23 | I224: PELLORCE Marie | J224: 21 | K224: Fille | L224: Cultivatrice | N224: PELLORCE Marie
F226: Périer | G226: 1896 | H226: 66, 75, 9|11 | I226: PELLORCE Pierre | J226: 20 | K226: M | L226: Cultivateur | N226: PELLORCE Pierre
F227: Périer | G227: 1896 | H227: 66, 75, 9|12 | I227: PELLORCE Marie | J227: 25 | K227: Sœur de Pierre | L227: Cultivatrice | N227: PELLORCE Marie
F228: Périer | G228: 1896 | H228: 66, 75, 9|13 | I228: REY Silvie | J228: 52 | L228: Cultivateur domestique | N228: REY Sylvie
F229: Périer | G229: 1896 | H229: 66, 75, 9|14 | I229: SIONNET Auguste | J229: 29 | L229: Cultivateur domestique | N229: SIONNET Auguste
F231: Périer | G231: 1901 | H231: 13,, 256 | I231: MOREL Auguste | J231: 32 | K231: M | L231: Cultivateur | N231: MOREL Auguste
F232: Périer | G232: 1901 | H232: 13,, 257 | I232: PELLORCE Marie | J232: 30 | K232: Mme | L232: Ménagère | N232: PELLORCE Marie
F233: Périer | G233: 1901 | H233: 13,, 258 | I233: MOREL Auguste | J233: 3.5 | K233: Fils | N233: MOREL Auguste
F234: Périer | G234: 1901 | H234: 13,, 259 | I234: MOREL Albert | J234: 1.5 | K234: Fils | N234: MOREL Albert
F235: Périer | G235: 1901 | H235: 13,, 260 | I235: MOREL Esther | J235: 12 | K235: Nièce | N235: MOREL Esther
F236: Périer | G236: 1901 | H236: 13,, 261 | I236: PELLORCE Pierre | J236: 25 | K236: Beau-frère | N236: PELLORCE Pierre
F238: Périer | G238: 1921 | H238: 3, 1, 4|31 | I238: PELLORCE Louis | J238: 61 | K238: M | L238: Cultivateur | N238: PELLORCE Louis
F239: Périer | G239: 1921 | H239: 3, 2, 4|32 | I239: PELLORCE Marie | J239: 51 | K239: Mme | L239: Ménagère | N239: PELLORCE Marie
F240: Périer | G240: 1921 | H240: 3, 3, 4|33 | I240: PELLORCE Emilie | J240: 22 | K240: Fille | N240: PELLORCE Emilie
F241: Périer | G241: 1921 | H241: 3, 4, 4|34 | I241: PELLORCE Jules | J241: 20 | K241: Fils | N241: PELLORCE Jules
... 8 more rows
